﻿OrganisationName,OrganisationalUnit,BeneficiaryName,PaymentDate,Amount,Purpose,CategoryInternal,OrganisationURI
Staffordshire County Council,Think 2 Project, Little Stars Childcare,12/09/2022,4307.65,Awards Funded Childcare Places,Awards Funded Childcare Places,http://opendatacommunities.org/id/county-council/staffordshire  
Staffordshire County Council,Childcare,18 St John Street Chambers,16/09/2022,1140.00,Legal Costs and Stamp Duty,Legal Costs and Stamp Duty,http://opendatacommunities.org/id/county-council/staffordshire  
Staffordshire County Council,Childcare,18 St John Street Chambers,16/09/2022,1140.00,Legal Costs and Stamp Duty,Legal Costs and Stamp Duty,http://opendatacommunities.org/id/county-council/staffordshire  
Staffordshire County Council,Childcare,18 St John Street Chambers,30/09/2022,780.00,Legal Costs and Stamp Duty,Legal Costs and Stamp Duty,http://opendatacommunities.org/id/county-council/staffordshire  
Staffordshire County Council,Local Members Initiatives,1st Coven Scout Group,06/09/2022,675.00,Local Member Initiative Scheme,Local Member Initiative Scheme,http://opendatacommunities.org/id/county-council/staffordshire  
Staffordshire County Council,LICH Assess & Staying Together,3 Angels Complex Care Services Ltd,14/09/2022,1680.00,S17 TRANSPORT,S17 TRANSPORT,http://opendatacommunities.org/id/county-council/staffordshire  
Staffordshire County Council,Tam Children with Disability,3 Angels Complex Care Services Ltd,15/09/2022,1680.00,S17 FAMILY SUPPORT,S17 FAMILY SUPPORT,http://opendatacommunities.org/id/county-council/staffordshire  
Staffordshire County Council,LICH Assess & Staying Together,3 Angels Complex Care Services Ltd,05/09/2022,1680.00,S17 TRANSPORT,S17 TRANSPORT,http://opendatacommunities.org/id/county-council/staffordshire  
Staffordshire County Council,Tam Children with Disability,3 Angels Complex Care Services Ltd,01/09/2022,3360.00,S17 FAMILY SUPPORT,S17 FAMILY SUPPORT,http://opendatacommunities.org/id/county-council/staffordshire  
Staffordshire County Council,Tam Children with Disability,3 Angels Complex Care Services Ltd,01/09/2022,3360.00,S17 FAMILY SUPPORT,S17 FAMILY SUPPORT,http://opendatacommunities.org/id/county-council/staffordshire  
Staffordshire County Council,Tam Children with Disability,3 Angels Complex Care Services Ltd,08/09/2022,4080.00,S17 FAMILY SUPPORT,S17 FAMILY SUPPORT,http://opendatacommunities.org/id/county-council/staffordshire  
Staffordshire County Council,Tam Children with Disability,3 Angels Complex Care Services Ltd,08/09/2022,3990.00,S17 FAMILY SUPPORT,S17 FAMILY SUPPORT,http://opendatacommunities.org/id/county-council/staffordshire  
Staffordshire County Council,Tam Children with Disability,3 Angels Complex Care Services Ltd,23/09/2022,2448.00,S17 FAMILY SUPPORT,S17 FAMILY SUPPORT,http://opendatacommunities.org/id/county-council/staffordshire  
Staffordshire County Council,Tam Children with Disability,3 Angels Complex Care Services Ltd,23/09/2022,4464.00,S17 FAMILY SUPPORT,S17 FAMILY SUPPORT,http://opendatacommunities.org/id/county-council/staffordshire  
Staffordshire County Council,Tam Children with Disability,3 Angels Complex Care Services Ltd,27/09/2022,5712.00,S17 FAMILY SUPPORT,S17 FAMILY SUPPORT,http://opendatacommunities.org/id/county-council/staffordshire  
Staffordshire County Council,Tam Children with Disability,3 Angels Complex Care Services Ltd,12/09/2022,8400.00,S17 FAMILY SUPPORT,S17 FAMILY SUPPORT,http://opendatacommunities.org/id/county-council/staffordshire  
Staffordshire County Council,Tam Children with Disability,3 Angels Complex Care Services Ltd,23/09/2022,16623.73,S17 FAMILY SUPPORT,S17 FAMILY SUPPORT,http://opendatacommunities.org/id/county-council/staffordshire  
Staffordshire County Council,Tam Children with Disability,3 Angels Complex Care Services Ltd,23/09/2022,16998.62,S17 FAMILY SUPPORT,S17 FAMILY SUPPORT,http://opendatacommunities.org/id/county-council/staffordshire  
Staffordshire County Council,Childcare,3PB Barristers (Chambers Account),30/09/2022,900.00,Legal Costs and Stamp Duty,Legal Costs and Stamp Duty,http://opendatacommunities.org/id/county-council/staffordshire  
Staffordshire County Council,ES Child in Care/Care Leavers,5 TEN CONTRACTS LTD,09/09/2022,2343.60,Home School Contract Vehicles,Home School Contract Vehicles,http://opendatacommunities.org/id/county-council/staffordshire  
Staffordshire County Council,ES Child in Care/Care Leavers,5 TEN CONTRACTS LTD,09/09/2022,1692.60,Home School Contract Vehicles,Home School Contract Vehicles,http://opendatacommunities.org/id/county-council/staffordshire  
Staffordshire County Council,Chaselea Short Stay School,5 TEN CONTRACTS LTD,02/09/2022,49530.95,Home School Contract Vehicles,Home School Contract Vehicles,http://opendatacommunities.org/id/county-council/staffordshire  
Staffordshire County Council,Home to school transport-main,A & K TRAVEL,01/09/2022,16064.49,Home School Contract Vehicles,Home School Contract Vehicles,http://opendatacommunities.org/id/county-council/staffordshire  
Staffordshire County Council,SEN Direct Payments,,29/09/2022,6000.00,Direct Payments Other,Direct Payments Other,http://opendatacommunities.org/id/county-council/staffordshire  
Staffordshire County Council,Nursery Education Grant,A Compton,12/09/2022,1341.90,Grants Nursery Education Pymnt,Grants Nursery Education Pymnt,http://opendatacommunities.org/id/county-council/staffordshire  
Staffordshire County Council,Nursery Education Grant,A DAVIES-HILL,12/09/2022,1177.89,Grants Nursery Education Pymnt,Grants Nursery Education Pymnt,http://opendatacommunities.org/id/county-council/staffordshire  
Staffordshire County Council,Independent Sch Fees Mainstr'm,A DAVIES-HILL,28/09/2022,700.00,Fees to Independent Schools,Fees to Independent Schools,http://opendatacommunities.org/id/county-council/staffordshire  
Staffordshire County Council,Think 2 Project,A Dewis,12/09/2022,574.35,Awards Funded Childcare Places,Awards Funded Childcare Places,http://opendatacommunities.org/id/county-council/staffordshire  
Staffordshire County Council,Nursery Education Grant,A Dewis,12/09/2022,518.48,Grants Nursery Education Pymnt,Grants Nursery Education Pymnt,http://opendatacommunities.org/id/county-council/staffordshire  
Staffordshire County Council,Nursery Education Grant,A Hooker,12/09/2022,805.14,Grants Nursery Education Pymnt,Grants Nursery Education Pymnt,http://opendatacommunities.org/id/county-council/staffordshire  
Staffordshire County Council,Rural County Vehicles & Plant,A I D FUEL OILS LTD,21/09/2022,607.20,Petrol & Oil,Petrol & Oil,http://opendatacommunities.org/id/county-council/staffordshire  
Staffordshire County Council,CRF Staffs Apprenticeship 500,A Lench Building Cont Ltd,30/09/2022,5000.00,Grants to third parties,Grants to third parties,http://opendatacommunities.org/id/county-council/staffordshire  
Staffordshire County Council,Nursery Education Grant,A M Horobin,12/09/2022,805.14,Grants Nursery Education Pymnt,Grants Nursery Education Pymnt,http://opendatacommunities.org/id/county-council/staffordshire  
Staffordshire County Council,Public Transp Support & Co-ord,A Moore T/A Staffs Border Travel,01/09/2022,2620.38,Payments to Bus Operators,Payments to Bus Operators,http://opendatacommunities.org/id/county-council/staffordshire  
Staffordshire County Council,Public Transp Support & Co-ord,A Moore T/A Staffs Border Travel,30/09/2022,2745.16,Payments to Bus Operators,Payments to Bus Operators,http://opendatacommunities.org/id/county-council/staffordshire  
Staffordshire County Council,HWRC Mobilisation,A R Richards Ltd,23/09/2022,3368.74,WASTE MANAGEMENT,WASTE MANAGEMENT,http://opendatacommunities.org/id/county-council/staffordshire  
Staffordshire County Council,HWRC Mobilisation,A R Richards Ltd,23/09/2022,27229.99,WASTE MANAGEMENT,WASTE MANAGEMENT,http://opendatacommunities.org/id/county-council/staffordshire  
Staffordshire County Council,Nursery Education Grant,A Ratcliffe,12/09/2022,1908.48,Grants Nursery Education Pymnt,Grants Nursery Education Pymnt,http://opendatacommunities.org/id/county-council/staffordshire  
Staffordshire County Council,Nursery Education Grant,A RIDSDALE SMITH,12/09/2022,1404.90,Grants Nursery Education Pymnt,Grants Nursery Education Pymnt,http://opendatacommunities.org/id/county-council/staffordshire  
Staffordshire County Council,Saxon Hill School,,01/09/2022,733.75,Personal Travel Budgets,Personal Travel Budgets,http://opendatacommunities.org/id/county-council/staffordshire  
Staffordshire County Council,Nursery Education Grant,A SCOTT,12/09/2022,10064.25,Grants Nursery Education Pymnt,Grants Nursery Education Pymnt,http://opendatacommunities.org/id/county-council/staffordshire  
Staffordshire County Council,Tamworth LD Team,A WOODS,06/09/2022,1376.12,Practical Care,Practical Care,http://opendatacommunities.org/id/county-council/staffordshire  
Staffordshire County Council,Tamworth LD Team,A WOODS,16/09/2022,1376.12,Practical Care,Practical Care,http://opendatacommunities.org/id/county-council/staffordshire  
Staffordshire County Council,STAF Child in Care/Care Leaver,A1 Embassy Taxis Stoke Ltd,01/09/2022,3078.00,S17 TRANSPORT,S17 TRANSPORT,http://opendatacommunities.org/id/county-council/staffordshire  
Staffordshire County Council,Cicely Haughton School,A1 Embassy Taxis Stoke Ltd,01/09/2022,11165.33,Home School Contract Vehicles,Home School Contract Vehicles,http://opendatacommunities.org/id/county-council/staffordshire  
Staffordshire County Council,Stat-OOC transport,A1 Taxis,01/09/2022,1972.71,Home School Contract Vehicles,Home School Contract Vehicles,http://opendatacommunities.org/id/county-council/staffordshire  
Staffordshire County Council,Rocklands School,A2B Cars,07/09/2022,13691.78,Home School Contract Vehicles,Home School Contract Vehicles,http://opendatacommunities.org/id/county-council/staffordshire  
Staffordshire County Council,Queen's Croft Community School,A2B Cars,15/09/2022,618.56,Home School Contract Vehicles,Home School Contract Vehicles,http://opendatacommunities.org/id/county-council/staffordshire  
Staffordshire County Council,Quality Budget,AAETO,13/09/2022,984.00,Subscriptions General,Subscriptions General,http://opendatacommunities.org/id/county-council/staffordshire  
Staffordshire County Council,Headquarters - I.S.P,Abacus Fostering LTD,28/09/2022,5819.15,Social Services Oth Local Auth,Social Services Oth Local Auth,http://opendatacommunities.org/id/county-council/staffordshire  
Staffordshire County Council,Headquarters - I.S.P,Abacus Fostering LTD,28/09/2022,9576.00,Social Services Oth Local Auth,Social Services Oth Local Auth,http://opendatacommunities.org/id/county-council/staffordshire  
Staffordshire County Council,Headquarters - I.S.P,Abacus Fostering LTD,28/09/2022,12972.98,Social Services Oth Local Auth,Social Services Oth Local Auth,http://opendatacommunities.org/id/county-council/staffordshire  
Staffordshire County Council,Headquarters - I.S.P,Abacus Fostering LTD,28/09/2022,5819.15,Social Services Oth Local Auth,Social Services Oth Local Auth,http://opendatacommunities.org/id/county-council/staffordshire  
Staffordshire County Council,Think 2 Project,ABACUS NURSERY,12/09/2022,5858.40,Awards Funded Childcare Places,Awards Funded Childcare Places,http://opendatacommunities.org/id/county-council/staffordshire  
Staffordshire County Council,Nursery Education Grant,ABACUS NURSERY,12/09/2022,12012.84,Grants Nursery Education Pymnt,Grants Nursery Education Pymnt,http://opendatacommunities.org/id/county-council/staffordshire  
Staffordshire County Council,Think 2 Project,ABACUS PRE SCHOOL LICHFIELD,12/09/2022,5456.35,Awards Funded Childcare Places,Awards Funded Childcare Places,http://opendatacommunities.org/id/county-council/staffordshire  
Staffordshire County Council,Nursery Education Grant,ABACUS PRE SCHOOL LICHFIELD,12/09/2022,7914.81,Grants Nursery Education Pymnt,Grants Nursery Education Pymnt,http://opendatacommunities.org/id/county-council/staffordshire  
Staffordshire County Council,Early Years Prof Dev Programme,ABACUS PRE SCHOOL LICHFIELD,28/09/2022,616.69,Grants to third parties,Grants to third parties,http://opendatacommunities.org/id/county-council/staffordshire  
Staffordshire County Council,Adoption Support Fund,Abacus Psychology Ltd,21/09/2022,625.00,PROFESSIONAL FEES,PROFESSIONAL FEES,http://opendatacommunities.org/id/county-council/staffordshire  
Staffordshire County Council,Adoption Support Fund,Abacus Psychology Ltd,21/09/2022,900.00,PROFESSIONAL FEES,PROFESSIONAL FEES,http://opendatacommunities.org/id/county-council/staffordshire  
Staffordshire County Council,Adoption Support Fund,Abacus Psychology Ltd,21/09/2022,754.50,PROFESSIONAL FEES,PROFESSIONAL FEES,http://opendatacommunities.org/id/county-council/staffordshire  
Staffordshire County Council,Think 2 Project,ABC DAY NURSERY,12/09/2022,1723.06,Awards Funded Childcare Places,Awards Funded Childcare Places,http://opendatacommunities.org/id/county-council/staffordshire  
Staffordshire County Council,Nursery Education Grant,ABC DAY NURSERY,12/09/2022,6620.04,Grants Nursery Education Pymnt,Grants Nursery Education Pymnt,http://opendatacommunities.org/id/county-council/staffordshire  
Staffordshire County Council,Think 2 Project,ABC Early Learning & Childcare Cent,12/09/2022,6138.64,Awards Funded Childcare Places,Awards Funded Childcare Places,http://opendatacommunities.org/id/county-council/staffordshire  
Staffordshire County Council,Nursery Education Grant,ABC Early Learning & Childcare Cent,12/09/2022,64024.47,Grants Nursery Education Pymnt,Grants Nursery Education Pymnt,http://opendatacommunities.org/id/county-council/staffordshire  
Staffordshire County Council,Home to school transport-main,Abellio Corporate Travel,02/09/2022,5037.00,Home School Tickets,Home School Tickets,http://opendatacommunities.org/id/county-council/staffordshire  
Staffordshire County Council,Nursery Education Grant,Abigial Daly,12/09/2022,670.95,Grants Nursery Education Pymnt,Grants Nursery Education Pymnt,http://opendatacommunities.org/id/county-council/staffordshire  
Staffordshire County Council,SStaffs Invoice Led Older Peop,Ability Healthcare Cannock LTD,05/09/2022,840.00,Practical Care,Practical Care,http://opendatacommunities.org/id/county-council/staffordshire  
Staffordshire County Council,Cannock Invoice Led Older Peop,Ability Healthcare Cannock LTD,05/09/2022,630.00,Practical Care,Practical Care,http://opendatacommunities.org/id/county-council/staffordshire  
Staffordshire County Council,Cannock Invoice Led Older Peop,Ability Healthcare Cannock LTD,05/09/2022,560.00,Practical Care,Practical Care,http://opendatacommunities.org/id/county-council/staffordshire  
Staffordshire County Council,Cannock Invoice Led Older Peop,Ability Healthcare Cannock LTD,05/09/2022,630.00,Practical Care,Practical Care,http://opendatacommunities.org/id/county-council/staffordshire  
Staffordshire County Council,Cannock Invoice Led Older Peop,Ability Healthcare Cannock LTD,05/09/2022,560.00,Practical Care,Practical Care,http://opendatacommunities.org/id/county-council/staffordshire  
Staffordshire County Council,Cannock Invoice Led Older Peop,Ability Healthcare Cannock LTD,05/09/2022,560.00,Practical Care,Practical Care,http://opendatacommunities.org/id/county-council/staffordshire  
Staffordshire County Council,SStaffs Invoice Led Older Peop,Ability Healthcare Cannock LTD,12/09/2022,840.00,Practical Care,Practical Care,http://opendatacommunities.org/id/county-council/staffordshire  
Staffordshire County Council,Cannock Invoice Led Older Peop,Ability Healthcare Cannock LTD,12/09/2022,630.00,Practical Care,Practical Care,http://opendatacommunities.org/id/county-council/staffordshire  
Staffordshire County Council,Cannock Invoice Led Older Peop,Ability Healthcare Cannock LTD,12/09/2022,560.00,Practical Care,Practical Care,http://opendatacommunities.org/id/county-council/staffordshire  
Staffordshire County Council,Cannock Invoice Led Older Peop,Ability Healthcare Cannock LTD,12/09/2022,630.00,Practical Care,Practical Care,http://opendatacommunities.org/id/county-council/staffordshire  
Staffordshire County Council,Cannock Invoice Led Older Peop,Ability Healthcare Cannock LTD,12/09/2022,560.00,Practical Care,Practical Care,http://opendatacommunities.org/id/county-council/staffordshire  
Staffordshire County Council,Cannock Invoice Led Older Peop,Ability Healthcare Cannock LTD,12/09/2022,560.00,Practical Care,Practical Care,http://opendatacommunities.org/id/county-council/staffordshire  
Staffordshire County Council,SStaffs Invoice Led Older Peop,Ability Healthcare Cannock LTD,16/09/2022,840.00,Practical Care,Practical Care,http://opendatacommunities.org/id/county-council/staffordshire  
Staffordshire County Council,Cannock Invoice Led Older Peop,Ability Healthcare Cannock LTD,16/09/2022,630.00,Practical Care,Practical Care,http://opendatacommunities.org/id/county-council/staffordshire  
Staffordshire County Council,Cannock Invoice Led Older Peop,Ability Healthcare Cannock LTD,16/09/2022,560.00,Practical Care,Practical Care,http://opendatacommunities.org/id/county-council/staffordshire  
Staffordshire County Council,Cannock Invoice Led Older Peop,Ability Healthcare Cannock LTD,16/09/2022,630.00,Practical Care,Practical Care,http://opendatacommunities.org/id/county-council/staffordshire  
Staffordshire County Council,Cannock Invoice Led Older Peop,Ability Healthcare Cannock LTD,16/09/2022,560.00,Practical Care,Practical Care,http://opendatacommunities.org/id/county-council/staffordshire  
Staffordshire County Council,Cannock Invoice Led Older Peop,Ability Healthcare Cannock LTD,16/09/2022,560.00,Practical Care,Practical Care,http://opendatacommunities.org/id/county-council/staffordshire  
Staffordshire County Council,SStaffs Invoice Led Older Peop,Ability Healthcare Cannock LTD,26/09/2022,840.00,Practical Care,Practical Care,http://opendatacommunities.org/id/county-council/staffordshire  
Staffordshire County Council,Cannock Invoice Led Older Peop,Ability Healthcare Cannock LTD,26/09/2022,630.00,Practical Care,Practical Care,http://opendatacommunities.org/id/county-council/staffordshire  
Staffordshire County Council,Cannock Invoice Led Older Peop,Ability Healthcare Cannock LTD,26/09/2022,560.00,Practical Care,Practical Care,http://opendatacommunities.org/id/county-council/staffordshire  
Staffordshire County Council,Cannock Invoice Led Older Peop,Ability Healthcare Cannock LTD,26/09/2022,630.00,Practical Care,Practical Care,http://opendatacommunities.org/id/county-council/staffordshire  
Staffordshire County Council,Cannock Invoice Led Older Peop,Ability Healthcare Cannock LTD,26/09/2022,560.00,Practical Care,Practical Care,http://opendatacommunities.org/id/county-council/staffordshire  
Staffordshire County Council,Cannock Invoice Led Older Peop,Ability Healthcare Cannock LTD,26/09/2022,560.00,Practical Care,Practical Care,http://opendatacommunities.org/id/county-council/staffordshire  
Staffordshire County Council,Newcastle LD Team,Above N Beyond Limited,14/09/2022,818.40,Practical Care,Practical Care,http://opendatacommunities.org/id/county-council/staffordshire  
Staffordshire County Council,VS Cont Migration,Above N Beyond Limited,06/09/2022,2880.00,Contingency,Contingency,http://opendatacommunities.org/id/county-council/staffordshire  
Staffordshire County Council,Think 2 Project,ACADEMY EARLY YEARS CHILDCARE LTD,12/09/2022,2010.24,Awards Funded Childcare Places,Awards Funded Childcare Places,http://opendatacommunities.org/id/county-council/staffordshire  
Staffordshire County Council,Nursery Education Grant,ACADEMY EARLY YEARS CHILDCARE LTD,12/09/2022,4420.14,Grants Nursery Education Pymnt,Grants Nursery Education Pymnt,http://opendatacommunities.org/id/county-council/staffordshire  
Staffordshire County Council,Stafford Invoice Led Older Peo,Acadia Support Services LTD,05/09/2022,5569.46,Practical Care,Practical Care,http://opendatacommunities.org/id/county-council/staffordshire  
Staffordshire County Council,Stafford Invoice Led Older Peo,Acadia Support Services LTD,06/09/2022,6640.51,Practical Care,Practical Care,http://opendatacommunities.org/id/county-council/staffordshire  
Staffordshire County Council,Stafford Invoice Led Phys Disa,Acadia Support Services LTD,06/09/2022,1990.08,Practical Care,Practical Care,http://opendatacommunities.org/id/county-council/staffordshire  
Staffordshire County Council,Newcastle Invoice Led Older Pe,Acadia Support Services LTD,06/09/2022,2294.12,Practical Care,Practical Care,http://opendatacommunities.org/id/county-council/staffordshire  
Staffordshire County Council,Newcastle Invoice Led Older Pe,Acadia Support Services LTD,06/09/2022,6854.72,Practical Care,Practical Care,http://opendatacommunities.org/id/county-council/staffordshire  
Staffordshire County Council,Newcastle Invoice Led Older Pe,Acadia Support Services LTD,06/09/2022,1534.02,Practical Care,Practical Care,http://opendatacommunities.org/id/county-council/staffordshire  
Staffordshire County Council,Newcastle Invoice Led Older Pe,Acadia Support Services LTD,06/09/2022,856.84,Practical Care,Practical Care,http://opendatacommunities.org/id/county-council/staffordshire  
Staffordshire County Council,Newcastle Invoice Led Older Pe,Acadia Support Services LTD,06/09/2022,856.84,Practical Care,Practical Care,http://opendatacommunities.org/id/county-council/staffordshire  
Staffordshire County Council,Newcastle Invoice Led Older Pe,Acadia Support Services LTD,06/09/2022,856.84,Practical Care,Practical Care,http://opendatacommunities.org/id/county-council/staffordshire  
Staffordshire County Council,Newcastle Invoice Led Physical,Acadia Support Services LTD,06/09/2022,856.84,Practical Care,Practical Care,http://opendatacommunities.org/id/county-council/staffordshire  
Staffordshire County Council,Headquarters - I.S.P,Accalia Care Services Ltd,28/09/2022,22142.86,Specialist Childs Res Services,Specialist Childs Res Services,http://opendatacommunities.org/id/county-council/staffordshire  
Staffordshire County Council,Headquarters - I.S.P,Accalia Care Services Ltd,28/09/2022,27857.14,Specialist Childs Res Services,Specialist Childs Res Services,http://opendatacommunities.org/id/county-council/staffordshire  
Staffordshire County Council,CM2000 System,Access UK Ltd,29/09/2022,3060.00,Practical Care,Practical Care,http://opendatacommunities.org/id/county-council/staffordshire  
Staffordshire County Council,Get Started,Accounting Insight Ltd,23/09/2022,1008.00,PROFESSIONAL FEES,PROFESSIONAL FEES,http://opendatacommunities.org/id/county-council/staffordshire  
Staffordshire County Council,Get Started,Accounting Insight Ltd,23/09/2022,1008.00,PROFESSIONAL FEES,PROFESSIONAL FEES,http://opendatacommunities.org/id/county-council/staffordshire  
Staffordshire County Council,Get Started,Accounting Insight Ltd,23/09/2022,1008.00,PROFESSIONAL FEES,PROFESSIONAL FEES,http://opendatacommunities.org/id/county-council/staffordshire  
Staffordshire County Council,E Staffs LD Team,Achieve Together Ltd,09/09/2022,1713.04,Supported Group Care,Supported Group Care,http://opendatacommunities.org/id/county-council/staffordshire  
Staffordshire County Council,E Staffs LD Team,Achieve Together Ltd,09/09/2022,1326.02,Supported Group Care,Supported Group Care,http://opendatacommunities.org/id/county-council/staffordshire  
Staffordshire County Council,Newcastle LD Team,Achieve Together Ltd,09/09/2022,1258.66,Supported Group Care,Supported Group Care,http://opendatacommunities.org/id/county-council/staffordshire  
Staffordshire County Council,Newcastle LD Team,Achieve Together Ltd,09/09/2022,1376.06,Supported Group Care,Supported Group Care,http://opendatacommunities.org/id/county-council/staffordshire  
Staffordshire County Council,Newcastle LD Team,Achieve Together Ltd,09/09/2022,1216.38,Supported Group Care,Supported Group Care,http://opendatacommunities.org/id/county-council/staffordshire  
Staffordshire County Council,E Staffs LD Team,Achieve Together Ltd,26/09/2022,1326.02,Supported Group Care,Supported Group Care,http://opendatacommunities.org/id/county-council/staffordshire  
Staffordshire County Council,Newcastle LD Team,Achieve Together Ltd,26/09/2022,1258.66,Supported Group Care,Supported Group Care,http://opendatacommunities.org/id/county-council/staffordshire  
Staffordshire County Council,Newcastle LD Team,Achieve Together Ltd,26/09/2022,1376.06,Supported Group Care,Supported Group Care,http://opendatacommunities.org/id/county-council/staffordshire  
Staffordshire County Council,Stafford LD Team,Achieve Together Ltd,26/09/2022,2616.60,Supported Group Care,Supported Group Care,http://opendatacommunities.org/id/county-council/staffordshire  
Staffordshire County Council,Stafford LD Team,Achieve Together Ltd,26/09/2022,3823.72,Supported Group Care,Supported Group Care,http://opendatacommunities.org/id/county-council/staffordshire  
Staffordshire County Council,Stafford LD Team,Achieve Together Ltd,26/09/2022,7563.96,Supported Group Care,Supported Group Care,http://opendatacommunities.org/id/county-council/staffordshire  
Staffordshire County Council,Stafford LD Team,Achieve Together Ltd,26/09/2022,2307.00,Supported Group Care,Supported Group Care,http://opendatacommunities.org/id/county-council/staffordshire  
Staffordshire County Council,E Staffs LD Team,Achieve Together Ltd,26/09/2022,3245.28,Supported Group Care,Supported Group Care,http://opendatacommunities.org/id/county-council/staffordshire  
Staffordshire County Council,E Staffs LD Team,Achieve Together Ltd,26/09/2022,5276.80,Supported Group Care,Supported Group Care,http://opendatacommunities.org/id/county-council/staffordshire  
Staffordshire County Council,E Staffs LD Team,Achieve Together Ltd,26/09/2022,4959.16,Supported Group Care,Supported Group Care,http://opendatacommunities.org/id/county-council/staffordshire  
Staffordshire County Council,E Staffs LD Team,Achieve Together Ltd,26/09/2022,2616.60,Supported Group Care,Supported Group Care,http://opendatacommunities.org/id/county-council/staffordshire  
Staffordshire County Council,E Staffs LD Team,Achieve Together Ltd,26/09/2022,4629.72,Supported Group Care,Supported Group Care,http://opendatacommunities.org/id/county-council/staffordshire  
Staffordshire County Council,E Staffs LD Team,Achieve Together Ltd,26/09/2022,2568.96,Supported Group Care,Supported Group Care,http://opendatacommunities.org/id/county-council/staffordshire  
Staffordshire County Council,Independent School Fee Special,Acorn Care & Education Ltd,06/09/2022,17852.11,Fees to Independent Schools,Fees to Independent Schools,http://opendatacommunities.org/id/county-council/staffordshire  
Staffordshire County Council,Independent School Fee Special,Acorn Care & Education Ltd,06/09/2022,17852.11,Fees to Independent Schools,Fees to Independent Schools,http://opendatacommunities.org/id/county-council/staffordshire  
Staffordshire County Council,Independent School Fee Special,Acorn Care & Education Ltd,06/09/2022,26786.52,Fees to Independent Schools,Fees to Independent Schools,http://opendatacommunities.org/id/county-council/staffordshire  
Staffordshire County Council,Independent School Fee Special,Acorn Care & Education Ltd,28/09/2022,8500.00,Fees to Independent Schools,Fees to Independent Schools,http://opendatacommunities.org/id/county-council/staffordshire  
Staffordshire County Council,Independent School Fee Special,Acorn Care & Education Ltd,06/09/2022,17852.11,Fees to Independent Schools,Fees to Independent Schools,http://opendatacommunities.org/id/county-council/staffordshire  
Staffordshire County Council,Independent School Fee Special,Acorn Care & Education Ltd,06/09/2022,17852.11,Fees to Independent Schools,Fees to Independent Schools,http://opendatacommunities.org/id/county-council/staffordshire  
Staffordshire County Council,Independent School Fee Special,Acorn Care & Education Ltd,06/09/2022,18717.81,Fees to Independent Schools,Fees to Independent Schools,http://opendatacommunities.org/id/county-council/staffordshire  
Staffordshire County Council,Independent School Fee Special,Acorn Care & Education Ltd,06/09/2022,26786.52,Fees to Independent Schools,Fees to Independent Schools,http://opendatacommunities.org/id/county-council/staffordshire  
Staffordshire County Council,Independent School Fee Special,Acorn Care & Education Ltd,06/09/2022,22317.64,Fees to Independent Schools,Fees to Independent Schools,http://opendatacommunities.org/id/county-council/staffordshire  
Staffordshire County Council,Independent School Fee Special,Acorn Care & Education Ltd,06/09/2022,17852.11,Fees to Independent Schools,Fees to Independent Schools,http://opendatacommunities.org/id/county-council/staffordshire  
Staffordshire County Council,Independent School Fee Special,Acorn Care & Education Ltd,06/09/2022,26786.52,Fees to Independent Schools,Fees to Independent Schools,http://opendatacommunities.org/id/county-council/staffordshire  
Staffordshire County Council,Independent School Fee Special,Acorn Care & Education Ltd,28/09/2022,22256.66,Fees to Independent Schools,Fees to Independent Schools,http://opendatacommunities.org/id/county-council/staffordshire  
Staffordshire County Council,Independent School Fee Special,Acorn Care & Education Ltd,28/09/2022,7333.34,Fees to Independent Schools,Fees to Independent Schools,http://opendatacommunities.org/id/county-council/staffordshire  
Staffordshire County Council,Independent School Fee Special,Acorn Care & Education Ltd,28/09/2022,19815.81,Fees to Independent Schools,Fees to Independent Schools,http://opendatacommunities.org/id/county-council/staffordshire  
Staffordshire County Council,Independent School Fee Special,Acorn Care & Education Ltd,28/09/2022,19815.81,Fees to Independent Schools,Fees to Independent Schools,http://opendatacommunities.org/id/county-council/staffordshire  
Staffordshire County Council,Independent School Fee Special,Acorn Care & Education Ltd,28/09/2022,19637.32,Fees to Independent Schools,Fees to Independent Schools,http://opendatacommunities.org/id/county-council/staffordshire  
Staffordshire County Council,Independent School Fee Special,Acorn Care & Education Ltd,28/09/2022,17767.34,Fees to Independent Schools,Fees to Independent Schools,http://opendatacommunities.org/id/county-council/staffordshire  
Staffordshire County Council,Independent School Fee Special,Acorn Care & Education Ltd,28/09/2022,26786.52,Fees to Independent Schools,Fees to Independent Schools,http://opendatacommunities.org/id/county-council/staffordshire  
Staffordshire County Council,Independent School Fee Special,Acorn Care & Education Ltd,28/09/2022,21986.93,Fees to Independent Schools,Fees to Independent Schools,http://opendatacommunities.org/id/county-council/staffordshire  
Staffordshire County Council,Headquarters - I.S.P,Acorn Care & Education Ltd Sales,28/09/2022,16174.29,Specialist Childs Res Services,Specialist Childs Res Services,http://opendatacommunities.org/id/county-council/staffordshire  
Staffordshire County Council,Headquarters - I.S.P,Acorn Care & Education Ltd Sales,28/09/2022,16611.43,Specialist Childs Res Services,Specialist Childs Res Services,http://opendatacommunities.org/id/county-council/staffordshire  
Staffordshire County Council,IF-I.S.P.,Acorn Care & Education Ltd Sales,28/09/2022,23100.00,Specialist Childs Res Services,Specialist Childs Res Services,http://opendatacommunities.org/id/county-council/staffordshire  
Staffordshire County Council,Headquarters - I.S.P,Acorn Care & Education Ltd Sales,28/09/2022,16043.14,Specialist Childs Res Services,Specialist Childs Res Services,http://opendatacommunities.org/id/county-council/staffordshire  
Staffordshire County Council,Headquarters - I.S.P,Acorn Care & Education Ltd Sales,28/09/2022,32028.57,Specialist Childs Res Services,Specialist Childs Res Services,http://opendatacommunities.org/id/county-council/staffordshire  
Staffordshire County Council,Headquarters - I.S.P,ACORN FOSTERING SERVICES LTD,28/09/2022,3257.14,Social Services Oth Local Auth,Social Services Oth Local Auth,http://opendatacommunities.org/id/county-council/staffordshire  
Staffordshire County Council,Headquarters - I.S.P,ACORN FOSTERING SERVICES LTD,28/09/2022,3218.57,Social Services Oth Local Auth,Social Services Oth Local Auth,http://opendatacommunities.org/id/county-council/staffordshire  
Staffordshire County Council,Headquarters - I.S.P,ACORN FOSTERING SERVICES LTD,28/09/2022,3342.86,Social Services Oth Local Auth,Social Services Oth Local Auth,http://opendatacommunities.org/id/county-council/staffordshire  
Staffordshire County Council,Headquarters - I.S.P,Acorn House Fostering,28/09/2022,9198.68,Social Services Oth Local Auth,Social Services Oth Local Auth,http://opendatacommunities.org/id/county-council/staffordshire  
Staffordshire County Council,ESFA Community Learning,Acorn Training Ltd,09/09/2022,3402.00,Courses,Courses,http://opendatacommunities.org/id/county-council/staffordshire  
Staffordshire County Council,SS Children with Disabilities,Acorns Children's Hospice Trust,13/09/2022,1700.00,S17 FAMILY SUPPORT,S17 FAMILY SUPPORT,http://opendatacommunities.org/id/county-council/staffordshire  
Staffordshire County Council,Tam Children with Disability,Acorns Children's Hospice Trust,30/09/2022,700.00,S17 FAMILY SUPPORT,S17 FAMILY SUPPORT,http://opendatacommunities.org/id/county-council/staffordshire  
Staffordshire County Council,Stafford Invoice Led Phys Disa,Action Deafness,14/09/2022,900.00,Practical Care,Practical Care,http://opendatacommunities.org/id/county-council/staffordshire  
Staffordshire County Council,MCA / DoLs / AMHP,Action First Assessments Ltd,07/09/2022,840.00,Independent Investigations,Independent Investigations,http://opendatacommunities.org/id/county-council/staffordshire  
Staffordshire County Council,MCA / DoLs / AMHP,Action First Assessments Ltd,07/09/2022,840.00,Independent Investigations,Independent Investigations,http://opendatacommunities.org/id/county-council/staffordshire  
Staffordshire County Council,MCA / DoLs / AMHP,Action First Assessments Ltd,07/09/2022,840.00,Independent Investigations,Independent Investigations,http://opendatacommunities.org/id/county-council/staffordshire  
Staffordshire County Council,MCA / DoLs / AMHP,Action First Assessments Ltd,07/09/2022,1680.00,Independent Investigations,Independent Investigations,http://opendatacommunities.org/id/county-council/staffordshire  
Staffordshire County Council,MCA / DoLs / AMHP,Action First Assessments Ltd,07/09/2022,840.00,Independent Investigations,Independent Investigations,http://opendatacommunities.org/id/county-council/staffordshire  
Staffordshire County Council,MCA / DoLs / AMHP,Action First Assessments Ltd,07/09/2022,840.00,Independent Investigations,Independent Investigations,http://opendatacommunities.org/id/county-council/staffordshire  
Staffordshire County Council,MCA / DoLs / AMHP,Action First Assessments Ltd,07/09/2022,1260.00,Independent Investigations,Independent Investigations,http://opendatacommunities.org/id/county-council/staffordshire  
Staffordshire County Council,MCA / DoLs / AMHP,Action First Assessments Ltd,21/09/2022,3360.00,Independent Investigations,Independent Investigations,http://opendatacommunities.org/id/county-council/staffordshire  
Staffordshire County Council,MCA / DoLs / AMHP,Action First Assessments Ltd,21/09/2022,1680.00,Independent Investigations,Independent Investigations,http://opendatacommunities.org/id/county-council/staffordshire  
Staffordshire County Council,MCA / DoLs / AMHP,Action First Assessments Ltd,21/09/2022,840.00,Independent Investigations,Independent Investigations,http://opendatacommunities.org/id/county-council/staffordshire  
Staffordshire County Council,MCA / DoLs / AMHP,Action First Assessments Ltd,21/09/2022,2100.00,Independent Investigations,Independent Investigations,http://opendatacommunities.org/id/county-council/staffordshire  
Staffordshire County Council,MCA / DoLs / AMHP,Action First Assessments Ltd,21/09/2022,840.00,Independent Investigations,Independent Investigations,http://opendatacommunities.org/id/county-council/staffordshire  
Staffordshire County Council,MCA / DoLs / AMHP,Action First Assessments Ltd,21/09/2022,840.00,Independent Investigations,Independent Investigations,http://opendatacommunities.org/id/county-council/staffordshire  
Staffordshire County Council,MCA / DoLs / AMHP,Action First Assessments Ltd,21/09/2022,840.00,Independent Investigations,Independent Investigations,http://opendatacommunities.org/id/county-council/staffordshire  
Staffordshire County Council,MCA / DoLs / AMHP,Action First Assessments Ltd,21/09/2022,1680.00,Independent Investigations,Independent Investigations,http://opendatacommunities.org/id/county-council/staffordshire  
Staffordshire County Council,MCA / DoLs / AMHP,Action First Assessments Ltd,21/09/2022,840.00,Independent Investigations,Independent Investigations,http://opendatacommunities.org/id/county-council/staffordshire  
Staffordshire County Council,MCA / DoLs / AMHP,Action First Assessments Ltd,21/09/2022,1260.00,Independent Investigations,Independent Investigations,http://opendatacommunities.org/id/county-council/staffordshire  
Staffordshire County Council,MCA / DoLs / AMHP,Action First Assessments Ltd,21/09/2022,2100.00,Independent Investigations,Independent Investigations,http://opendatacommunities.org/id/county-council/staffordshire  
Staffordshire County Council,MCA / DoLs / AMHP,Action First Assessments Ltd,21/09/2022,2100.00,Independent Investigations,Independent Investigations,http://opendatacommunities.org/id/county-council/staffordshire  
Staffordshire County Council,MCA / DoLs / AMHP,Action First Assessments Ltd,21/09/2022,2100.00,Independent Investigations,Independent Investigations,http://opendatacommunities.org/id/county-council/staffordshire  
Staffordshire County Council,MCA / DoLs / AMHP,Action First Assessments Ltd,29/09/2022,840.00,Independent Investigations,Independent Investigations,http://opendatacommunities.org/id/county-council/staffordshire  
Staffordshire County Council,MCA / DoLs / AMHP,Action First Assessments Ltd,29/09/2022,1260.00,Independent Investigations,Independent Investigations,http://opendatacommunities.org/id/county-council/staffordshire  
Staffordshire County Council,MCA / DoLs / AMHP,Action First Assessments Ltd,29/09/2022,1680.00,Independent Investigations,Independent Investigations,http://opendatacommunities.org/id/county-council/staffordshire  
Staffordshire County Council,MCA / DoLs / AMHP,Action First Assessments Ltd,28/09/2022,840.00,Independent Investigations,Independent Investigations,http://opendatacommunities.org/id/county-council/staffordshire  
Staffordshire County Council,MCA / DoLs / AMHP,Action First Assessments Ltd,28/09/2022,2100.00,Independent Investigations,Independent Investigations,http://opendatacommunities.org/id/county-council/staffordshire  
Staffordshire County Council,MCA / DoLs / AMHP,Action First Assessments Ltd,29/09/2022,840.00,Independent Investigations,Independent Investigations,http://opendatacommunities.org/id/county-council/staffordshire  
Staffordshire County Council,MCA / DoLs / AMHP,Action First Assessments Ltd,29/09/2022,840.00,Independent Investigations,Independent Investigations,http://opendatacommunities.org/id/county-council/staffordshire  
Staffordshire County Council,MCA / DoLs / AMHP,Action First Assessments Ltd,29/09/2022,840.00,Independent Investigations,Independent Investigations,http://opendatacommunities.org/id/county-council/staffordshire  
Staffordshire County Council,MCA / DoLs / AMHP,Action First Assessments Ltd,29/09/2022,1680.00,Independent Investigations,Independent Investigations,http://opendatacommunities.org/id/county-council/staffordshire  
Staffordshire County Council,MCA / DoLs / AMHP,Action First Assessments Ltd,16/09/2022,1260.00,Independent Investigations,Independent Investigations,http://opendatacommunities.org/id/county-council/staffordshire  
Staffordshire County Council,IF-I.S.P.,Action for Children,28/09/2022,17043.43,Specialist Childs Res Services,Specialist Childs Res Services,http://opendatacommunities.org/id/county-council/staffordshire  
Staffordshire County Council,CD Commissioning Team,Action for Children Services Ltd,02/09/2022,768.00,OTHER HIRED SERVICES,OTHER HIRED SERVICES,http://opendatacommunities.org/id/county-council/staffordshire  
Staffordshire County Council,CD Commissioning Team,Action for Children Services Ltd,09/09/2022,159890.77,OTHER HIRED SERVICES,OTHER HIRED SERVICES,http://opendatacommunities.org/id/county-council/staffordshire  
Staffordshire County Council,Independent School Fee Special,Active Resilience Ltd ,07/09/2022,3273.00,Fees to Independent Schools,Fees to Independent Schools,http://opendatacommunities.org/id/county-council/staffordshire  
Staffordshire County Council,Specialist Assessment,ADVANCED CHILD CARE ASSESSMENTS LTD,08/09/2022,1800.00,Prev Supp Legal Costs,Prev Supp Legal Costs,http://opendatacommunities.org/id/county-council/staffordshire  
Staffordshire County Council,Specialist Assessment,ADVANCED CHILD CARE ASSESSMENTS LTD,13/09/2022,2601.72,Prev Supp Legal Costs,Prev Supp Legal Costs,http://opendatacommunities.org/id/county-council/staffordshire  
Staffordshire County Council,Specialist Assessment,ADVANCED CHILD CARE ASSESSMENTS LTD,21/09/2022,792.00,Prev Supp Legal Costs,Prev Supp Legal Costs,http://opendatacommunities.org/id/county-council/staffordshire  
Staffordshire County Council,Specialist Assessment,ADVANCED CHILD CARE ASSESSMENTS LTD,28/09/2022,3474.00,Prev Supp Legal Costs,Prev Supp Legal Costs,http://opendatacommunities.org/id/county-council/staffordshire  
Staffordshire County Council,Specialist Assessment,ADVANCED CHILD CARE ASSESSMENTS LTD,28/09/2022,598.80,Prev Supp Legal Costs,Prev Supp Legal Costs,http://opendatacommunities.org/id/county-council/staffordshire  
Staffordshire County Council,Specialist Assessment,ADVANCED CHILD CARE ASSESSMENTS LTD,28/09/2022,2121.78,Prev Supp Legal Costs,Prev Supp Legal Costs,http://opendatacommunities.org/id/county-council/staffordshire  
Staffordshire County Council,Think 2 Project,Adventure Farm Day Nursery Ltd,12/09/2022,1009.22,Awards Funded Childcare Places,Awards Funded Childcare Places,http://opendatacommunities.org/id/county-council/staffordshire  
Staffordshire County Council,Nursery Education Grant,Adventure Farm Day Nursery Ltd,12/09/2022,8560.47,Grants Nursery Education Pymnt,Grants Nursery Education Pymnt,http://opendatacommunities.org/id/county-council/staffordshire  
Staffordshire County Council,Loxley Hall School,Aero Executive (Midlands) Ltd,08/09/2022,13865.68,Home School Contract Vehicles,Home School Contract Vehicles,http://opendatacommunities.org/id/county-council/staffordshire  
Staffordshire County Council,Cannock Chase LD Team,Affinity Trust Ltd,09/09/2022,3587.22,Supported Group Care,Supported Group Care,http://opendatacommunities.org/id/county-council/staffordshire  
Staffordshire County Council,Moorlands LD Team,Affinity Trust Ltd,09/09/2022,2164.38,Supported Group Care,Supported Group Care,http://opendatacommunities.org/id/county-council/staffordshire  
Staffordshire County Council,Cannock Chase LD Team,Affinity Trust Ltd,09/09/2022,1956.56,Supported Group Care,Supported Group Care,http://opendatacommunities.org/id/county-council/staffordshire  
Staffordshire County Council,Cannock Chase LD Team,Affinity Trust Ltd,09/09/2022,2050.84,Supported Group Care,Supported Group Care,http://opendatacommunities.org/id/county-council/staffordshire  
Staffordshire County Council,Stafford LD Team,Affinity Trust Ltd,09/09/2022,1901.06,Supported Group Care,Supported Group Care,http://opendatacommunities.org/id/county-council/staffordshire  
Staffordshire County Council,S Staffs LD Team,Affinity Trust Ltd,09/09/2022,1731.04,Supported Group Care,Supported Group Care,http://opendatacommunities.org/id/county-council/staffordshire  
Staffordshire County Council,S Staffs LD Team,Affinity Trust Ltd,09/09/2022,2343.42,Supported Group Care,Supported Group Care,http://opendatacommunities.org/id/county-council/staffordshire  
Staffordshire County Council,S Staffs LD Team,Affinity Trust Ltd,09/09/2022,2565.54,Supported Group Care,Supported Group Care,http://opendatacommunities.org/id/county-council/staffordshire  
Staffordshire County Council,Moorlands LD Team,Affinity Trust Ltd,09/09/2022,2678.18,Supported Group Care,Supported Group Care,http://opendatacommunities.org/id/county-council/staffordshire  
Staffordshire County Council,Tamworth LD Team,Affinity Trust Ltd,09/09/2022,1811.70,Supported Group Care,Supported Group Care,http://opendatacommunities.org/id/county-council/staffordshire  
Staffordshire County Council,E Staffs LD Team,Affinity Trust Ltd,09/09/2022,1808.72,Supported Group Care,Supported Group Care,http://opendatacommunities.org/id/county-council/staffordshire  
Staffordshire County Council,Cannock Chase LD Team,Affinity Trust Ltd,09/09/2022,1958.58,Supported Group Care,Supported Group Care,http://opendatacommunities.org/id/county-council/staffordshire  
Staffordshire County Council,Moorlands LD Team,Affinity Trust Ltd,09/09/2022,4640.32,Supported Group Care,Supported Group Care,http://opendatacommunities.org/id/county-council/staffordshire  
Staffordshire County Council,Stafford LD Team,Affinity Trust Ltd,09/09/2022,18453.34,Supported Group Care,Supported Group Care,http://opendatacommunities.org/id/county-council/staffordshire  
Staffordshire County Council,Cannock Chase LD Team,Affinity Trust Ltd,26/09/2022,3587.22,Supported Group Care,Supported Group Care,http://opendatacommunities.org/id/county-council/staffordshire  
Staffordshire County Council,Cannock Chase LD Team,Affinity Trust Ltd,26/09/2022,1311.50,Supported Group Care,Supported Group Care,http://opendatacommunities.org/id/county-council/staffordshire  
Staffordshire County Council,Cannock Chase LD Team,Affinity Trust Ltd,26/09/2022,1956.56,Supported Group Care,Supported Group Care,http://opendatacommunities.org/id/county-council/staffordshire  
Staffordshire County Council,Cannock Chase LD Team,Affinity Trust Ltd,26/09/2022,1410.78,Supported Group Care,Supported Group Care,http://opendatacommunities.org/id/county-council/staffordshire  
Staffordshire County Council,Stafford LD Team,Affinity Trust Ltd,26/09/2022,1901.06,Supported Group Care,Supported Group Care,http://opendatacommunities.org/id/county-council/staffordshire  
Staffordshire County Council,Stafford LD Team,Affinity Trust Ltd,26/09/2022,2301.40,Supported Group Care,Supported Group Care,http://opendatacommunities.org/id/county-council/staffordshire  
Staffordshire County Council,Cannock Chase LD Team,Affinity Trust Ltd,26/09/2022,2208.26,Supported Group Care,Supported Group Care,http://opendatacommunities.org/id/county-council/staffordshire  
Staffordshire County Council,Cannock Chase LD Team,Affinity Trust Ltd,26/09/2022,2205.14,Supported Group Care,Supported Group Care,http://opendatacommunities.org/id/county-council/staffordshire  
Staffordshire County Council,S Staffs LD Team,Affinity Trust Ltd,26/09/2022,2343.42,Supported Group Care,Supported Group Care,http://opendatacommunities.org/id/county-council/staffordshire  
Staffordshire County Council,S Staffs LD Team,Affinity Trust Ltd,26/09/2022,2565.54,Supported Group Care,Supported Group Care,http://opendatacommunities.org/id/county-council/staffordshire  
Staffordshire County Council,Moorlands LD Team,Affinity Trust Ltd,26/09/2022,2946.50,Supported Group Care,Supported Group Care,http://opendatacommunities.org/id/county-council/staffordshire  
Staffordshire County Council,Moorlands LD Team,Affinity Trust Ltd,26/09/2022,2678.18,Supported Group Care,Supported Group Care,http://opendatacommunities.org/id/county-council/staffordshire  
Staffordshire County Council,Cannock Chase LD Team,Affinity Trust Ltd,26/09/2022,1958.58,Supported Group Care,Supported Group Care,http://opendatacommunities.org/id/county-council/staffordshire  
Staffordshire County Council,Moorlands LD Team,Affinity Trust Ltd,26/09/2022,4640.32,Supported Group Care,Supported Group Care,http://opendatacommunities.org/id/county-council/staffordshire  
Staffordshire County Council,Cannock Chase LD Team,Affinity Trust Ltd,26/09/2022,1977.02,Supported Group Care,Supported Group Care,http://opendatacommunities.org/id/county-council/staffordshire  
Staffordshire County Council,Spot Hire,AFFORD RENT A CAR,06/09/2022,720.00,CFC Recharge for Vehicles,CFC Recharge for Vehicles,http://opendatacommunities.org/id/county-council/staffordshire  
Staffordshire County Council,Spot Hire,AFFORD RENT A CAR,06/09/2022,720.00,CFC Recharge for Vehicles,CFC Recharge for Vehicles,http://opendatacommunities.org/id/county-council/staffordshire  
Staffordshire County Council,Spot Hire,AFFORD RENT A CAR,16/09/2022,1243.20,CFC Recharge for Vehicles,CFC Recharge for Vehicles,http://opendatacommunities.org/id/county-council/staffordshire  
Staffordshire County Council,Spot Hire,AFFORD RENT A CAR,21/09/2022,1243.20,CFC Recharge for Vehicles,CFC Recharge for Vehicles,http://opendatacommunities.org/id/county-council/staffordshire  
Staffordshire County Council,Spot Hire,AFFORD RENT A CAR,21/09/2022,1243.20,CFC Recharge for Vehicles,CFC Recharge for Vehicles,http://opendatacommunities.org/id/county-council/staffordshire  
Staffordshire County Council,Spot Hire,AFFORD RENT A CAR,23/09/2022,1243.20,CFC Recharge for Vehicles,CFC Recharge for Vehicles,http://opendatacommunities.org/id/county-council/staffordshire  
Staffordshire County Council,Stafford Invoice Led Older Peo,AGE CONCERN STAFFORD & DIST,14/09/2022,16998.40,Day Care,Day Care,http://opendatacommunities.org/id/county-council/staffordshire  
Staffordshire County Council,Stafford Invoice Led Older Peo,AGE CONCERN STAFFORD & DIST,14/09/2022,3207.24,Rental of Vehicles,Rental of Vehicles,http://opendatacommunities.org/id/county-council/staffordshire  
Staffordshire County Council,Stafford Invoice Led Older Peo,AGE CONCERN STAFFORD & DIST,23/09/2022,3292.20,Rental of Vehicles,Rental of Vehicles,http://opendatacommunities.org/id/county-council/staffordshire  
Staffordshire County Council,"Planning, P&D Control",Agile Applications Ltd,08/09/2022,4200.00,COMPUTING OTHER,COMPUTING OTHER,http://opendatacommunities.org/id/county-council/staffordshire  
Staffordshire County Council,"Planning, P&D Control",Agile Applications Ltd,08/09/2022,1440.00,COMPUTING OTHER,COMPUTING OTHER,http://opendatacommunities.org/id/county-council/staffordshire  
Staffordshire County Council,Public Transp Support & Co-ord,Aimee's Travel,28/09/2022,10820.76,Manned Transport - Hire,Manned Transport - Hire,http://opendatacommunities.org/id/county-council/staffordshire  
Staffordshire County Council,Public Transp Support & Co-ord,Aimee's Travel,30/09/2022,1890.00,Payments to Bus Operators,Payments to Bus Operators,http://opendatacommunities.org/id/county-council/staffordshire  
Staffordshire County Council,Concessionary Fare Schemes,Aimee's Travel,15/09/2022,12190.00,Payments to Bus Operators,Payments to Bus Operators,http://opendatacommunities.org/id/county-council/staffordshire  
Staffordshire County Council,Think 2 Project,ALBERT BEAR PLAYGROUP,12/09/2022,5169.18,Awards Funded Childcare Places,Awards Funded Childcare Places,http://opendatacommunities.org/id/county-council/staffordshire  
Staffordshire County Council,Nursery Education Grant,ALBERT BEAR PLAYGROUP,12/09/2022,14023.80,Grants Nursery Education Pymnt,Grants Nursery Education Pymnt,http://opendatacommunities.org/id/county-council/staffordshire  
Staffordshire County Council,RAA Training,Albyfield Ltd,05/09/2022,540.00,Training Resources,Training Resources,http://opendatacommunities.org/id/county-council/staffordshire  
Staffordshire County Council,Nursery Education Grant,Alison Skipper,12/09/2022,1289.72,Grants Nursery Education Pymnt,Grants Nursery Education Pymnt,http://opendatacommunities.org/id/county-council/staffordshire  
Staffordshire County Council,Lichfield Invoice Led Older Pe,ALL HEALTH CARE SERVICES LIMITED,15/09/2022,3321.96,Practical Care,Practical Care,http://opendatacommunities.org/id/county-council/staffordshire  
Staffordshire County Council,Lichfield Invoice Led Older Pe,ALL HEALTH CARE SERVICES LIMITED,15/09/2022,2214.64,Practical Care,Practical Care,http://opendatacommunities.org/id/county-council/staffordshire  
Staffordshire County Council,Lichfield Invoice Led Older Pe,ALL HEALTH CARE SERVICES LIMITED,15/09/2022,2214.64,Practical Care,Practical Care,http://opendatacommunities.org/id/county-council/staffordshire  
Staffordshire County Council,Lichfield Invoice Led Physi Di,ALL HEALTH CARE SERVICES LIMITED,15/09/2022,1319.40,Practical Care,Practical Care,http://opendatacommunities.org/id/county-council/staffordshire  
Staffordshire County Council,Lichfield Invoice Led Physi Di,ALL HEALTH CARE SERVICES LIMITED,15/09/2022,2214.64,Practical Care,Practical Care,http://opendatacommunities.org/id/county-council/staffordshire  
Staffordshire County Council,Tamworth Invoice Led Older Peo,ALL HEALTH CARE SERVICES LIMITED,15/09/2022,1586.20,Practical Care,Practical Care,http://opendatacommunities.org/id/county-council/staffordshire  
Staffordshire County Council,Tamworth Invoice Led Older Peo,ALL HEALTH CARE SERVICES LIMITED,15/09/2022,988.80,Practical Care,Practical Care,http://opendatacommunities.org/id/county-council/staffordshire  
Staffordshire County Council,Stafford Invoice Led Older Peo,ALL HEALTH CARE SERVICES LIMITED,15/09/2022,2833.99,Practical Care,Practical Care,http://opendatacommunities.org/id/county-council/staffordshire  
Staffordshire County Council,Stafford Invoice Led Older Peo,ALL HEALTH CARE SERVICES LIMITED,15/09/2022,2768.30,Practical Care,Practical Care,http://opendatacommunities.org/id/county-council/staffordshire  
Staffordshire County Council,AEN Funding Academies/Free/Col,All Saints C.E.  Primary School,22/09/2022,2986.12,Grants to third parties,Grants to third parties,http://opendatacommunities.org/id/county-council/staffordshire  
Staffordshire County Council,AEN Funding Academies/Free/Col,All Saints C.E. Primary School,22/09/2022,12966.67,Grants to third parties,Grants to third parties,http://opendatacommunities.org/id/county-council/staffordshire  
Staffordshire County Council,Nursery Education Grant,All Saints' CE (A) First Sch,12/09/2022,7653.87,Grants Nursery Education Pymnt,Grants Nursery Education Pymnt,http://opendatacommunities.org/id/county-council/staffordshire  
Staffordshire County Council,AEN Funding Academies/Free/Col,All Saints' CE (A) First Sch,22/09/2022,4705.00,Grants to third parties,Grants to third parties,http://opendatacommunities.org/id/county-council/staffordshire  
Staffordshire County Council,Nursery Education Grant,"All Saints CE First School, Church Leigh",12/09/2022,3086.37,Grants Nursery Education Pymnt,Grants Nursery Education Pymnt,http://opendatacommunities.org/id/county-council/staffordshire  
Staffordshire County Council,AEN Funding Academies/Free/Col,"All Saints CE First School, Church Leigh",22/09/2022,2843.02,Grants to third parties,Grants to third parties,http://opendatacommunities.org/id/county-council/staffordshire  
Staffordshire County Council,Nursery Education Grant,All Saints CofE Academy Denstone,12/09/2022,3947.43,Grants Nursery Education Pymnt,Grants Nursery Education Pymnt,http://opendatacommunities.org/id/county-council/staffordshire  
Staffordshire County Council,HAF Summer 2022,ALL SAINTS KIDS CLUB,20/09/2022,10915.00,OTHER HIRED SERVICES,OTHER HIRED SERVICES,http://opendatacommunities.org/id/county-council/staffordshire  
Staffordshire County Council,Newcastle LD Team,Allendale Residential,02/09/2022,1392.00,Practical Care,Practical Care,http://opendatacommunities.org/id/county-council/staffordshire  
Staffordshire County Council,Newcastle LD Team,Allendale Residential,02/09/2022,873.60,Practical Care,Practical Care,http://opendatacommunities.org/id/county-council/staffordshire  
Staffordshire County Council,Newcastle LD Team,Allendale Residential,02/09/2022,4488.00,Practical Care,Practical Care,http://opendatacommunities.org/id/county-council/staffordshire  
Staffordshire County Council,Newcastle LD Team,Allendale Residential,02/09/2022,1119.60,Practical Care,Practical Care,http://opendatacommunities.org/id/county-council/staffordshire  
Staffordshire County Council,Newcastle LD Team,Allendale Residential,29/09/2022,1392.00,Practical Care,Practical Care,http://opendatacommunities.org/id/county-council/staffordshire  
Staffordshire County Council,Newcastle LD Team,Allendale Residential,29/09/2022,873.60,Practical Care,Practical Care,http://opendatacommunities.org/id/county-council/staffordshire  
Staffordshire County Council,Newcastle LD Team,Allendale Residential,29/09/2022,1119.60,Practical Care,Practical Care,http://opendatacommunities.org/id/county-council/staffordshire  
Staffordshire County Council,IF-I.S.P.,Allesley Children's Care Ltd,28/09/2022,22542.86,Specialist Childs Res Services,Specialist Childs Res Services,http://opendatacommunities.org/id/county-council/staffordshire  
Staffordshire County Council,AEN Funding Academies/Free/Col,ALLEYNES ACADEMY,22/09/2022,65200.86,Grants to third parties,Grants to third parties,http://opendatacommunities.org/id/county-council/staffordshire  
Staffordshire County Council,Moorlands Invoice Led Phys Dis,Allot Healthcare Services Ltd,07/09/2022,787.50,Practical Care,Practical Care,http://opendatacommunities.org/id/county-council/staffordshire  
Staffordshire County Council,Moorlands Invoice Led Older Pe,Allot Healthcare Services Ltd,07/09/2022,700.00,Practical Care,Practical Care,http://opendatacommunities.org/id/county-council/staffordshire  
Staffordshire County Council,Moorlands Invoice Led Older Pe,Allot Healthcare Services Ltd,07/09/2022,700.00,Practical Care,Practical Care,http://opendatacommunities.org/id/county-council/staffordshire  
Staffordshire County Council,Moorlands Invoice Led Older Pe,Allot Healthcare Services Ltd,07/09/2022,700.00,Practical Care,Practical Care,http://opendatacommunities.org/id/county-council/staffordshire  
Staffordshire County Council,Moorlands Invoice Led Older Pe,Allot Healthcare Services Ltd,07/09/2022,600.00,Practical Care,Practical Care,http://opendatacommunities.org/id/county-council/staffordshire  
Staffordshire County Council,Moorlands Invoice Led Phys Dis,Allot Healthcare Services Ltd,09/09/2022,799.50,Practical Care,Practical Care,http://opendatacommunities.org/id/county-council/staffordshire  
Staffordshire County Council,Moorlands Invoice Led Older Pe,Allot Healthcare Services Ltd,09/09/2022,700.00,Practical Care,Practical Care,http://opendatacommunities.org/id/county-council/staffordshire  
Staffordshire County Council,Moorlands Invoice Led Older Pe,Allot Healthcare Services Ltd,09/09/2022,700.00,Practical Care,Practical Care,http://opendatacommunities.org/id/county-council/staffordshire  
Staffordshire County Council,Moorlands Invoice Led Phys Dis,Allot Healthcare Services Ltd,16/09/2022,787.50,Practical Care,Practical Care,http://opendatacommunities.org/id/county-council/staffordshire  
Staffordshire County Council,Moorlands Invoice Led Phys Dis,Allot Healthcare Services Ltd,16/09/2022,799.50,Practical Care,Practical Care,http://opendatacommunities.org/id/county-council/staffordshire  
Staffordshire County Council,Moorlands Invoice Led Phys Dis,Allot Healthcare Services Ltd,16/09/2022,1942.85,Practical Care,Practical Care,http://opendatacommunities.org/id/county-council/staffordshire  
Staffordshire County Council,Moorlands Invoice Led Older Pe,Allot Healthcare Services Ltd,21/09/2022,700.00,Practical Care,Practical Care,http://opendatacommunities.org/id/county-council/staffordshire  
Staffordshire County Council,Moorlands Invoice Led Older Pe,Allot Healthcare Services Ltd,21/09/2022,700.00,Practical Care,Practical Care,http://opendatacommunities.org/id/county-council/staffordshire  
Staffordshire County Council,Moorlands Invoice Led Older Pe,Allot Healthcare Services Ltd,21/09/2022,700.00,Practical Care,Practical Care,http://opendatacommunities.org/id/county-council/staffordshire  
Staffordshire County Council,Moorlands Invoice Led Older Pe,Allot Healthcare Services Ltd,16/09/2022,850.00,Practical Care,Practical Care,http://opendatacommunities.org/id/county-council/staffordshire  
Staffordshire County Council,Moorlands Invoice Led Phys Dis,Allot Healthcare Services Ltd,23/09/2022,800.00,Practical Care,Practical Care,http://opendatacommunities.org/id/county-council/staffordshire  
Staffordshire County Council,Moorlands Invoice Led Phys Dis,Allot Healthcare Services Ltd,23/09/2022,787.50,Practical Care,Practical Care,http://opendatacommunities.org/id/county-council/staffordshire  
Staffordshire County Council,Moorlands Invoice Led Phys Dis,Allot Healthcare Services Ltd,23/09/2022,787.50,Practical Care,Practical Care,http://opendatacommunities.org/id/county-council/staffordshire  
Staffordshire County Council,East Staffs Invoice Led Older ,Allot Healthcare Services Ltd,23/09/2022,559.44,Practical Care,Practical Care,http://opendatacommunities.org/id/county-council/staffordshire  
Staffordshire County Council,East Staffs Invoice Led Older ,Allot Healthcare Services Ltd,23/09/2022,559.44,Practical Care,Practical Care,http://opendatacommunities.org/id/county-council/staffordshire  
Staffordshire County Council,East Staffs Invoice Led Older ,Allot Healthcare Services Ltd,23/09/2022,839.16,Practical Care,Practical Care,http://opendatacommunities.org/id/county-council/staffordshire  
Staffordshire County Council,Moorlands Invoice Led Older Pe,Allot Healthcare Services Ltd,23/09/2022,700.00,Practical Care,Practical Care,http://opendatacommunities.org/id/county-council/staffordshire  
Staffordshire County Council,Moorlands Invoice Led Older Pe,Allot Healthcare Services Ltd,23/09/2022,700.00,Practical Care,Practical Care,http://opendatacommunities.org/id/county-council/staffordshire  
Staffordshire County Council,Moorlands Invoice Led Older Pe,Allot Healthcare Services Ltd,23/09/2022,700.00,Practical Care,Practical Care,http://opendatacommunities.org/id/county-council/staffordshire  
Staffordshire County Council,Moorlands Invoice Led Phys Dis,Allot Healthcare Services Ltd,30/09/2022,800.00,Practical Care,Practical Care,http://opendatacommunities.org/id/county-council/staffordshire  
Staffordshire County Council,Moorlands Invoice Led Phys Dis,Allot Healthcare Services Ltd,30/09/2022,787.50,Practical Care,Practical Care,http://opendatacommunities.org/id/county-council/staffordshire  
Staffordshire County Council,Moorlands Invoice Led Older Pe,Allot Healthcare Services Ltd,30/09/2022,700.00,Practical Care,Practical Care,http://opendatacommunities.org/id/county-council/staffordshire  
Staffordshire County Council,Moorlands Invoice Led Older Pe,Allot Healthcare Services Ltd,30/09/2022,700.00,Practical Care,Practical Care,http://opendatacommunities.org/id/county-council/staffordshire  
Staffordshire County Council,Rowan Contract,Allpay Ltd,28/09/2022,16787.74,COMM CARE DIRECT PAYMENTS,COMM CARE DIRECT PAYMENTS,http://opendatacommunities.org/id/county-council/staffordshire  
Staffordshire County Council,5438 Staffs Place 1&2Tipping S,ALLSORTS OFFICE SUPPLIES LTD,30/09/2022,45909.60,Unallocated Efficiency Savings,Unallocated Efficiency Savings,http://opendatacommunities.org/id/county-council/staffordshire  
Staffordshire County Council,Leek Depot,ALLSORTS OFFICE SUPPLIES LTD,15/09/2022,711.29,General Equipment Purchase,General Equipment Purchase,http://opendatacommunities.org/id/county-council/staffordshire  
Staffordshire County Council,Property Rationalisation MTFS,ALLSORTS OFFICE SUPPLIES LTD,21/09/2022,2716.49,Ext Fees Construction,Ext Fees Construction,http://opendatacommunities.org/id/county-council/staffordshire  
Staffordshire County Council,Property Rationalisation MTFS,ALLSORTS OFFICE SUPPLIES LTD,21/09/2022,1739.34,Ext Fees Construction,Ext Fees Construction,http://opendatacommunities.org/id/county-council/staffordshire  
Staffordshire County Council,Fuel,ALLSTAR BUSINESS SOLUTIONS LTD,07/09/2022,5344.91,Petrol & Oil,Petrol & Oil,http://opendatacommunities.org/id/county-council/staffordshire  
Staffordshire County Council,Fuel,ALLSTAR BUSINESS SOLUTIONS LTD,14/09/2022,4399.25,Petrol & Oil,Petrol & Oil,http://opendatacommunities.org/id/county-council/staffordshire  
Staffordshire County Council,Fuel,ALLSTAR BUSINESS SOLUTIONS LTD,21/09/2022,4250.01,Petrol & Oil,Petrol & Oil,http://opendatacommunities.org/id/county-council/staffordshire  
Staffordshire County Council,Fuel,ALLSTAR BUSINESS SOLUTIONS LTD,28/09/2022,4893.68,Petrol & Oil,Petrol & Oil,http://opendatacommunities.org/id/county-council/staffordshire  
Staffordshire County Council,Chasetown Special School,ALMAR CABS LTD,29/09/2022,41105.32,Home School Contract Vehicles,Home School Contract Vehicles,http://opendatacommunities.org/id/county-council/staffordshire  
Staffordshire County Council,Specialist Assessment,Alpha Biolabs,13/09/2022,964.80,Prev Supp Legal Costs,Prev Supp Legal Costs,http://opendatacommunities.org/id/county-council/staffordshire  
Staffordshire County Council,Specialist Assessment,Alpha Biolabs,28/09/2022,1074.00,Prev Supp Legal Costs,Prev Supp Legal Costs,http://opendatacommunities.org/id/county-council/staffordshire  
Staffordshire County Council,Specialist Assessment,Alpha Biolabs,15/09/2022,541.20,Prev Supp Legal Costs,Prev Supp Legal Costs,http://opendatacommunities.org/id/county-council/staffordshire  
Staffordshire County Council,Specialist Assessment,Alpha Biolabs,20/09/2022,2420.88,Prev Supp Legal Costs,Prev Supp Legal Costs,http://opendatacommunities.org/id/county-council/staffordshire  
Staffordshire County Council,Nursery Education Grant,Alsagers Bank Primary Academy,12/09/2022,13513.50,Grants Nursery Education Pymnt,Grants Nursery Education Pymnt,http://opendatacommunities.org/id/county-council/staffordshire  
Staffordshire County Council,AEN Funding Academies/Free/Col,Alsagers Bank Primary Academy,22/09/2022,18602.87,Grants to third parties,Grants to third parties,http://opendatacommunities.org/id/county-council/staffordshire  
Staffordshire County Council,Nursery Education Grant,Amanda Day,12/09/2022,670.95,Grants Nursery Education Pymnt,Grants Nursery Education Pymnt,http://opendatacommunities.org/id/county-council/staffordshire  
Staffordshire County Council,Fost Central & Approval,Amanda Newins,29/09/2022,925.00,Fostering Special Guardianship,Fostering Special Guardianship,http://opendatacommunities.org/id/county-council/staffordshire  
Staffordshire County Council,Nursery Education Grant,Amanda Smith,12/09/2022,1226.88,Grants Nursery Education Pymnt,Grants Nursery Education Pymnt,http://opendatacommunities.org/id/county-council/staffordshire  
Staffordshire County Council,Moorlands LD Team,Ambient Support Limited,09/09/2022,1719.78,Supported Group Care,Supported Group Care,http://opendatacommunities.org/id/county-council/staffordshire  
Staffordshire County Council,E Staffs LD Team,Ambient Support Limited,09/09/2022,2714.54,Supported Group Care,Supported Group Care,http://opendatacommunities.org/id/county-council/staffordshire  
Staffordshire County Council,Moorlands LD Team,Ambient Support Limited,09/09/2022,4147.64,Supported Group Care,Supported Group Care,http://opendatacommunities.org/id/county-council/staffordshire  
Staffordshire County Council,E Staffs LD Team,Ambient Support Limited,09/09/2022,2478.50,Supported Group Care,Supported Group Care,http://opendatacommunities.org/id/county-council/staffordshire  
Staffordshire County Council,Moorlands LD Team,Ambient Support Limited,26/09/2022,1719.78,Supported Group Care,Supported Group Care,http://opendatacommunities.org/id/county-council/staffordshire  
Staffordshire County Council,E Staffs LD Team,Ambient Support Limited,26/09/2022,2714.54,Supported Group Care,Supported Group Care,http://opendatacommunities.org/id/county-council/staffordshire  
Staffordshire County Council,Moorlands LD Team,Ambient Support Limited,26/09/2022,4147.64,Supported Group Care,Supported Group Care,http://opendatacommunities.org/id/county-council/staffordshire  
Staffordshire County Council,E Staffs LD Team,Ambient Support Limited,26/09/2022,2478.50,Supported Group Care,Supported Group Care,http://opendatacommunities.org/id/county-council/staffordshire  
Staffordshire County Council,Moorlands LD Team,Ambient Support Limited,26/09/2022,2285.40,Supported Group Care,Supported Group Care,http://opendatacommunities.org/id/county-council/staffordshire  
Staffordshire County Council,E Staffs LD Team,Ambient Support Limited,26/09/2022,2737.22,Supported Group Care,Supported Group Care,http://opendatacommunities.org/id/county-council/staffordshire  
Staffordshire County Council,Moorlands LD Team,Ambient Support Limited,26/09/2022,1474.04,Supported Group Care,Supported Group Care,http://opendatacommunities.org/id/county-council/staffordshire  
Staffordshire County Council,Moorlands LD Team,Ambient Support Limited,26/09/2022,2149.12,Supported Group Care,Supported Group Care,http://opendatacommunities.org/id/county-council/staffordshire  
Staffordshire County Council,E Staffs LD Team,Ambient Support Limited,26/09/2022,2020.70,Supported Group Care,Supported Group Care,http://opendatacommunities.org/id/county-council/staffordshire  
Staffordshire County Council,E Staffs LD Team,Ambient Support Limited,26/09/2022,2354.08,Supported Group Care,Supported Group Care,http://opendatacommunities.org/id/county-council/staffordshire  
Staffordshire County Council,E Staffs LD Team,Ambient Support Limited,26/09/2022,3353.68,Supported Group Care,Supported Group Care,http://opendatacommunities.org/id/county-council/staffordshire  
Staffordshire County Council,E Staffs LD Team,Ambient Support Limited,26/09/2022,2089.42,Supported Group Care,Supported Group Care,http://opendatacommunities.org/id/county-council/staffordshire  
Staffordshire County Council,Highway Indirect Cost/Overhead,AMEY LG LTD,20/09/2022,6097330.99,Gen highway Maint bud only,Gen highway Maint bud only,http://opendatacommunities.org/id/county-council/staffordshire  
Staffordshire County Council,S Staffs Invoice Led Physic Di,AMG NURSING & CARE SERVICES,05/09/2022,8921.52,Practical Care,Practical Care,http://opendatacommunities.org/id/county-council/staffordshire  
Staffordshire County Council,S Staffs Invoice Led Physic Di,AMG NURSING & CARE SERVICES,08/09/2022,47019.41,Practical Care,Practical Care,http://opendatacommunities.org/id/county-council/staffordshire  
Staffordshire County Council,Think 2 Project,AMINGTON & DISTRICT PRE SCHOOL,12/09/2022,1206.14,Awards Funded Childcare Places,Awards Funded Childcare Places,http://opendatacommunities.org/id/county-council/staffordshire  
Staffordshire County Council,Nursery Education Grant,AMINGTON & DISTRICT PRE SCHOOL,12/09/2022,14003.01,Grants Nursery Education Pymnt,Grants Nursery Education Pymnt,http://opendatacommunities.org/id/county-council/staffordshire  
Staffordshire County Council,Staffordshire Wood Fuel,AMP Clean Energy,01/09/2022,4549.62,Wood Chip,Wood Chip,http://opendatacommunities.org/id/county-council/staffordshire  
Staffordshire County Council,Think 2 Project,Amy Bardsley,12/09/2022,787.68,Awards Funded Childcare Places,Awards Funded Childcare Places,http://opendatacommunities.org/id/county-council/staffordshire  
Staffordshire County Council,Nursery Education Grant,Amy Bardsley,12/09/2022,3567.18,Grants Nursery Education Pymnt,Grants Nursery Education Pymnt,http://opendatacommunities.org/id/county-council/staffordshire  
Staffordshire County Council,Headquarters - I.S.P,Anchor Fostercare,28/09/2022,3636.43,Social Services Oth Local Auth,Social Services Oth Local Auth,http://opendatacommunities.org/id/county-council/staffordshire  
Staffordshire County Council,Rowley Farm Hamstall Ridware,ANDERSONS,16/09/2022,1167.00,CONSULTANT FEES,CONSULTANT FEES,http://opendatacommunities.org/id/county-council/staffordshire  
Staffordshire County Council,Early Years Prof Dev Programme,Angela Duggan,28/09/2022,758.34,Grants to third parties,Grants to third parties,http://opendatacommunities.org/id/county-council/staffordshire  
Staffordshire County Council,Nursery Education Grant,Anglesey Nursery,12/09/2022,30570.75,Grants Nursery Education Pymnt,Grants Nursery Education Pymnt,http://opendatacommunities.org/id/county-council/staffordshire  
Staffordshire County Council,AEN Funding Academies/Free/Col,Anglesey Primary Academy,22/09/2022,31892.92,Grants to third parties,Grants to third parties,http://opendatacommunities.org/id/county-council/staffordshire  
Staffordshire County Council,AEN Funding Academies/Free/Col,Ankermoor Primary Academy,22/09/2022,3306.04,Grants to third parties,Grants to third parties,http://opendatacommunities.org/id/county-council/staffordshire  
Staffordshire County Council,Stat-OOC transport,,01/09/2022,580.36,Personal Travel Budgets,Personal Travel Budgets,http://opendatacommunities.org/id/county-council/staffordshire  
Staffordshire County Council,AEN Funding Academies/Free/Col,Anson CE Primary,22/09/2022,13881.56,Grants to third parties,Grants to third parties,http://opendatacommunities.org/id/county-council/staffordshire  
Staffordshire County Council,Action Projects,Antler Wildling Illustration,09/09/2022,5000.00,CONSULTANT FEES,CONSULTANT FEES,http://opendatacommunities.org/id/county-council/staffordshire  
Staffordshire County Council,Tamworth LD Team,Apollo Care ,09/09/2022,3096.88,Supported Group Care,Supported Group Care,http://opendatacommunities.org/id/county-council/staffordshire  
Staffordshire County Council,BLT MH Team U65,Apollo Care ,09/09/2022,2351.98,Supported Group Care,Supported Group Care,http://opendatacommunities.org/id/county-council/staffordshire  
Staffordshire County Council,Cannock MH Team U65,Apollo Care ,09/09/2022,3482.96,Supported Group Care,Supported Group Care,http://opendatacommunities.org/id/county-council/staffordshire  
Staffordshire County Council,Tamworth LD Team,Apollo Care ,26/09/2022,3096.88,Supported Group Care,Supported Group Care,http://opendatacommunities.org/id/county-council/staffordshire  
Staffordshire County Council,BLT MH Team U65,Apollo Care ,26/09/2022,2351.98,Supported Group Care,Supported Group Care,http://opendatacommunities.org/id/county-council/staffordshire  
Staffordshire County Council,Cannock MH Team U65,Apollo Care ,26/09/2022,3482.96,Supported Group Care,Supported Group Care,http://opendatacommunities.org/id/county-council/staffordshire  
Staffordshire County Council,Tamworth LD Team,Applewood Support Ltd,16/09/2022,1475.00,Practical Care,Practical Care,http://opendatacommunities.org/id/county-council/staffordshire  
Staffordshire County Council,Contact Centre,APS Group,28/09/2022,9178.46,Other contribs to provisions,Other contribs to provisions,http://opendatacommunities.org/id/county-council/staffordshire  
Staffordshire County Council,HWRC Mobilisation,Aquaforce Special Waste Ltd,27/09/2022,33274.44,WASTE MANAGEMENT,WASTE MANAGEMENT,http://opendatacommunities.org/id/county-council/staffordshire  
Staffordshire County Council,COVID 19 Infection Control,Aquarate Limited,08/09/2022,66000.00,COMM CARE DIRECT PAYMENTS,COMM CARE DIRECT PAYMENTS,http://opendatacommunities.org/id/county-council/staffordshire  
Staffordshire County Council,Independent School Fee Special,ARC SCHOOL,27/09/2022,19270.00,Fees to Independent Schools,Fees to Independent Schools,http://opendatacommunities.org/id/county-council/staffordshire  
Staffordshire County Council,Independent School Fee Special,ARC SCHOOL,27/09/2022,9000.00,Fees to Independent Schools,Fees to Independent Schools,http://opendatacommunities.org/id/county-council/staffordshire  
Staffordshire County Council,Independent School Fee Special,ARC SCHOOL,27/09/2022,17916.66,Fees to Independent Schools,Fees to Independent Schools,http://opendatacommunities.org/id/county-council/staffordshire  
Staffordshire County Council,Moorlands LD Team,Archangel Enterprises Ltd,09/09/2022,8596.00,Supported Group Care,Supported Group Care,http://opendatacommunities.org/id/county-council/staffordshire  
Staffordshire County Council,Think 2 Project,ARGYLE PRE SCHOOL NURSERY,12/09/2022,2010.24,Awards Funded Childcare Places,Awards Funded Childcare Places,http://opendatacommunities.org/id/county-council/staffordshire  
Staffordshire County Council,Nursery Education Grant,ARGYLE PRE SCHOOL NURSERY,12/09/2022,8266.86,Grants Nursery Education Pymnt,Grants Nursery Education Pymnt,http://opendatacommunities.org/id/county-council/staffordshire  
Staffordshire County Council,114 Douglas Road,ARJO UK LTD,01/09/2022,1368.67,Disabled Bathing Equipment,Disabled Bathing Equipment,http://opendatacommunities.org/id/county-council/staffordshire  
Staffordshire County Council,Public Transp Support & Co-ord,ARRIVA MIDLANDS LTD,09/09/2022,594.00,Payments to Bus Operators,Payments to Bus Operators,http://opendatacommunities.org/id/county-council/staffordshire  
Staffordshire County Council,Public Transp Support & Co-ord,ARRIVA MIDLANDS LTD,15/09/2022,820.26,Payments to Bus Operators,Payments to Bus Operators,http://opendatacommunities.org/id/county-council/staffordshire  
Staffordshire County Council,Concessionary Fare Schemes,ARRIVA MIDLANDS LTD,15/09/2022,121501.00,Payments to Bus Operators,Payments to Bus Operators,http://opendatacommunities.org/id/county-council/staffordshire  
Staffordshire County Council,1331 114 Douglas Rd Newcastle ,ARROW COUNTY SUPPLIES,16/09/2022,599.23,Cleaning Materials supplies,Cleaning Materials supplies,http://opendatacommunities.org/id/county-council/staffordshire  
Staffordshire County Council,Stat-OOC transport,AS Travels,28/09/2022,1181.62,Home School Contract Vehicles,Home School Contract Vehicles,http://opendatacommunities.org/id/county-council/staffordshire  
Staffordshire County Council,Hugo Meynell Primary,Ashwell Biomass & Heating Ltd,28/09/2022,570.00,Repair and Maint Equipment NPS,Repair and Maint Equipment NPS,http://opendatacommunities.org/id/county-council/staffordshire  
Staffordshire County Council,ES Assess & Staying Together,ASIST,21/09/2022,720.30,S17 FAMILY SUPPORT,S17 FAMILY SUPPORT,http://opendatacommunities.org/id/county-council/staffordshire  
Staffordshire County Council,Stock Management,Askews & Holts Library Services Ltd,06/09/2022,610.08,Books,Books,http://opendatacommunities.org/id/county-council/staffordshire  
Staffordshire County Council,Stock Management,Askews & Holts Library Services Ltd,23/09/2022,771.03,Books,Books,http://opendatacommunities.org/id/county-council/staffordshire  
Staffordshire County Council,Prison Libraries,Askews & Holts Library Services Ltd,23/09/2022,777.20,Books,Books,http://opendatacommunities.org/id/county-council/staffordshire  
Staffordshire County Council,Prison Libraries,Askews & Holts Library Services Ltd,23/09/2022,789.01,Books,Books,http://opendatacommunities.org/id/county-council/staffordshire  
Staffordshire County Council,Prison Libraries,Askews & Holts Library Services Ltd,23/09/2022,758.78,Books,Books,http://opendatacommunities.org/id/county-council/staffordshire  
Staffordshire County Council,Prison Libraries,Askews & Holts Library Services Ltd,27/09/2022,730.28,Books,Books,http://opendatacommunities.org/id/county-council/staffordshire  
Staffordshire County Council,Prison Libraries,Askews & Holts Library Services Ltd,27/09/2022,795.35,Books,Books,http://opendatacommunities.org/id/county-council/staffordshire  
Staffordshire County Council,Prison Libraries,Askews & Holts Library Services Ltd,27/09/2022,507.09,Books,Books,http://opendatacommunities.org/id/county-council/staffordshire  
Staffordshire County Council,Stock Management,Askews & Holts Library Services Ltd,27/09/2022,777.79,Books,Books,http://opendatacommunities.org/id/county-council/staffordshire  
Staffordshire County Council,Prison Libraries,Askews & Holts Library Services Ltd,29/09/2022,650.87,Books,Books,http://opendatacommunities.org/id/county-council/staffordshire  
Staffordshire County Council,Afghan Bridging Accommodation,ASM SPORTS UK LTD,23/09/2022,960.00,General Grants,General Grants,http://opendatacommunities.org/id/county-council/staffordshire  
Staffordshire County Council,HAF Summer 2022,ASM SPORTS UK LTD,27/09/2022,67345.00,OTHER HIRED SERVICES,OTHER HIRED SERVICES,http://opendatacommunities.org/id/county-council/staffordshire  
Staffordshire County Council,Moorlands LD Team,ASPECTS Staffordshire Ltd,09/09/2022,1335.56,Supported Group Care,Supported Group Care,http://opendatacommunities.org/id/county-council/staffordshire  
Staffordshire County Council,Moorlands LD Team,ASPECTS Staffordshire Ltd,26/09/2022,1335.56,Supported Group Care,Supported Group Care,http://opendatacommunities.org/id/county-council/staffordshire  
Staffordshire County Council,Moorlands LD Team,Aspects Staffordshire Ltd,01/09/2022,620.50,Practical Care,Practical Care,http://opendatacommunities.org/id/county-council/staffordshire  
Staffordshire County Council,Moorlands LD Team,Aspects Staffordshire Ltd,30/09/2022,1028.50,Practical Care,Practical Care,http://opendatacommunities.org/id/county-council/staffordshire  
Staffordshire County Council,Stafford LD Team,Aspire (Stafford) Ltd,29/09/2022,612.00,Day Care,Day Care,http://opendatacommunities.org/id/county-council/staffordshire  
Staffordshire County Council,Stafford LD Team,Aspire (Stafford) Ltd,29/09/2022,707.04,Day Care,Day Care,http://opendatacommunities.org/id/county-council/staffordshire  
Staffordshire County Council,Stafford LD Team,Aspire (Stafford) Ltd,29/09/2022,612.00,Day Care,Day Care,http://opendatacommunities.org/id/county-council/staffordshire  
Staffordshire County Council,Stafford LD Team,Aspire (Stafford) Ltd,29/09/2022,1048.00,Day Care,Day Care,http://opendatacommunities.org/id/county-council/staffordshire  
Staffordshire County Council,Think 2 Project,ASQUITH NURSERIES LTD,12/09/2022,1723.06,Awards Funded Childcare Places,Awards Funded Childcare Places,http://opendatacommunities.org/id/county-council/staffordshire  
Staffordshire County Council,Nursery Education Grant,ASQUITH NURSERIES LTD,12/09/2022,20317.82,Grants Nursery Education Pymnt,Grants Nursery Education Pymnt,http://opendatacommunities.org/id/county-council/staffordshire  
Staffordshire County Council,"Planning, P&D Control",Astun Technology Ltd,06/09/2022,3150.00,COMPUTING OTHER,COMPUTING OTHER,http://opendatacommunities.org/id/county-council/staffordshire  
Staffordshire County Council,Capability Fund,Atkins Ltd,07/09/2022,2538.00,CONSULTANT FEES,CONSULTANT FEES,http://opendatacommunities.org/id/county-council/staffordshire  
Staffordshire County Council,Transport Planning,Atkins Ltd,06/09/2022,47580.00,CONSULTANT FEES,CONSULTANT FEES,http://opendatacommunities.org/id/county-council/staffordshire  
Staffordshire County Council,Specialist Assessment,Atkinson Lewis,20/09/2022,2676.00,Prev Supp Legal Costs,Prev Supp Legal Costs,http://opendatacommunities.org/id/county-council/staffordshire  
Staffordshire County Council,Specialist Assessment,Atkinson Lewis,05/09/2022,1034.40,Prev Supp Legal Costs,Prev Supp Legal Costs,http://opendatacommunities.org/id/county-council/staffordshire  
Staffordshire County Council,Specialist Assessment,Atkinson Lewis,05/09/2022,933.60,Prev Supp Legal Costs,Prev Supp Legal Costs,http://opendatacommunities.org/id/county-council/staffordshire  
Staffordshire County Council,Specialist Assessment,Atkinson Lewis,08/09/2022,568.80,Prev Supp Legal Costs,Prev Supp Legal Costs,http://opendatacommunities.org/id/county-council/staffordshire  
Staffordshire County Council,Specialist Assessment,Atkinson Lewis,14/09/2022,892.00,Prev Supp Legal Costs,Prev Supp Legal Costs,http://opendatacommunities.org/id/county-council/staffordshire  
Staffordshire County Council,Specialist Assessment,Atkinson Lewis,16/09/2022,1864.80,Prev Supp Legal Costs,Prev Supp Legal Costs,http://opendatacommunities.org/id/county-council/staffordshire  
Staffordshire County Council,Specialist Assessment,Atkinson Lewis,27/09/2022,5918.40,Prev Supp Legal Costs,Prev Supp Legal Costs,http://opendatacommunities.org/id/county-council/staffordshire  
Staffordshire County Council,Specialist Assessment,Atkinson Lewis,14/09/2022,789.84,Prev Supp Legal Costs,Prev Supp Legal Costs,http://opendatacommunities.org/id/county-council/staffordshire  
Staffordshire County Council,Specialist Assessment,Atkinson Lewis,28/09/2022,2536.80,Prev Supp Legal Costs,Prev Supp Legal Costs,http://opendatacommunities.org/id/county-council/staffordshire  
Staffordshire County Council,Specialist Assessment,Atkinson Lewis,26/09/2022,633.00,Prev Supp Legal Costs,Prev Supp Legal Costs,http://opendatacommunities.org/id/county-council/staffordshire  
Staffordshire County Council,Independent School Fee Special,Aurora ASD Ltd T/A Aurora Hanley Sch,13/09/2022,17705.67,Fees to Independent Schools,Fees to Independent Schools,http://opendatacommunities.org/id/county-council/staffordshire  
Staffordshire County Council,Independent School Fee Special,Aurora ASD Ltd T/A Aurora Hanley Sch,13/09/2022,17705.67,Fees to Independent Schools,Fees to Independent Schools,http://opendatacommunities.org/id/county-council/staffordshire  
Staffordshire County Council,Independent School Fee Special,Aurora ASD Ltd T/A Aurora Hanley Sch,13/09/2022,18413.88,Fees to Independent Schools,Fees to Independent Schools,http://opendatacommunities.org/id/county-council/staffordshire  
Staffordshire County Council,Independent School Fee Special,Aurora ASD Ltd T/A Aurora Hanley Sch,13/09/2022,19410.03,Fees to Independent Schools,Fees to Independent Schools,http://opendatacommunities.org/id/county-council/staffordshire  
Staffordshire County Council,Independent School Fee Special,Aurora ASD Ltd T/A Aurora Hanley Sch,13/09/2022,19410.03,Fees to Independent Schools,Fees to Independent Schools,http://opendatacommunities.org/id/county-council/staffordshire  
Staffordshire County Council,Independent School Fee Special,Aurora ASD Ltd T/A Aurora Hanley Sch,13/09/2022,18608.80,Fees to Independent Schools,Fees to Independent Schools,http://opendatacommunities.org/id/county-council/staffordshire  
Staffordshire County Council,Independent School Fee Special,Aurora ASD Ltd T/A Aurora Hanley Sch,13/09/2022,18920.00,Fees to Independent Schools,Fees to Independent Schools,http://opendatacommunities.org/id/county-council/staffordshire  
Staffordshire County Council,Independent School Fee Special,Aurora ASD Ltd T/A Aurora Hanley Sch,13/09/2022,17705.67,Fees to Independent Schools,Fees to Independent Schools,http://opendatacommunities.org/id/county-council/staffordshire  
Staffordshire County Council,Independent School Fee Special,Aurora ASD Ltd T/A Aurora Hanley Sch,13/09/2022,17705.67,Fees to Independent Schools,Fees to Independent Schools,http://opendatacommunities.org/id/county-council/staffordshire  
Staffordshire County Council,Independent School Fee Special,Aurora ASD Ltd T/A Aurora Hanley Sch,13/09/2022,20666.67,Fees to Independent Schools,Fees to Independent Schools,http://opendatacommunities.org/id/county-council/staffordshire  
Staffordshire County Council,Independent School Fee Special,Aurora ASD Ltd T/A Aurora Hanley Sch,13/09/2022,20666.67,Fees to Independent Schools,Fees to Independent Schools,http://opendatacommunities.org/id/county-council/staffordshire  
Staffordshire County Council,Independent School Fee Special,Aurora ASD Ltd T/A Aurora Hanley Sch,13/09/2022,18608.80,Fees to Independent Schools,Fees to Independent Schools,http://opendatacommunities.org/id/county-council/staffordshire  
Staffordshire County Council,Independent School Fee Special,Aurora ASD Ltd T/A Aurora Hanley Sch,13/09/2022,19410.03,Fees to Independent Schools,Fees to Independent Schools,http://opendatacommunities.org/id/county-council/staffordshire  
Staffordshire County Council,Independent School Fee Special,Aurora ASD Ltd T/A Aurora Hanley Sch,13/09/2022,17705.67,Fees to Independent Schools,Fees to Independent Schools,http://opendatacommunities.org/id/county-council/staffordshire  
Staffordshire County Council,Independent School Fee Special,Aurora ASD Ltd T/A Aurora Hanley Sch,13/09/2022,18413.88,Fees to Independent Schools,Fees to Independent Schools,http://opendatacommunities.org/id/county-council/staffordshire  
Staffordshire County Council,Independent School Fee Special,Aurora ASD Ltd T/A Aurora Hanley Sch,13/09/2022,19410.03,Fees to Independent Schools,Fees to Independent Schools,http://opendatacommunities.org/id/county-council/staffordshire  
Staffordshire County Council,Independent School Fee Special,Aurora ASD Ltd T/A Aurora Hanley Sch,13/09/2022,18413.88,Fees to Independent Schools,Fees to Independent Schools,http://opendatacommunities.org/id/county-council/staffordshire  
Staffordshire County Council,Independent School Fee Special,Aurora ASD Ltd T/A Aurora Hanley Sch,13/09/2022,19866.00,Fees to Independent Schools,Fees to Independent Schools,http://opendatacommunities.org/id/county-council/staffordshire  
Staffordshire County Council,Independent School Fee Special,Aurora ASD Ltd T/A Aurora Hanley Sch,13/09/2022,19866.00,Fees to Independent Schools,Fees to Independent Schools,http://opendatacommunities.org/id/county-council/staffordshire  
Staffordshire County Council,Independent School Fee Special,Aurora ASD Ltd T/A Aurora Hanley Sch,13/09/2022,19410.03,Fees to Independent Schools,Fees to Independent Schools,http://opendatacommunities.org/id/county-council/staffordshire  
Staffordshire County Council,Independent School Fee Special,Aurora ASD Ltd T/A Aurora Hanley Sch,13/09/2022,18413.88,Fees to Independent Schools,Fees to Independent Schools,http://opendatacommunities.org/id/county-council/staffordshire  
Staffordshire County Council,Independent School Fee Special,Aurora ASD Ltd T/A Aurora Hanley Sch,13/09/2022,17705.67,Fees to Independent Schools,Fees to Independent Schools,http://opendatacommunities.org/id/county-council/staffordshire  
Staffordshire County Council,Independent School Fee Special,Aurora ASD Ltd T/A Aurora Hanley Sch,13/09/2022,22274.88,Fees to Independent Schools,Fees to Independent Schools,http://opendatacommunities.org/id/county-council/staffordshire  
Staffordshire County Council,Independent School Fee Special,Aurora ASD Ltd T/A Aurora Hanley Sch,13/09/2022,18920.00,Fees to Independent Schools,Fees to Independent Schools,http://opendatacommunities.org/id/county-council/staffordshire  
Staffordshire County Council,Independent School Fee Special,Aurora ASD Ltd T/A Aurora Hanley Sch,13/09/2022,19410.03,Fees to Independent Schools,Fees to Independent Schools,http://opendatacommunities.org/id/county-council/staffordshire  
Staffordshire County Council,Independent School Fee Special,Aurora ASD Ltd T/A Aurora Hanley Sch,13/09/2022,17705.67,Fees to Independent Schools,Fees to Independent Schools,http://opendatacommunities.org/id/county-council/staffordshire  
Staffordshire County Council,Independent School Fee Special,Aurora ASD Ltd T/A Aurora Hanley Sch,13/09/2022,19410.03,Fees to Independent Schools,Fees to Independent Schools,http://opendatacommunities.org/id/county-council/staffordshire  
Staffordshire County Council,Independent School Fee Special,Aurora ASD Ltd T/A Aurora Hanley Sch,13/09/2022,18608.80,Fees to Independent Schools,Fees to Independent Schools,http://opendatacommunities.org/id/county-council/staffordshire  
Staffordshire County Council,Independent School Fee Special,Aurora ASD Ltd T/A Aurora Hanley Sch,29/09/2022,2160.33,Fees to Independent Schools,Fees to Independent Schools,http://opendatacommunities.org/id/county-council/staffordshire  
Staffordshire County Council,Independent School Fee Special,Aurora Brambles School,08/09/2022,23704.00,Fees to Independent Schools,Fees to Independent Schools,http://opendatacommunities.org/id/county-council/staffordshire  
Staffordshire County Council,Other Corporate Items,AVC Wise Ltd,22/09/2022,1705.34,OTHER HIRED SERVICES,OTHER HIRED SERVICES,http://opendatacommunities.org/id/county-council/staffordshire  
Staffordshire County Council,Newcastle LD Team,Avenues South,29/09/2022,1968.00,Supported Group Care,Supported Group Care,http://opendatacommunities.org/id/county-council/staffordshire  
Staffordshire County Council,Think 2 Project,B Geyer,12/09/2022,1723.06,Awards Funded Childcare Places,Awards Funded Childcare Places,http://opendatacommunities.org/id/county-council/staffordshire  
Staffordshire County Council,Nursery Education Grant,B Geyer,12/09/2022,3354.75,Grants Nursery Education Pymnt,Grants Nursery Education Pymnt,http://opendatacommunities.org/id/county-council/staffordshire  
Staffordshire County Council,Public Transp Support & Co-ord,B P BROWN TRAVEL LTD,02/09/2022,46520.06,Manned Transport - Hire,Manned Transport - Hire,http://opendatacommunities.org/id/county-council/staffordshire  
Staffordshire County Council,Concessionary Fare Schemes,B P BROWN TRAVEL LTD,14/09/2022,43352.00,Payments to Bus Operators,Payments to Bus Operators,http://opendatacommunities.org/id/county-council/staffordshire  
Staffordshire County Council,Home to college transport SEN,,01/09/2022,1049.49,Personal Travel Budgets,Personal Travel Budgets,http://opendatacommunities.org/id/county-council/staffordshire  
Staffordshire County Council,Pupil Referral Unit Top-Up,Bailey Street AP Academy,05/09/2022,86776.00,Contingency,Contingency,http://opendatacommunities.org/id/county-council/staffordshire  
Staffordshire County Council,Think 2 Project,BAMBINO'S PRIVATE DAY NURSERY LTD,12/09/2022,4159.95,Awards Funded Childcare Places,Awards Funded Childcare Places,http://opendatacommunities.org/id/county-council/staffordshire  
Staffordshire County Council,Nursery Education Grant,BAMBINO'S PRIVATE DAY NURSERY LTD,12/09/2022,20391.12,Grants Nursery Education Pymnt,Grants Nursery Education Pymnt,http://opendatacommunities.org/id/county-council/staffordshire  
Staffordshire County Council,Registration Service - Unalloc,BANNER GROUP LTD,08/09/2022,2030.76,Stationery General,Stationery General,http://opendatacommunities.org/id/county-council/staffordshire  
Staffordshire County Council,Registration Service - Unalloc,BANNER GROUP LTD,08/09/2022,1441.92,Stationery General,Stationery General,http://opendatacommunities.org/id/county-council/staffordshire  
Staffordshire County Council,Printers Staffordshire Place,BANNER GROUP LTD,12/09/2022,1615.20,Stationery General,Stationery General,http://opendatacommunities.org/id/county-council/staffordshire  
Staffordshire County Council,Moorlands Children's Centre,BANNER GROUP LTD,15/09/2022,605.59,General Equipment Purchase,General Equipment Purchase,http://opendatacommunities.org/id/county-council/staffordshire  
Staffordshire County Council,Adoption Inter Agency,"BARNARDO'S, Finance (Income Processing)",20/09/2022,33871.00,Fostering BAFF Adoption Fees,Fostering BAFF Adoption Fees,http://opendatacommunities.org/id/county-council/staffordshire  
Staffordshire County Council,Think 2 Project,Barney Bears Nursery,12/09/2022,861.53,Awards Funded Childcare Places,Awards Funded Childcare Places,http://opendatacommunities.org/id/county-council/staffordshire  
Staffordshire County Council,Nursery Education Grant,Barney Bears Nursery,12/09/2022,12569.13,Grants Nursery Education Pymnt,Grants Nursery Education Pymnt,http://opendatacommunities.org/id/county-council/staffordshire  
Staffordshire County Council,SEN Direct Payments,,14/09/2022,8349.50,Direct Payments Other,Direct Payments Other,http://opendatacommunities.org/id/county-council/staffordshire  
Staffordshire County Council,Childcare,Basharat Hussain,26/09/2022,1200.00,Legal Costs and Stamp Duty,Legal Costs and Stamp Duty,http://opendatacommunities.org/id/county-council/staffordshire  
Staffordshire County Council,Childcare,Basharat Hussain,28/09/2022,1800.00,Legal Costs and Stamp Duty,Legal Costs and Stamp Duty,http://opendatacommunities.org/id/county-council/staffordshire  
Staffordshire County Council,Tamworth LD Team,Bayliss and Wilcox Community Support Ltd,09/09/2022,881.48,Supported Group Care,Supported Group Care,http://opendatacommunities.org/id/county-council/staffordshire  
Staffordshire County Council,Audit,BDO LLP,07/09/2022,47575.04,Agency Staff,Agency Staff,http://opendatacommunities.org/id/county-council/staffordshire  
Staffordshire County Council,Think 2 Project,Beeches Park Day Nursery,12/09/2022,1755.55,Awards Funded Childcare Places,Awards Funded Childcare Places,http://opendatacommunities.org/id/county-council/staffordshire  
Staffordshire County Council,Nursery Education Grant,Beeches Park Day Nursery,12/09/2022,8653.21,Grants Nursery Education Pymnt,Grants Nursery Education Pymnt,http://opendatacommunities.org/id/county-council/staffordshire  
Staffordshire County Council,Early Years Prof Dev Programme,Beeches Park Day Nursery,28/09/2022,1775.07,Grants to third parties,Grants to third parties,http://opendatacommunities.org/id/county-council/staffordshire  
Staffordshire County Council,Independent Sch Nursery 3&4yr,Beeches Park Day Nursery,05/09/2022,3561.32,Grants to third parties,Grants to third parties,http://opendatacommunities.org/id/county-council/staffordshire  
Staffordshire County Council,Independent Sch Nursery 3&4yr,Beeches Park Day Nursery,05/09/2022,2374.22,Grants to third parties,Grants to third parties,http://opendatacommunities.org/id/county-council/staffordshire  
Staffordshire County Council,Independent Sch Nursery 3&4yr,Beeches Park Day Nursery,05/09/2022,1780.66,Grants to third parties,Grants to third parties,http://opendatacommunities.org/id/county-council/staffordshire  
Staffordshire County Council,Fost Supervise & Support South,Beeches Park Day Nursery,28/09/2022,547.48,Fostering Equipment on Loans,Fostering Equipment on Loans,http://opendatacommunities.org/id/county-council/staffordshire  
Staffordshire County Council,Nursery Education Grant,Beresford Memorial CofE First School,12/09/2022,14836.50,Grants Nursery Education Pymnt,Grants Nursery Education Pymnt,http://opendatacommunities.org/id/county-council/staffordshire  
Staffordshire County Council,Headquarters - I.S.P,Beth Homes Organisation Limited,28/09/2022,750.00,Specialist Childs Res Services,Specialist Childs Res Services,http://opendatacommunities.org/id/county-council/staffordshire  
Staffordshire County Council,Headquarters - I.S.P,Bevan Brittan,28/09/2022,792.00,legal services,legal services,http://opendatacommunities.org/id/county-council/staffordshire  
Staffordshire County Council,Comp Dev,BIBLIOTHECA LTD,21/09/2022,28604.44,Computer Support Charges,Computer Support Charges,http://opendatacommunities.org/id/county-council/staffordshire  
Staffordshire County Council,Meadowyrthe OPH,BID Group Ltd,02/09/2022,2928.00,Day to Day Ext Wall window etc,Day to Day Ext Wall window etc,http://opendatacommunities.org/id/county-council/staffordshire  
Staffordshire County Council,1448 Gailey Hway Depot ST19 5P,BID Group Ltd,05/09/2022,828.00,Service/Test Controlled Access,Service/Test Controlled Access,http://opendatacommunities.org/id/county-council/staffordshire  
Staffordshire County Council,Paget High School,BID Group Ltd,05/09/2022,504.00,Service/Test Controlled Access,Service/Test Controlled Access,http://opendatacommunities.org/id/county-council/staffordshire  
Staffordshire County Council,Cannock Resource Centre,BID Group Ltd,15/09/2022,5197.20,Repair and Maint Buildings NPS,Repair and Maint Buildings NPS,http://opendatacommunities.org/id/county-council/staffordshire  
Staffordshire County Council,Pooled Accom Central Charges,BID Group Ltd,14/09/2022,1026.00,Day to Day Mechanical Services,Day to Day Mechanical Services,http://opendatacommunities.org/id/county-council/staffordshire  
Staffordshire County Council,Cannock Enterprise Centre,BID Group Ltd,01/09/2022,1476.00,Service/Test Controlled Access,Service/Test Controlled Access,http://opendatacommunities.org/id/county-council/staffordshire  
Staffordshire County Council,Cannock Enterprise Centre,BID Group Ltd,27/09/2022,2472.00,Premises Services,Premises Services,http://opendatacommunities.org/id/county-council/staffordshire  
Staffordshire County Council,Cheadle Primary School,BID Group Ltd,28/09/2022,504.00,Service/Test Controlled Access,Service/Test Controlled Access,http://opendatacommunities.org/id/county-council/staffordshire  
Staffordshire County Council,AEN Funding Academies/Free/Col,BIDDULPH HIGH SCHOOL (ACADEMY),22/09/2022,58098.82,Grants to third parties,Grants to third parties,http://opendatacommunities.org/id/county-council/staffordshire  
Staffordshire County Council,0741 Biddulph Town Hall ST8 6A,BIDDULPH TOWN COUNCIL,13/09/2022,5470.00,Rent / Lease Of Premises,Rent / Lease Of Premises,http://opendatacommunities.org/id/county-council/staffordshire  
Staffordshire County Council,0937 Stone Library High Street,Biffa Waste Services,22/09/2022,561.44,WASTE COLLECTION,WASTE COLLECTION,http://opendatacommunities.org/id/county-council/staffordshire  
Staffordshire County Council,0008 Stafford Ccent Faraday Ro,BIFFA WASTE SERVICES LTD,16/09/2022,548.74,WASTE COLLECTION,WASTE COLLECTION,http://opendatacommunities.org/id/county-council/staffordshire  
Staffordshire County Council,HWS Unallocated,BIFFA WASTE SERVICES LTD,16/09/2022,28781.77,WASTE MANAGEMENT,WASTE MANAGEMENT,http://opendatacommunities.org/id/county-council/staffordshire  
Staffordshire County Council,HWRC Mobilisation,BIFFA WASTE SERVICES LTD,23/09/2022,739.44,WASTE MANAGEMENT,WASTE MANAGEMENT,http://opendatacommunities.org/id/county-council/staffordshire  
Staffordshire County Council,HWS Unallocated,BIFFA WASTE SERVICES LTD,16/09/2022,129594.25,WASTE MANAGEMENT,WASTE MANAGEMENT,http://opendatacommunities.org/id/county-council/staffordshire  
Staffordshire County Council,HWS Unallocated,BIFFA WASTE SERVICES LTD,16/09/2022,129594.25,WASTE MANAGEMENT,WASTE MANAGEMENT,http://opendatacommunities.org/id/county-council/staffordshire  
Staffordshire County Council,HWS Unallocated,BIFFA WASTE SERVICES LTD,16/09/2022,25002.55,WASTE MANAGEMENT,WASTE MANAGEMENT,http://opendatacommunities.org/id/county-council/staffordshire  
Staffordshire County Council,HWS Unallocated,BIFFA WASTE SERVICES LTD,16/09/2022,25894.43,WASTE MANAGEMENT,WASTE MANAGEMENT,http://opendatacommunities.org/id/county-council/staffordshire  
Staffordshire County Council,Chasewater Visitor Centre,BIFFA WASTE SERVICES LTD,16/09/2022,1355.33,WASTE COLLECTION,WASTE COLLECTION,http://opendatacommunities.org/id/county-council/staffordshire  
Staffordshire County Council,Street Sweeping - East Staffs,BIFFA WASTE SERVICES LTD,12/09/2022,703.80,Waste Treatment,Waste Treatment,http://opendatacommunities.org/id/county-council/staffordshire  
Staffordshire County Council,Street Sweeping - Newcastle,BIFFA WASTE SERVICES LTD,12/09/2022,5058.00,Waste Treatment,Waste Treatment,http://opendatacommunities.org/id/county-council/staffordshire  
Staffordshire County Council,Street Sweeping - Staffs Moor,BIFFA WASTE SERVICES LTD,13/09/2022,3250.20,Waste Treatment,Waste Treatment,http://opendatacommunities.org/id/county-council/staffordshire  
Staffordshire County Council,Street Sweeping - East Staffs,BIFFA WASTE SERVICES LTD,28/09/2022,742.80,Waste Treatment,Waste Treatment,http://opendatacommunities.org/id/county-council/staffordshire  
Staffordshire County Council,Street Sweeping - Newcastle,BIFFA WASTE SERVICES LTD,28/09/2022,4683.00,Waste Treatment,Waste Treatment,http://opendatacommunities.org/id/county-council/staffordshire  
Staffordshire County Council,Street Sweeping - Stafford,BIFFA WASTE SERVICES LTD,28/09/2022,923.40,Waste Treatment,Waste Treatment,http://opendatacommunities.org/id/county-council/staffordshire  
Staffordshire County Council,Street Sweeping-Cannock Chase,BIFFA WASTE SERVICES LTD,22/09/2022,7045.80,Waste Treatment,Waste Treatment,http://opendatacommunities.org/id/county-council/staffordshire  
Staffordshire County Council,HWRC Mobilisation,BIFFA WASTE SERVICES LTD,30/09/2022,747.41,WASTE MANAGEMENT,WASTE MANAGEMENT,http://opendatacommunities.org/id/county-council/staffordshire  
Staffordshire County Council,IF-I.S.P.,Big Fostering Partnership,28/09/2022,4217.15,Social Services Oth Local Auth,Social Services Oth Local Auth,http://opendatacommunities.org/id/county-council/staffordshire  
Staffordshire County Council,Headquarters - I.S.P,Big Fostering Partnership,28/09/2022,4217.15,Social Services Oth Local Auth,Social Services Oth Local Auth,http://opendatacommunities.org/id/county-council/staffordshire  
Staffordshire County Council,Headquarters - I.S.P,Big Fostering Partnership,28/09/2022,4217.15,Social Services Oth Local Auth,Social Services Oth Local Auth,http://opendatacommunities.org/id/county-council/staffordshire  
Staffordshire County Council,Headquarters - I.S.P,Big Healthcare,28/09/2022,7455.00,Specialist Childs Res Services,Specialist Childs Res Services,http://opendatacommunities.org/id/county-council/staffordshire  
Staffordshire County Council,Think 2 Project,Big Robin's Nursery,12/09/2022,861.53,Awards Funded Childcare Places,Awards Funded Childcare Places,http://opendatacommunities.org/id/county-council/staffordshire  
Staffordshire County Council,Nursery Education Grant,Big Robin's Nursery,12/09/2022,14978.34,Grants Nursery Education Pymnt,Grants Nursery Education Pymnt,http://opendatacommunities.org/id/county-council/staffordshire  
Staffordshire County Council,Think 2 Project,BILBROOK PLAYGROUP,12/09/2022,2584.59,Awards Funded Childcare Places,Awards Funded Childcare Places,http://opendatacommunities.org/id/county-council/staffordshire  
Staffordshire County Council,Nursery Education Grant,BILBROOK PLAYGROUP,12/09/2022,2298.24,Grants Nursery Education Pymnt,Grants Nursery Education Pymnt,http://opendatacommunities.org/id/county-council/staffordshire  
Staffordshire County Council,Independent Sch Fees Mainstr'm,BILBROOK PLAYGROUP,05/09/2022,2437.20,Fees to Independent Schools,Fees to Independent Schools,http://opendatacommunities.org/id/county-council/staffordshire  
Staffordshire County Council,Nursery Education Grant,Birches First School,12/09/2022,7243.32,Grants Nursery Education Pymnt,Grants Nursery Education Pymnt,http://opendatacommunities.org/id/county-council/staffordshire  
Staffordshire County Council,AEN Funding Academies/Free/Col,Birches First School,22/09/2022,4759.00,Grants to third parties,Grants to third parties,http://opendatacommunities.org/id/county-council/staffordshire  
Staffordshire County Council,Think 2 Project,Birchwood Private Day Nursery,12/09/2022,3158.94,Awards Funded Childcare Places,Awards Funded Childcare Places,http://opendatacommunities.org/id/county-council/staffordshire  
Staffordshire County Council,Nursery Education Grant,Birchwood Private Day Nursery,12/09/2022,5783.51,Grants Nursery Education Pymnt,Grants Nursery Education Pymnt,http://opendatacommunities.org/id/county-council/staffordshire  
Staffordshire County Council,AEN Funding Academies/Free/Col,Bird's Bush Primary School,22/09/2022,12821.38,Grants to third parties,Grants to third parties,http://opendatacommunities.org/id/county-council/staffordshire  
Staffordshire County Council,South Staffs Coroner,Birmingham City Council,02/09/2022,2860.00,INQ EXPS S STAFFS,INQ EXPS S STAFFS,http://opendatacommunities.org/id/county-council/staffordshire  
Staffordshire County Council,Communications,Birmingham City Council,14/09/2022,13939.54,Postages,Postages,http://opendatacommunities.org/id/county-council/staffordshire  
Staffordshire County Council,AEN Funding Academies/Free/Col,Bishop Lonsdale C of E Academy,22/09/2022,12878.18,Grants to third parties,Grants to third parties,http://opendatacommunities.org/id/county-council/staffordshire  
Staffordshire County Council,AEN Funding Academies/Free/Col,Bishop Rawle CofE(A) Primary School,22/09/2022,2593.28,Grants to third parties,Grants to third parties,http://opendatacommunities.org/id/county-council/staffordshire  
Staffordshire County Council,Nursery Education Grant,Bishops Lonsdale Nursery,12/09/2022,28632.25,Grants Nursery Education Pymnt,Grants Nursery Education Pymnt,http://opendatacommunities.org/id/county-council/staffordshire  
Staffordshire County Council,Regional Economic Observatory,Black Country Consortium,13/09/2022,14970.00,CONSULTANT FEES,CONSULTANT FEES,http://opendatacommunities.org/id/county-council/staffordshire  
Staffordshire County Council,Special Academies Top Up,BLACKFRIARS ACADEMY,13/09/2022,372560.00,Grants to third parties,Grants to third parties,http://opendatacommunities.org/id/county-council/staffordshire  
Staffordshire County Council,Nursery Education Grant,Blackshaw Moor CofE First School,12/09/2022,2460.15,Grants Nursery Education Pymnt,Grants Nursery Education Pymnt,http://opendatacommunities.org/id/county-council/staffordshire  
Staffordshire County Council,Hawthorn House,BLAKEMORE FOOD SERVICE LTD,09/09/2022,848.84,Catering Provisions,Catering Provisions,http://opendatacommunities.org/id/county-council/staffordshire  
Staffordshire County Council,Hawthorn House,BLAKEMORE FOOD SERVICE LTD,02/09/2022,1018.47,Catering Provisions,Catering Provisions,http://opendatacommunities.org/id/county-council/staffordshire  
Staffordshire County Council,Hawthorn House,BLAKEMORE FOOD SERVICE LTD,23/09/2022,816.69,Catering Provisions,Catering Provisions,http://opendatacommunities.org/id/county-council/staffordshire  
Staffordshire County Council,Think 2 Project,Blessed Mother Teresa's RC Pri Sch,12/09/2022,861.53,Awards Funded Childcare Places,Awards Funded Childcare Places,http://opendatacommunities.org/id/county-council/staffordshire  
Staffordshire County Council,Nursery Education Grant,Blessed Mother Teresa's RC Pri Sch,12/09/2022,14549.22,Grants Nursery Education Pymnt,Grants Nursery Education Pymnt,http://opendatacommunities.org/id/county-council/staffordshire  
Staffordshire County Council,AEN Funding Academies/Free/Col,Blessed Mother Teresa's RC Pri Sch,22/09/2022,3788.38,Grants to third parties,Grants to third parties,http://opendatacommunities.org/id/county-council/staffordshire  
Staffordshire County Council,AEN Funding Academies/Free/Col,Blessed Robert Sutton Catholic Academy,22/09/2022,7942.72,Grants to third parties,Grants to third parties,http://opendatacommunities.org/id/county-council/staffordshire  
Staffordshire County Council,AEN Funding Academies/Free/Col,BLESSED WILLIAM HOWARD H SCHOOL,22/09/2022,34807.92,Grants to third parties,Grants to third parties,http://opendatacommunities.org/id/county-council/staffordshire  
Staffordshire County Council,Think 2 Project,Blossoms on the Chase,12/09/2022,8615.30,Awards Funded Childcare Places,Awards Funded Childcare Places,http://opendatacommunities.org/id/county-council/staffordshire  
Staffordshire County Council,Nursery Education Grant,Blossoms on the Chase,12/09/2022,25609.50,Grants Nursery Education Pymnt,Grants Nursery Education Pymnt,http://opendatacommunities.org/id/county-council/staffordshire  
Staffordshire County Council,Hednesford Valley High,Bloxwich Radio Taxis,07/09/2022,21368.87,Home School Contract Vehicles,Home School Contract Vehicles,http://opendatacommunities.org/id/county-council/staffordshire  
Staffordshire County Council,Cannock Cult Education Partner,Blue and White Creative,05/09/2022,875.00,other services external,other services external,http://opendatacommunities.org/id/county-council/staffordshire  
Staffordshire County Council,Think 2 Project,Bluebell Hill Nursery,12/09/2022,2527.15,Awards Funded Childcare Places,Awards Funded Childcare Places,http://opendatacommunities.org/id/county-council/staffordshire  
Staffordshire County Council,Nursery Education Grant,Bluebell Hill Nursery,12/09/2022,2031.12,Grants Nursery Education Pymnt,Grants Nursery Education Pymnt,http://opendatacommunities.org/id/county-council/staffordshire  
Staffordshire County Council,Independent School Fee Special,Bluebell School Ltd,26/09/2022,23009.63,Fees to Independent Schools,Fees to Independent Schools,http://opendatacommunities.org/id/county-council/staffordshire  
Staffordshire County Council,VS Ext Sup Children with SW,Bluebell School Ltd,26/09/2022,500.00,OTHER ALLOWANCES,OTHER ALLOWANCES,http://opendatacommunities.org/id/county-council/staffordshire  
Staffordshire County Council,Independent School Fee Special,Bluebell School Ltd,26/09/2022,16500.00,Fees to Independent Schools,Fees to Independent Schools,http://opendatacommunities.org/id/county-council/staffordshire  
Staffordshire County Council,Independent School Fee Special,Bluebell School Ltd,26/09/2022,16500.00,Fees to Independent Schools,Fees to Independent Schools,http://opendatacommunities.org/id/county-council/staffordshire  
Staffordshire County Council,Independent School Fee Special,Bluebell School Ltd,26/09/2022,18500.00,Fees to Independent Schools,Fees to Independent Schools,http://opendatacommunities.org/id/county-council/staffordshire  
Staffordshire County Council,Independent School Fee Special,Bluebell School Ltd,26/09/2022,16500.00,Fees to Independent Schools,Fees to Independent Schools,http://opendatacommunities.org/id/county-council/staffordshire  
Staffordshire County Council,Independent School Fee Special,Bluebell School Ltd,26/09/2022,16500.00,Fees to Independent Schools,Fees to Independent Schools,http://opendatacommunities.org/id/county-council/staffordshire  
Staffordshire County Council,Independent School Fee Special,Bluebell School Ltd,26/09/2022,18500.00,Fees to Independent Schools,Fees to Independent Schools,http://opendatacommunities.org/id/county-council/staffordshire  
Staffordshire County Council,Independent School Fee Special,Bluebell School Ltd,26/09/2022,19055.00,Fees to Independent Schools,Fees to Independent Schools,http://opendatacommunities.org/id/county-council/staffordshire  
Staffordshire County Council,Independent School Fee Special,Bluebell School Ltd,26/09/2022,26497.00,Fees to Independent Schools,Fees to Independent Schools,http://opendatacommunities.org/id/county-council/staffordshire  
Staffordshire County Council,Independent School Fee Special,Bluebell School Ltd,26/09/2022,19055.00,Fees to Independent Schools,Fees to Independent Schools,http://opendatacommunities.org/id/county-council/staffordshire  
Staffordshire County Council,Independent School Fee Special,Bluebell School Ltd,26/09/2022,19055.00,Fees to Independent Schools,Fees to Independent Schools,http://opendatacommunities.org/id/county-council/staffordshire  
Staffordshire County Council,Independent School Fee Special,Bluebell School Ltd,26/09/2022,16995.00,Fees to Independent Schools,Fees to Independent Schools,http://opendatacommunities.org/id/county-council/staffordshire  
Staffordshire County Council,Independent School Fee Special,Bluebell School Ltd,26/09/2022,19055.00,Fees to Independent Schools,Fees to Independent Schools,http://opendatacommunities.org/id/county-council/staffordshire  
Staffordshire County Council,Independent School Fee Special,Bluebell School Ltd,26/09/2022,16995.00,Fees to Independent Schools,Fees to Independent Schools,http://opendatacommunities.org/id/county-council/staffordshire  
Staffordshire County Council,Independent School Fee Special,Bluebell School Ltd,26/09/2022,15167.00,Fees to Independent Schools,Fees to Independent Schools,http://opendatacommunities.org/id/county-council/staffordshire  
Staffordshire County Council,Independent School Fee Special,Bluebell School Ltd,26/09/2022,20007.75,Fees to Independent Schools,Fees to Independent Schools,http://opendatacommunities.org/id/county-council/staffordshire  
Staffordshire County Council,Independent School Fee Special,Bluebell School Ltd,26/09/2022,16500.00,Fees to Independent Schools,Fees to Independent Schools,http://opendatacommunities.org/id/county-council/staffordshire  
Staffordshire County Council,Independent School Fee Special,Bluebell School Ltd,26/09/2022,18500.00,Fees to Independent Schools,Fees to Independent Schools,http://opendatacommunities.org/id/county-council/staffordshire  
Staffordshire County Council,Independent School Fee Special,Bluebell School Ltd,26/09/2022,18500.00,Fees to Independent Schools,Fees to Independent Schools,http://opendatacommunities.org/id/county-council/staffordshire  
Staffordshire County Council,SStaffs Invoice Led Older Peop,"Bluebird (Dudley, Wyre Frst ",16/09/2022,854.55,Practical Care,Practical Care,http://opendatacommunities.org/id/county-council/staffordshire  
Staffordshire County Council,Cannock Chase LD Team,Bluebird Care (Mid Staffs),30/09/2022,4712.43,Practical Care,Practical Care,http://opendatacommunities.org/id/county-council/staffordshire  
Staffordshire County Council,Cannock Chase LD Team,Bluebird Care (Mid Staffs),30/09/2022,4712.43,Practical Care,Practical Care,http://opendatacommunities.org/id/county-council/staffordshire  
Staffordshire County Council,Nursery Education Grant,BLYTHE BRIDGE DAY NURSERY,12/09/2022,24343.20,Grants Nursery Education Pymnt,Grants Nursery Education Pymnt,http://opendatacommunities.org/id/county-council/staffordshire  
Staffordshire County Council,HWRC Mobilisation,Boden and Davies Ltd,15/09/2022,946.80,WASTE MANAGEMENT,WASTE MANAGEMENT,http://opendatacommunities.org/id/county-council/staffordshire  
Staffordshire County Council,HWRC Mobilisation,Boden and Davies Ltd,23/09/2022,1549.20,WASTE MANAGEMENT,WASTE MANAGEMENT,http://opendatacommunities.org/id/county-council/staffordshire  
Staffordshire County Council,HWRC Mobilisation,Boden and Davies Ltd,23/09/2022,1658.40,WASTE MANAGEMENT,WASTE MANAGEMENT,http://opendatacommunities.org/id/county-council/staffordshire  
Staffordshire County Council,HWRC Mobilisation,Boden and Davies Ltd,23/09/2022,1760.40,WASTE MANAGEMENT,WASTE MANAGEMENT,http://opendatacommunities.org/id/county-council/staffordshire  
Staffordshire County Council,HWRC Mobilisation,Boden and Davies Ltd,26/09/2022,1769.40,WASTE MANAGEMENT,WASTE MANAGEMENT,http://opendatacommunities.org/id/county-council/staffordshire  
Staffordshire County Council,HWRC Mobilisation,Boden and Davies Ltd,26/09/2022,1921.20,WASTE MANAGEMENT,WASTE MANAGEMENT,http://opendatacommunities.org/id/county-council/staffordshire  
Staffordshire County Council,HWRC Mobilisation,Boden and Davies Ltd,26/09/2022,1539.60,WASTE MANAGEMENT,WASTE MANAGEMENT,http://opendatacommunities.org/id/county-council/staffordshire  
Staffordshire County Council,HWRC Mobilisation,Boden and Davies Ltd,26/09/2022,1638.60,WASTE MANAGEMENT,WASTE MANAGEMENT,http://opendatacommunities.org/id/county-council/staffordshire  
Staffordshire County Council,HWRC Mobilisation,Boden and Davies Ltd,26/09/2022,1900.20,WASTE MANAGEMENT,WASTE MANAGEMENT,http://opendatacommunities.org/id/county-council/staffordshire  
Staffordshire County Council,HWRC Mobilisation,Boden and Davies Ltd,26/09/2022,2247.00,WASTE MANAGEMENT,WASTE MANAGEMENT,http://opendatacommunities.org/id/county-council/staffordshire  
Staffordshire County Council,HWRC Mobilisation,Boden and Davies Ltd,26/09/2022,1570.80,WASTE MANAGEMENT,WASTE MANAGEMENT,http://opendatacommunities.org/id/county-council/staffordshire  
Staffordshire County Council,HWRC Mobilisation,Boden and Davies Ltd,26/09/2022,1658.40,WASTE MANAGEMENT,WASTE MANAGEMENT,http://opendatacommunities.org/id/county-council/staffordshire  
Staffordshire County Council,HWRC Mobilisation,Boden and Davies Ltd,22/09/2022,2097.00,WASTE MANAGEMENT,WASTE MANAGEMENT,http://opendatacommunities.org/id/county-council/staffordshire  
Staffordshire County Council,HWRC Mobilisation,Boden and Davies Ltd,22/09/2022,1690.20,WASTE MANAGEMENT,WASTE MANAGEMENT,http://opendatacommunities.org/id/county-council/staffordshire  
Staffordshire County Council,HWRC Mobilisation,Boden and Davies Ltd,22/09/2022,4044.00,WASTE MANAGEMENT,WASTE MANAGEMENT,http://opendatacommunities.org/id/county-council/staffordshire  
Staffordshire County Council,HWRC Mobilisation,Boden and Davies Ltd,22/09/2022,912.00,WASTE MANAGEMENT,WASTE MANAGEMENT,http://opendatacommunities.org/id/county-council/staffordshire  
Staffordshire County Council,HWRC Mobilisation,Boden and Davies Ltd,22/09/2022,3282.00,WASTE MANAGEMENT,WASTE MANAGEMENT,http://opendatacommunities.org/id/county-council/staffordshire  
Staffordshire County Council,HWRC Mobilisation,Boden and Davies Ltd,22/09/2022,2479.80,WASTE MANAGEMENT,WASTE MANAGEMENT,http://opendatacommunities.org/id/county-council/staffordshire  
Staffordshire County Council,HWRC Mobilisation,Boden and Davies Ltd,22/09/2022,754.20,WASTE MANAGEMENT,WASTE MANAGEMENT,http://opendatacommunities.org/id/county-council/staffordshire  
Staffordshire County Council,HWRC Mobilisation,Boden and Davies Ltd,22/09/2022,3567.00,WASTE MANAGEMENT,WASTE MANAGEMENT,http://opendatacommunities.org/id/county-council/staffordshire  
Staffordshire County Council,Nursery Education Grant,BOLEY PARK PRE-SCHOOL,12/09/2022,2212.35,Grants Nursery Education Pymnt,Grants Nursery Education Pymnt,http://opendatacommunities.org/id/county-council/staffordshire  
Staffordshire County Council,Childrens Services,Bolinda UK Ltd,05/09/2022,5057.04,TALKING BOOKS,TALKING BOOKS,http://opendatacommunities.org/id/county-council/staffordshire  
Staffordshire County Council,Stock Management,Bolinda UK Ltd,05/09/2022,1438.20,TALKING BOOKS,TALKING BOOKS,http://opendatacommunities.org/id/county-council/staffordshire  
Staffordshire County Council,Stock Management,Bolinda UK Ltd,29/09/2022,2097.18,TALKING BOOKS,TALKING BOOKS,http://opendatacommunities.org/id/county-council/staffordshire  
Staffordshire County Council,Decision Making Support,Bond Solon Training Ltd,23/09/2022,2400.00,Training Expenses,Training Expenses,http://opendatacommunities.org/id/county-council/staffordshire  
Staffordshire County Council,AEN Funding Academies/Free/Col,Boney Hay Primary Academy,22/09/2022,2928.89,Grants to third parties,Grants to third parties,http://opendatacommunities.org/id/county-council/staffordshire  
Staffordshire County Council,Virtual School - Pupil Premium,BOOK TRUST,16/09/2022,5400.00,Educational Equipment Purchase,Educational Equipment Purchase,http://opendatacommunities.org/id/county-council/staffordshire  
Staffordshire County Council,Springfield electrical,BOURNE ELECTRICAL CONTR LTD,07/09/2022,33600.00,Construction Works,Construction Works,http://opendatacommunities.org/id/county-council/staffordshire  
Staffordshire County Council,St. Michael's electrical,BOURNE ELECTRICAL CONTR LTD,07/09/2022,32400.00,Construction Works,Construction Works,http://opendatacommunities.org/id/county-council/staffordshire  
Staffordshire County Council,Sir John Offley Electrical,BOURNE ELECTRICAL CONTR LTD,07/09/2022,39600.00,Construction Works,Construction Works,http://opendatacommunities.org/id/county-council/staffordshire  
Staffordshire County Council,E Staffs MH Team U65,Bradcare Ltd,12/09/2022,519.20,Practical Care,Practical Care,http://opendatacommunities.org/id/county-council/staffordshire  
Staffordshire County Council,Nursery Education Grant,BRANSTON PRE SCHOOL CENTRE,12/09/2022,12842.55,Grants Nursery Education Pymnt,Grants Nursery Education Pymnt,http://opendatacommunities.org/id/county-council/staffordshire  
Staffordshire County Council,HRSSC,Bravo Benefits Ltd,07/09/2022,15119.38,Extra District Charges Other,Extra District Charges Other,http://opendatacommunities.org/id/county-council/staffordshire  
Staffordshire County Council,HAF Summer 2022,BRERETON MILLION YOUTH GROUP,20/09/2022,6792.00,OTHER HIRED SERVICES,OTHER HIRED SERVICES,http://opendatacommunities.org/id/county-council/staffordshire  
Staffordshire County Council,AEN Funding Academies/Free/Col,Brewood CE Middle Academy,22/09/2022,15761.39,Grants to third parties,Grants to third parties,http://opendatacommunities.org/id/county-council/staffordshire  
Staffordshire County Council,Childcare,Brian Morton,01/09/2022,2040.00,Legal Costs and Stamp Duty,Legal Costs and Stamp Duty,http://opendatacommunities.org/id/county-council/staffordshire  
Staffordshire County Council,Childcare,Brian Morton,28/09/2022,2040.00,Legal Costs and Stamp Duty,Legal Costs and Stamp Duty,http://opendatacommunities.org/id/county-council/staffordshire  
Staffordshire County Council,Childcare,Brian Morton,22/09/2022,600.00,Legal Costs and Stamp Duty,Legal Costs and Stamp Duty,http://opendatacommunities.org/id/county-council/staffordshire  
Staffordshire County Council,Cannock Chase LD Team,BRIARS BARN LTD,08/09/2022,554.22,Day Care,Day Care,http://opendatacommunities.org/id/county-council/staffordshire  
Staffordshire County Council,Lichfield LD Team,BRIARS BARN LTD,08/09/2022,554.22,Day Care,Day Care,http://opendatacommunities.org/id/county-council/staffordshire  
Staffordshire County Council,Lichfield LD Team,BRIARS BARN LTD,08/09/2022,1395.00,Day Care,Day Care,http://opendatacommunities.org/id/county-council/staffordshire  
Staffordshire County Council,Think 2 Project,BRIGHT BEGINNINGS DAY NURSERY,12/09/2022,525.12,Awards Funded Childcare Places,Awards Funded Childcare Places,http://opendatacommunities.org/id/county-council/staffordshire  
Staffordshire County Council,Nursery Education Grant,BRIGHT BEGINNINGS DAY NURSERY,12/09/2022,7446.69,Grants Nursery Education Pymnt,Grants Nursery Education Pymnt,http://opendatacommunities.org/id/county-council/staffordshire  
Staffordshire County Council,Think 2 Project,Bright Minds Daycare Codsall,12/09/2022,508.71,Awards Funded Childcare Places,Awards Funded Childcare Places,http://opendatacommunities.org/id/county-council/staffordshire  
Staffordshire County Council,Nursery Education Grant,Bright Minds Daycare Codsall,12/09/2022,5065.40,Grants Nursery Education Pymnt,Grants Nursery Education Pymnt,http://opendatacommunities.org/id/county-council/staffordshire  
Staffordshire County Council,Cent Cty Psychol Service HQ,Brightland Psychology Ltd,16/09/2022,950.00,PROFESSIONAL FEES,PROFESSIONAL FEES,http://opendatacommunities.org/id/county-council/staffordshire  
Staffordshire County Council,AEN Funding Academies/Free/Col,Brindley Heath Junior Academy,22/09/2022,10824.53,Grants to third parties,Grants to third parties,http://opendatacommunities.org/id/county-council/staffordshire  
Staffordshire County Council,County Fleet Care Purchase Of ,BRISTOL STREET MOTORS,16/09/2022,17753.94,Vehicle Purchase,Vehicle Purchase,http://opendatacommunities.org/id/county-council/staffordshire  
Staffordshire County Council,County Fleet Care Purchase Of ,BRISTOL STREET MOTORS,27/09/2022,17768.94,Vehicle Purchase,Vehicle Purchase,http://opendatacommunities.org/id/county-council/staffordshire  
Staffordshire County Council,County Fleet Care Purchase Of ,BRISTOL STREET MOTORS,27/09/2022,17753.94,Vehicle Purchase,Vehicle Purchase,http://opendatacommunities.org/id/county-council/staffordshire  
Staffordshire County Council,County Fleet Care Purchase Of ,BRISTOL STREET MOTORS,29/09/2022,17768.94,Vehicle Purchase,Vehicle Purchase,http://opendatacommunities.org/id/county-council/staffordshire  
Staffordshire County Council,Fost Central & Approval,Brookfields Day Nursery,29/09/2022,720.00,Fostering Special Guardianship,Fostering Special Guardianship,http://opendatacommunities.org/id/county-council/staffordshire  
Staffordshire County Council,Stafford LD Team,BROTHERS OF CHARITY LANCS,07/09/2022,2496.00,Supported Group Care,Supported Group Care,http://opendatacommunities.org/id/county-council/staffordshire  
Staffordshire County Council,Stafford LD Team,BROTHERS OF CHARITY LANCS,15/09/2022,2496.00,Supported Group Care,Supported Group Care,http://opendatacommunities.org/id/county-council/staffordshire  
Staffordshire County Council,Nursery Education Grant,BROWN EDGE BUSY BEES CIO,12/09/2022,1170.75,Grants Nursery Education Pymnt,Grants Nursery Education Pymnt,http://opendatacommunities.org/id/county-council/staffordshire  
Staffordshire County Council,Early Years Prof Dev Programme,BROWN EDGE BUSY BEES CIO,28/09/2022,1800.07,Grants to third parties,Grants to third parties,http://opendatacommunities.org/id/county-council/staffordshire  
Staffordshire County Council,Country Parks Team,BROWN RECYCLING LIMITED,28/09/2022,528.62,WASTE COLLECTION,WASTE COLLECTION,http://opendatacommunities.org/id/county-council/staffordshire  
Staffordshire County Council,Farms General,Bruton Knowles LLP,27/09/2022,900.00,PROFESSIONAL FEES,PROFESSIONAL FEES,http://opendatacommunities.org/id/county-council/staffordshire  
Staffordshire County Council,Vacant Farm Buildings- Cost Of,Bruton Knowles LLP,27/09/2022,1701.00,Ext Fees Construction,Ext Fees Construction,http://opendatacommunities.org/id/county-council/staffordshire  
Staffordshire County Council,Farms General,Bruton Knowles LLP,27/09/2022,900.00,PROFESSIONAL FEES,PROFESSIONAL FEES,http://opendatacommunities.org/id/county-council/staffordshire  
Staffordshire County Council,Vacant Farm Buildings- Cost Of,Bruton Knowles LLP,27/09/2022,5130.00,Ext Fees Construction,Ext Fees Construction,http://opendatacommunities.org/id/county-council/staffordshire  
Staffordshire County Council,KCOM - Wholesale Line Rental,BT Plc,09/09/2022,777.76,CALL CHARGES,CALL CHARGES,http://opendatacommunities.org/id/county-council/staffordshire  
Staffordshire County Council,Think 2 Project,BUCKINGHAM'S NURSERY SCHOOL LTD,12/09/2022,3980.73,Awards Funded Childcare Places,Awards Funded Childcare Places,http://opendatacommunities.org/id/county-council/staffordshire  
Staffordshire County Council,Nursery Education Grant,BUCKINGHAM'S NURSERY SCHOOL LTD,12/09/2022,24455.88,Grants Nursery Education Pymnt,Grants Nursery Education Pymnt,http://opendatacommunities.org/id/county-council/staffordshire  
Staffordshire County Council,Economic Development,Built Environment Networking Ltd,08/09/2022,6000.00,Contingency,Contingency,http://opendatacommunities.org/id/county-council/staffordshire  
Staffordshire County Council,4696 EastStaffCCent248-57Water,Bullet Lift Services Ltd,21/09/2022,1232.40,General Equipment Repair/Maint,General Equipment Repair/Maint,http://opendatacommunities.org/id/county-council/staffordshire  
Staffordshire County Council,Nursery Education Grant,Bursley Academy,21/09/2022,10974.34,Grants Nursery Education Pymnt,Grants Nursery Education Pymnt,http://opendatacommunities.org/id/county-council/staffordshire  
Staffordshire County Council,Nursery Education Grant,Bursley Academy,21/09/2022,11277.00,Grants Nursery Education Pymnt,Grants Nursery Education Pymnt,http://opendatacommunities.org/id/county-council/staffordshire  
Staffordshire County Council,AEN Funding Academies/Free/Col,Bursley Academy,22/09/2022,17406.62,Grants to third parties,Grants to third parties,http://opendatacommunities.org/id/county-council/staffordshire  
Staffordshire County Council,Workforce Wellbeing Strategy,BURTON  & DISTRICT MIND,29/09/2022,720.00,CONSULTANT FEES,CONSULTANT FEES,http://opendatacommunities.org/id/county-council/staffordshire  
Staffordshire County Council,Think 2 Project,BURTON & STH DERBYS COLLEGE NRSRY,12/09/2022,861.53,Awards Funded Childcare Places,Awards Funded Childcare Places,http://opendatacommunities.org/id/county-council/staffordshire  
Staffordshire County Council,Nursery Education Grant,BURTON & STH DERBYS COLLEGE NRSRY,12/09/2022,10347.75,Grants Nursery Education Pymnt,Grants Nursery Education Pymnt,http://opendatacommunities.org/id/county-council/staffordshire  
Staffordshire County Council,LMG East Staffs,Burton Albion Community Trust,16/09/2022,4308.48, Alternative Education Schemes, Alternative Education Schemes,http://opendatacommunities.org/id/county-council/staffordshire  
Staffordshire County Council,HAF Summer 2022,Burton Albion Community Trust,20/09/2022,30150.70,OTHER HIRED SERVICES,OTHER HIRED SERVICES,http://opendatacommunities.org/id/county-council/staffordshire  
Staffordshire County Council,Green Lane Whitgreave,BURTON ENVIRONMENTAL SERVS LTD,27/09/2022,1230.00,General Equipment Repair/Maint,General Equipment Repair/Maint,http://opendatacommunities.org/id/county-council/staffordshire  
Staffordshire County Council,1446 51a Sandyford St Stafford,BURTON ENVIRONMENTAL SERVS LTD,27/09/2022,5260.80,Planned Roofs,Planned Roofs,http://opendatacommunities.org/id/county-council/staffordshire  
Staffordshire County Council,AEN Funding Academies/Free/Col,Burton Fields School,22/09/2022,22451.12,Grants to third parties,Grants to third parties,http://opendatacommunities.org/id/county-council/staffordshire  
Staffordshire County Council,Nursery Education Grant,Busy Bees at St Matthews,12/09/2022,36067.84,Grants Nursery Education Pymnt,Grants Nursery Education Pymnt,http://opendatacommunities.org/id/county-council/staffordshire  
Staffordshire County Council,Independent Sch Nursery 3&4yr,Busy Bees at St Matthews,05/09/2022,3561.32,Grants to third parties,Grants to third parties,http://opendatacommunities.org/id/county-council/staffordshire  
Staffordshire County Council,Think 2 Project,Busy Bees Day Nursery Limited,12/09/2022,3446.12,Awards Funded Childcare Places,Awards Funded Childcare Places,http://opendatacommunities.org/id/county-council/staffordshire  
Staffordshire County Council,Nursery Education Grant,Busy Bees Day Nursery Limited,12/09/2022,42175.28,Grants Nursery Education Pymnt,Grants Nursery Education Pymnt,http://opendatacommunities.org/id/county-council/staffordshire  
Staffordshire County Council,Think 2 Project,BUSYDAYS CHILDCARE,12/09/2022,1148.71,Awards Funded Childcare Places,Awards Funded Childcare Places,http://opendatacommunities.org/id/county-council/staffordshire  
Staffordshire County Council,Nursery Education Grant,BUSYDAYS CHILDCARE,12/09/2022,765.45,Grants Nursery Education Pymnt,Grants Nursery Education Pymnt,http://opendatacommunities.org/id/county-council/staffordshire  
Staffordshire County Council,STAF Assess & Staying Together,Butterflies Day Care Stafford Ltd,16/09/2022,714.00,S17-NURSERY,S17-NURSERY,http://opendatacommunities.org/id/county-council/staffordshire  
Staffordshire County Council,Think 2 Project,Butterflies Nursery,12/09/2022,1148.71,Awards Funded Childcare Places,Awards Funded Childcare Places,http://opendatacommunities.org/id/county-council/staffordshire  
Staffordshire County Council,Nursery Education Grant,Butterflies Nursery,12/09/2022,4214.70,Grants Nursery Education Pymnt,Grants Nursery Education Pymnt,http://opendatacommunities.org/id/county-council/staffordshire  
Staffordshire County Council,Country Parks Team,BUXTONS LTD,13/09/2022,939.53,Building Materials,Building Materials,http://opendatacommunities.org/id/county-council/staffordshire  
Staffordshire County Council,Headquarters - I.S.P,BY THE BRIDGE,28/09/2022,4585.71,Social Services Oth Local Auth,Social Services Oth Local Auth,http://opendatacommunities.org/id/county-council/staffordshire  
Staffordshire County Council,Headquarters - I.S.P,BY THE BRIDGE,28/09/2022,4885.71,Social Services Oth Local Auth,Social Services Oth Local Auth,http://opendatacommunities.org/id/county-council/staffordshire  
Staffordshire County Council,Headquarters - I.S.P,BY THE BRIDGE,28/09/2022,7365.60,Social Services Oth Local Auth,Social Services Oth Local Auth,http://opendatacommunities.org/id/county-council/staffordshire  
Staffordshire County Council,Headquarters - I.S.P,BY THE BRIDGE,28/09/2022,4029.00,Social Services Oth Local Auth,Social Services Oth Local Auth,http://opendatacommunities.org/id/county-council/staffordshire  
Staffordshire County Council,Blackfriars School,,01/09/2022,909.09,Personal Travel Budgets,Personal Travel Budgets,http://opendatacommunities.org/id/county-council/staffordshire  
Staffordshire County Council,Saxon Hill School,,01/09/2022,559.64,Personal Travel Budgets,Personal Travel Budgets,http://opendatacommunities.org/id/county-council/staffordshire  
Staffordshire County Council,Stat-OOC transport,,14/09/2022,1153.88,Personal Travel Budgets,Personal Travel Budgets,http://opendatacommunities.org/id/county-council/staffordshire  
Staffordshire County Council,Bleak House Farm Houghton,C R Large Contractors Ltd,13/09/2022,1146.00,General Equipment Repair/Maint,General Equipment Repair/Maint,http://opendatacommunities.org/id/county-council/staffordshire  
Staffordshire County Council,110 Woodhouse improv/modern,C R Large Contractors Ltd,13/09/2022,6260.35,Construction Works,Construction Works,http://opendatacommunities.org/id/county-council/staffordshire  
Staffordshire County Council,HWS Unallocated,C R WOODWISS,20/09/2022,5750.00,Rent / Lease Of Premises,Rent / Lease Of Premises,http://opendatacommunities.org/id/county-council/staffordshire  
Staffordshire County Council,Nursery Education Grant,C Ree,12/09/2022,805.14,Grants Nursery Education Pymnt,Grants Nursery Education Pymnt,http://opendatacommunities.org/id/county-council/staffordshire  
Staffordshire County Council,Think 2 Project,C Tyson,12/09/2022,861.53,Awards Funded Childcare Places,Awards Funded Childcare Places,http://opendatacommunities.org/id/county-council/staffordshire  
Staffordshire County Council,Nursery Education Grant,C Tyson,12/09/2022,702.45,Grants Nursery Education Pymnt,Grants Nursery Education Pymnt,http://opendatacommunities.org/id/county-council/staffordshire  
Staffordshire County Council,Stat-OOC transport,Cabability Ltd,01/09/2022,5618.04,Home School Contract Vehicles,Home School Contract Vehicles,http://opendatacommunities.org/id/county-council/staffordshire  
Staffordshire County Council,Eastgate Regeneration,Cadence Management Services Ltd,28/09/2022,5760.00,Ext Fees Construction,Ext Fees Construction,http://opendatacommunities.org/id/county-council/staffordshire  
Staffordshire County Council,SCC Digital,Caja Ltd,21/09/2022,10000.19,Grants to third parties,Grants to third parties,http://opendatacommunities.org/id/county-council/staffordshire  
Staffordshire County Council,Headquarters - I.S.P,Cambian Childcare Limited,28/09/2022,19928.57,Specialist Childs Res Services,Specialist Childs Res Services,http://opendatacommunities.org/id/county-council/staffordshire  
Staffordshire County Council,Headquarters - I.S.P,Cambian Childcare Ltd,28/09/2022,27214.29,Specialist Childs Res Services,Specialist Childs Res Services,http://opendatacommunities.org/id/county-council/staffordshire  
Staffordshire County Council,Headquarters - I.S.P,Cambian Childcare Ltd,28/09/2022,36192.86,Specialist Childs Res Services,Specialist Childs Res Services,http://opendatacommunities.org/id/county-council/staffordshire  
Staffordshire County Council,Headquarters - I.S.P,Cambian Childcare Ltd,28/09/2022,36235.71,Specialist Childs Res Services,Specialist Childs Res Services,http://opendatacommunities.org/id/county-council/staffordshire  
Staffordshire County Council,Statutory Recycling Credits,CANNOCK CHASE COUNCIL,01/09/2022,64312.00,Recycling Credits,Recycling Credits,http://opendatacommunities.org/id/county-council/staffordshire  
Staffordshire County Council,Statutory Recycling Credits,CANNOCK CHASE COUNCIL,30/09/2022,64312.00,Recycling Credits,Recycling Credits,http://opendatacommunities.org/id/county-council/staffordshire  
Staffordshire County Council,Cannock Tipping Away,CANNOCK CHASE COUNCIL,12/09/2022,1025.63,WASTE TRANSPORT,WASTE TRANSPORT,http://opendatacommunities.org/id/county-council/staffordshire  
Staffordshire County Council,AEN Funding Academies/Free/Col,CANNOCK CHASE HIGH SCHOOL,22/09/2022,28094.92,Grants to third parties,Grants to third parties,http://opendatacommunities.org/id/county-council/staffordshire  
Staffordshire County Council,Special Units Unallocated,CANNOCK CHASE HIGH SCHOOL,13/09/2022,11670.00,Contingency,Contingency,http://opendatacommunities.org/id/county-council/staffordshire  
Staffordshire County Council,Security Print,CANON (UK) LTD,01/09/2022,561.68,General Equipment Repair/Maint,General Equipment Repair/Maint,http://opendatacommunities.org/id/county-council/staffordshire  
Staffordshire County Council,Security Print,CANON (UK) LTD,01/09/2022,805.44,General Equipment Repair/Maint,General Equipment Repair/Maint,http://opendatacommunities.org/id/county-council/staffordshire  
Staffordshire County Council,People Solutions,CAPITA RESOURCING LIMITED,26/09/2022,1485.64,Subscriptions General,Subscriptions General,http://opendatacommunities.org/id/county-council/staffordshire  
Staffordshire County Council,Headquarters - I.S.P,Capstone Foster Care (Midlands) Ltd,21/09/2022,3542.99,Social Services Oth Local Auth,Social Services Oth Local Auth,http://opendatacommunities.org/id/county-council/staffordshire  
Staffordshire County Council,Headquarters - I.S.P,Capstone Foster Care (Midlands) Ltd,28/09/2022,3414.56,Social Services Oth Local Auth,Social Services Oth Local Auth,http://opendatacommunities.org/id/county-council/staffordshire  
Staffordshire County Council,Headquarters - I.S.P,Capstone Foster Care (Midlands) Ltd,28/09/2022,6354.64,Social Services Oth Local Auth,Social Services Oth Local Auth,http://opendatacommunities.org/id/county-council/staffordshire  
Staffordshire County Council,Headquarters - I.S.P,Capstone Foster Care (Midlands) Ltd,28/09/2022,3152.01,Social Services Oth Local Auth,Social Services Oth Local Auth,http://opendatacommunities.org/id/county-council/staffordshire  
Staffordshire County Council,Treasury Management,Card Processing Advisory Service Ltd,20/09/2022,1731.30,Bank Charges,Bank Charges,http://opendatacommunities.org/id/county-council/staffordshire  
Staffordshire County Council,Headquarters - I.S.P,Care 4 Children,28/09/2022,21214.29,Specialist Childs Res Services,Specialist Childs Res Services,http://opendatacommunities.org/id/county-council/staffordshire  
Staffordshire County Council,Think 2 Project,Care by Claire,12/09/2022,861.53,Awards Funded Childcare Places,Awards Funded Childcare Places,http://opendatacommunities.org/id/county-council/staffordshire  
Staffordshire County Council,Nursery Education Grant,Care by Claire,12/09/2022,2689.38,Grants Nursery Education Pymnt,Grants Nursery Education Pymnt,http://opendatacommunities.org/id/county-council/staffordshire  
Staffordshire County Council,Tamworth LD Team,Care First,02/09/2022,1355.90,Day Care,Day Care,http://opendatacommunities.org/id/county-council/staffordshire  
Staffordshire County Council,Tamworth LD Team,Care First,02/09/2022,2726.35,Day Care,Day Care,http://opendatacommunities.org/id/county-council/staffordshire  
Staffordshire County Council,Tamworth LD Team,Care First,02/09/2022,2003.04,Day Care,Day Care,http://opendatacommunities.org/id/county-council/staffordshire  
Staffordshire County Council,S Staffs LD Team,Care Plus (Staffordshire) Ltd,06/09/2022,1430.00,Supported Group Care,Supported Group Care,http://opendatacommunities.org/id/county-council/staffordshire  
Staffordshire County Council,SStaffs Invoice Led Older Peop,Care Plus (Staffordshire) Ltd,06/09/2022,810.00,Supported Group Care,Supported Group Care,http://opendatacommunities.org/id/county-council/staffordshire  
Staffordshire County Council,S Staffs LD Team,Care Plus (Staffordshire) Ltd,01/09/2022,1310.00,Supported Group Care,Supported Group Care,http://opendatacommunities.org/id/county-council/staffordshire  
Staffordshire County Council,S Staffs LD Team,Care Plus (Staffordshire) Ltd,26/09/2022,1120.00,Supported Group Care,Supported Group Care,http://opendatacommunities.org/id/county-council/staffordshire  
Staffordshire County Council,Stafford Invoice Led Older Peo,Care Plus (Staffordshire) Ltd,26/09/2022,2985.00,Practical Care,Practical Care,http://opendatacommunities.org/id/county-council/staffordshire  
Staffordshire County Council,Stafford Invoice Led Older Peo,Care Plus (Staffordshire) Ltd,26/09/2022,980.00,Practical Care,Practical Care,http://opendatacommunities.org/id/county-council/staffordshire  
Staffordshire County Council,SStaffs Invoice Led Older Peop,Care Plus (Staffordshire) Ltd,26/09/2022,625.00,Supported Group Care,Supported Group Care,http://opendatacommunities.org/id/county-council/staffordshire  
Staffordshire County Council,Headquarters - I.S.P,CARE TODAY,02/09/2022,7588.80,Specialist Childs Res Services,Specialist Childs Res Services,http://opendatacommunities.org/id/county-council/staffordshire  
Staffordshire County Council,Headquarters - I.S.P,CARE TODAY,28/09/2022,47158.97,Specialist Childs Res Services,Specialist Childs Res Services,http://opendatacommunities.org/id/county-council/staffordshire  
Staffordshire County Council,Headquarters - I.S.P,CARE TODAY,28/09/2022,16589.57,Specialist Childs Res Services,Specialist Childs Res Services,http://opendatacommunities.org/id/county-council/staffordshire  
Staffordshire County Council,Headquarters - I.S.P,CARE TODAY,28/09/2022,1862.23,Specialist Childs Res Services,Specialist Childs Res Services,http://opendatacommunities.org/id/county-council/staffordshire  
Staffordshire County Council,Headquarters - I.S.P,CARE TODAY,28/09/2022,13692.86,Specialist Childs Res Services,Specialist Childs Res Services,http://opendatacommunities.org/id/county-council/staffordshire  
Staffordshire County Council,Headquarters - I.S.P,CARE TODAY,28/09/2022,23579.48,Specialist Childs Res Services,Specialist Childs Res Services,http://opendatacommunities.org/id/county-council/staffordshire  
Staffordshire County Council,E Staffs LD Team,Care World Wide,28/09/2022,3120.00,Supported Group Care,Supported Group Care,http://opendatacommunities.org/id/county-council/staffordshire  
Staffordshire County Council,E Staffs LD Team,Care World Wide,28/09/2022,2600.00,Supported Group Care,Supported Group Care,http://opendatacommunities.org/id/county-council/staffordshire  
Staffordshire County Council,Lichfield LD Team,Care World Wide,28/09/2022,3840.00,Supported Group Care,Supported Group Care,http://opendatacommunities.org/id/county-council/staffordshire  
Staffordshire County Council,E Staffs LD Team,Care Worldwide (Staffordshire) Ltd,09/09/2022,1719.00,Supported Group Care,Supported Group Care,http://opendatacommunities.org/id/county-council/staffordshire  
Staffordshire County Council,E Staffs LD Team,Care Worldwide (Staffordshire) Ltd,26/09/2022,1719.00,Supported Group Care,Supported Group Care,http://opendatacommunities.org/id/county-council/staffordshire  
Staffordshire County Council,S Staffs LD Team,Caremax Support Services Ltd,09/09/2022,1633.30,Supported Group Care,Supported Group Care,http://opendatacommunities.org/id/county-council/staffordshire  
Staffordshire County Council,SWS MH Team U65,Caremax Support Services Ltd,09/09/2022,1200.44,Supported Group Care,Supported Group Care,http://opendatacommunities.org/id/county-council/staffordshire  
Staffordshire County Council,S Staffs LD Team,Caremax Support Services Ltd,26/09/2022,1633.30,Supported Group Care,Supported Group Care,http://opendatacommunities.org/id/county-council/staffordshire  
Staffordshire County Council,SWS MH Team U65,Caremax Support Services Ltd,26/09/2022,1200.44,Supported Group Care,Supported Group Care,http://opendatacommunities.org/id/county-council/staffordshire  
Staffordshire County Council,Stafford LD Team,Caretech Community Service Ltd,09/09/2022,3348.48,Supported Group Care,Supported Group Care,http://opendatacommunities.org/id/county-council/staffordshire  
Staffordshire County Council,Stafford LD Team,Caretech Community Service Ltd,09/09/2022,1650.82,Supported Group Care,Supported Group Care,http://opendatacommunities.org/id/county-council/staffordshire  
Staffordshire County Council,Stafford LD Team,Caretech Community Service Ltd,26/09/2022,3348.48,Supported Group Care,Supported Group Care,http://opendatacommunities.org/id/county-council/staffordshire  
Staffordshire County Council,Stafford LD Team,Caretech Community Service Ltd,26/09/2022,1650.82,Supported Group Care,Supported Group Care,http://opendatacommunities.org/id/county-council/staffordshire  
Staffordshire County Council,Newcastle MH Team U65,Caretech Community Service Ltd,29/09/2022,2650.81,Supported Group Care,Supported Group Care,http://opendatacommunities.org/id/county-council/staffordshire  
Staffordshire County Council,Newcastle MH Team U65,Caretech Community Service Ltd,29/09/2022,2650.81,Supported Group Care,Supported Group Care,http://opendatacommunities.org/id/county-council/staffordshire  
Staffordshire County Council,IF-I.S.P.,CareTech Community Services,28/09/2022,11620.37,Specialist Childs Res Services,Specialist Childs Res Services,http://opendatacommunities.org/id/county-council/staffordshire  
Staffordshire County Council,IF-I.S.P.,CareTech Community Services,28/09/2022,13005.00,Specialist Childs Res Services,Specialist Childs Res Services,http://opendatacommunities.org/id/county-council/staffordshire  
Staffordshire County Council,Care Systems,CAREWORKS LTD,26/09/2022,84350.00,SOFTWARE LICENCES,SOFTWARE LICENCES,http://opendatacommunities.org/id/county-council/staffordshire  
Staffordshire County Council,MCA / DoLs / AMHP,Carmiya Cee Limited,16/09/2022,3680.00,Independent Investigations,Independent Investigations,http://opendatacommunities.org/id/county-council/staffordshire  
Staffordshire County Council,Stat-OOC transport,,01/09/2022,791.78,Personal Travel Budgets,Personal Travel Budgets,http://opendatacommunities.org/id/county-council/staffordshire  
Staffordshire County Council,Newcastle Invoice Led Older Pe,Cartello Adams Ltd T/A Cartello Ambulanc,09/09/2022,572.00,Rental of Vehicles,Rental of Vehicles,http://opendatacommunities.org/id/county-council/staffordshire  
Staffordshire County Council,Specialist Assessment,Carter Brown The Expert Service Limited,13/09/2022,655.73,Prev Supp Legal Costs,Prev Supp Legal Costs,http://opendatacommunities.org/id/county-council/staffordshire  
Staffordshire County Council,Specialist Assessment,Carter Brown The Expert Service Limited,14/09/2022,504.04,Prev Supp Legal Costs,Prev Supp Legal Costs,http://opendatacommunities.org/id/county-council/staffordshire  
Staffordshire County Council,Think 2 Project,CARVER ROAD PLAYGROUP,12/09/2022,9476.83,Awards Funded Childcare Places,Awards Funded Childcare Places,http://opendatacommunities.org/id/county-council/staffordshire  
Staffordshire County Council,Nursery Education Grant,CARVER ROAD PLAYGROUP,12/09/2022,10916.43,Grants Nursery Education Pymnt,Grants Nursery Education Pymnt,http://opendatacommunities.org/id/county-council/staffordshire  
Staffordshire County Council,Stat-OOC transport,Casper Cars,07/09/2022,2380.98,Home School Contract Vehicles,Home School Contract Vehicles,http://opendatacommunities.org/id/county-council/staffordshire  
Staffordshire County Council,Nursery Education Grant,Castle Primary School,12/09/2022,1341.90,Grants Nursery Education Pymnt,Grants Nursery Education Pymnt,http://opendatacommunities.org/id/county-council/staffordshire  
Staffordshire County Council,Nursery Education Grant,Castlechurch Primary School,12/09/2022,6892.20,Grants Nursery Education Pymnt,Grants Nursery Education Pymnt,http://opendatacommunities.org/id/county-council/staffordshire  
Staffordshire County Council,AEN Funding Academies/Free/Col,Castlechurch Primary School,22/09/2022,6483.17,Grants to third parties,Grants to third parties,http://opendatacommunities.org/id/county-council/staffordshire  
Staffordshire County Council,Nursery Education Grant,Caterpillars Nursery,12/09/2022,10064.25,Grants Nursery Education Pymnt,Grants Nursery Education Pymnt,http://opendatacommunities.org/id/county-council/staffordshire  
Staffordshire County Council,Sth Staffs PD Team 1,Catherine Contracts Ltd,09/09/2022,2455.72,Supported Group Care,Supported Group Care,http://opendatacommunities.org/id/county-council/staffordshire  
Staffordshire County Council,S Staffs LD Team,Catherine Contracts Ltd,09/09/2022,2140.60,Supported Group Care,Supported Group Care,http://opendatacommunities.org/id/county-council/staffordshire  
Staffordshire County Council,Cannock Chase LD Team,Catherine Contracts Ltd,09/09/2022,1782.72,Supported Group Care,Supported Group Care,http://opendatacommunities.org/id/county-council/staffordshire  
Staffordshire County Council,E Staffs LD Team,Catherine Contracts Ltd,09/09/2022,2481.84,Supported Group Care,Supported Group Care,http://opendatacommunities.org/id/county-council/staffordshire  
Staffordshire County Council,S Staffs LD Team,Catherine Contracts Ltd,09/09/2022,3008.96,Supported Group Care,Supported Group Care,http://opendatacommunities.org/id/county-council/staffordshire  
Staffordshire County Council,Cannock Chase PD Team,Catherine Contracts Ltd,09/09/2022,25941.16,Supported Group Care,Supported Group Care,http://opendatacommunities.org/id/county-council/staffordshire  
Staffordshire County Council,E Staffs LD Team,Catherine Contracts Ltd,26/09/2022,2481.84,Supported Group Care,Supported Group Care,http://opendatacommunities.org/id/county-council/staffordshire  
Staffordshire County Council,HAF Summer 2022,Caudwell Children,27/09/2022,8223.36,OTHER HIRED SERVICES,OTHER HIRED SERVICES,http://opendatacommunities.org/id/county-council/staffordshire  
Staffordshire County Council,Think 2 Project,Cedar Tree Pre-School,12/09/2022,3298.42,Awards Funded Childcare Places,Awards Funded Childcare Places,http://opendatacommunities.org/id/county-council/staffordshire  
Staffordshire County Council,Nursery Education Grant,Cedar Tree Pre-School,12/09/2022,17474.79,Grants Nursery Education Pymnt,Grants Nursery Education Pymnt,http://opendatacommunities.org/id/county-council/staffordshire  
Staffordshire County Council,MOOR Assess & Staying Together,Cedar Tree Pre-School,27/09/2022,742.50,S17-NURSERY,S17-NURSERY,http://opendatacommunities.org/id/county-council/staffordshire  
Staffordshire County Council,Think 2 Project,CENTRAL PRE SCH PLAYGROUP,12/09/2022,1491.95,Awards Funded Childcare Places,Awards Funded Childcare Places,http://opendatacommunities.org/id/county-council/staffordshire  
Staffordshire County Council,Nursery Education Grant,CENTRAL PRE SCH PLAYGROUP,12/09/2022,3391.55,Grants Nursery Education Pymnt,Grants Nursery Education Pymnt,http://opendatacommunities.org/id/county-council/staffordshire  
Staffordshire County Council,Haulage & Materials,Certas Energy UK LTD,02/09/2022,1115.36,Petrol & Oil,Petrol & Oil,http://opendatacommunities.org/id/county-council/staffordshire  
Staffordshire County Council,Haulage & Materials,Certas Energy UK LTD,14/09/2022,1312.16,Petrol & Oil,Petrol & Oil,http://opendatacommunities.org/id/county-council/staffordshire  
Staffordshire County Council,Haulage & Materials,Certas Energy UK LTD,23/09/2022,1796.76,Petrol & Oil,Petrol & Oil,http://opendatacommunities.org/id/county-council/staffordshire  
Staffordshire County Council,Haulage & Materials,Certas Energy UK LTD,28/09/2022,1800.72,Petrol & Oil,Petrol & Oil,http://opendatacommunities.org/id/county-council/staffordshire  
Staffordshire County Council,Haulage & Materials,Certas Energy UK LTD,23/09/2022,1343.81,Petrol & Oil,Petrol & Oil,http://opendatacommunities.org/id/county-council/staffordshire  
Staffordshire County Council,Haulage & Materials,Certas Energy UK LTD,22/09/2022,3426.00,Petrol & Oil,Petrol & Oil,http://opendatacommunities.org/id/county-council/staffordshire  
Staffordshire County Council,Haulage & Materials,Certas Energy UK LTD,23/09/2022,1622.30,Petrol & Oil,Petrol & Oil,http://opendatacommunities.org/id/county-council/staffordshire  
Staffordshire County Council,Haulage & Materials,Certas Energy UK LTD,23/09/2022,4380.30,Petrol & Oil,Petrol & Oil,http://opendatacommunities.org/id/county-council/staffordshire  
Staffordshire County Council,Haulage & Materials,Certas Energy UK LTD,27/09/2022,1477.85,Petrol & Oil,Petrol & Oil,http://opendatacommunities.org/id/county-council/staffordshire  
Staffordshire County Council,Nursery Education Grant,Chadsmead Primary Academy,12/09/2022,9279.27,Grants Nursery Education Pymnt,Grants Nursery Education Pymnt,http://opendatacommunities.org/id/county-council/staffordshire  
Staffordshire County Council,AEN Funding Academies/Free/Col,Chadsmead Primary Academy,22/09/2022,15396.63,Grants to third parties,Grants to third parties,http://opendatacommunities.org/id/county-council/staffordshire  
Staffordshire County Council,Independent School Fee Special,Chaigeley School,22/09/2022,3159.00,Fees to Independent Schools,Fees to Independent Schools,http://opendatacommunities.org/id/county-council/staffordshire  
Staffordshire County Council,Independent School Fee Special,Chaigeley School,29/09/2022,20900.00,Fees to Independent Schools,Fees to Independent Schools,http://opendatacommunities.org/id/county-council/staffordshire  
Staffordshire County Council,Think 2 Project,CHAPEL STREET NURSERY,12/09/2022,1723.06,Awards Funded Childcare Places,Awards Funded Childcare Places,http://opendatacommunities.org/id/county-council/staffordshire  
Staffordshire County Council,Nursery Education Grant,CHAPEL STREET NURSERY,12/09/2022,3685.50,Grants Nursery Education Pymnt,Grants Nursery Education Pymnt,http://opendatacommunities.org/id/county-council/staffordshire  
Staffordshire County Council,AEN Funding Academies/Free/Col,Charnwood Primary Academy,22/09/2022,17489.48,Grants to third parties,Grants to third parties,http://opendatacommunities.org/id/county-council/staffordshire  
Staffordshire County Council,Nursery Education Grant,Chase Grammar School.,12/09/2022,4917.15,Grants Nursery Education Pymnt,Grants Nursery Education Pymnt,http://opendatacommunities.org/id/county-council/staffordshire  
Staffordshire County Council,AEN Funding Academies/Free/Col,Chase Terrace Technology College,22/09/2022,66373.56,Grants to third parties,Grants to third parties,http://opendatacommunities.org/id/county-council/staffordshire  
Staffordshire County Council,Pupil Referral Unit Top-Up,Chaselea Alternate Provision Academy,05/09/2022,82280.00,Contingency,Contingency,http://opendatacommunities.org/id/county-council/staffordshire  
Staffordshire County Council,S278 - Marston Gate Farm,Chasetown Civil Engineering Ltd,14/09/2022,44759.33,Construction Works,Construction Works,http://opendatacommunities.org/id/county-council/staffordshire  
Staffordshire County Council,AEN Funding Academies/Free/Col,Cheadle Academy,22/09/2022,52194.09,Grants to third parties,Grants to third parties,http://opendatacommunities.org/id/county-council/staffordshire  
Staffordshire County Council,Think 2 Project,Cheadle Kindergarten,12/09/2022,4307.65,Awards Funded Childcare Places,Awards Funded Childcare Places,http://opendatacommunities.org/id/county-council/staffordshire  
Staffordshire County Council,Nursery Education Grant,Cheadle Kindergarten,12/09/2022,12130.65,Grants Nursery Education Pymnt,Grants Nursery Education Pymnt,http://opendatacommunities.org/id/county-council/staffordshire  
Staffordshire County Council,Think 2 Project,CHEEKY MONKEYS DAY NURSERY,12/09/2022,3011.24,Awards Funded Childcare Places,Awards Funded Childcare Places,http://opendatacommunities.org/id/county-council/staffordshire  
Staffordshire County Council,Nursery Education Grant,CHEEKY MONKEYS DAY NURSERY,12/09/2022,10977.62,Grants Nursery Education Pymnt,Grants Nursery Education Pymnt,http://opendatacommunities.org/id/county-council/staffordshire  
Staffordshire County Council,Early Years Prof Dev Programme,CHEEKY MONKEYS DAY NURSERY,28/09/2022,650.02,Grants to third parties,Grants to third parties,http://opendatacommunities.org/id/county-council/staffordshire  
Staffordshire County Council,1 STI Test & Treat,Chelsea & Westminster Hosp NHS FT,08/09/2022,1227.37,other services internal,other services internal,http://opendatacommunities.org/id/county-council/staffordshire  
Staffordshire County Council,1 STI Test & Treat,Chelsea & Westminster Hosp NHS FT,01/09/2022,598.66,other services internal,other services internal,http://opendatacommunities.org/id/county-council/staffordshire  
Staffordshire County Council,1 STI Test & Treat,Chelsea & Westminster Hosp NHS FT,01/09/2022,1356.08,other services internal,other services internal,http://opendatacommunities.org/id/county-council/staffordshire  
Staffordshire County Council,1 STI Test & Treat,Chelsea & Westminster Hosp NHS FT,01/09/2022,847.55,other services internal,other services internal,http://opendatacommunities.org/id/county-council/staffordshire  
Staffordshire County Council,1 STI Test & Treat,Chelsea & Westminster Hosp NHS FT,08/09/2022,1695.10,other services internal,other services internal,http://opendatacommunities.org/id/county-council/staffordshire  
Staffordshire County Council,1 STI Test & Treat,Chelsea & Westminster Hosp NHS FT,08/09/2022,581.81,other services internal,other services internal,http://opendatacommunities.org/id/county-council/staffordshire  
Staffordshire County Council,1 STI Test & Treat,Chelsea & Westminster Hosp NHS FT,08/09/2022,1193.63,other services internal,other services internal,http://opendatacommunities.org/id/county-council/staffordshire  
Staffordshire County Council,Lichfield LD Team,CHERRY ORCHARD GARDEN SERVICES,29/09/2022,1083.58,Day Care,Day Care,http://opendatacommunities.org/id/county-council/staffordshire  
Staffordshire County Council,Special Academies Top Up,Cherry Trees School,13/09/2022,156405.00,Grants to third parties,Grants to third parties,http://opendatacommunities.org/id/county-council/staffordshire  
Staffordshire County Council,AEN Funding Academies/Free/Col,CHESLYN HAY ACADEMY,22/09/2022,30411.73,Grants to third parties,Grants to third parties,http://opendatacommunities.org/id/county-council/staffordshire  
Staffordshire County Council,Pupil Premium Grant,CHESLYN HAY ACADEMY,22/09/2022,500.00,Grants to third parties,Grants to third parties,http://opendatacommunities.org/id/county-council/staffordshire  
Staffordshire County Council,Think 2 Project,Chesterton Primary School,12/09/2022,1723.06,Awards Funded Childcare Places,Awards Funded Childcare Places,http://opendatacommunities.org/id/county-council/staffordshire  
Staffordshire County Council,Nursery Education Grant,Chesterton Primary School,12/09/2022,7610.40,Grants Nursery Education Pymnt,Grants Nursery Education Pymnt,http://opendatacommunities.org/id/county-council/staffordshire  
Staffordshire County Council,Adoption Support Fund,Child Psychology Service,23/09/2022,595.00,PROFESSIONAL FEES,PROFESSIONAL FEES,http://opendatacommunities.org/id/county-council/staffordshire  
Staffordshire County Council,Adoption Support Fund,Child Psychology Service,23/09/2022,700.00,PROFESSIONAL FEES,PROFESSIONAL FEES,http://opendatacommunities.org/id/county-council/staffordshire  
Staffordshire County Council,Adoption Support Fund,Child Psychology Service,28/09/2022,580.92,PROFESSIONAL FEES,PROFESSIONAL FEES,http://opendatacommunities.org/id/county-council/staffordshire  
Staffordshire County Council,Adoption Support Fund,Child Psychology Service,28/09/2022,630.00,PROFESSIONAL FEES,PROFESSIONAL FEES,http://opendatacommunities.org/id/county-council/staffordshire  
Staffordshire County Council,Adoption Support Fund,Child Psychology Service,28/09/2022,965.92,PROFESSIONAL FEES,PROFESSIONAL FEES,http://opendatacommunities.org/id/county-council/staffordshire  
Staffordshire County Council,Headquarters - I.S.P,CHILDCARE BUREAU LTD,28/09/2022,3646.41,Social Services Oth Local Auth,Social Services Oth Local Auth,http://opendatacommunities.org/id/county-council/staffordshire  
Staffordshire County Council,Headquarters - I.S.P,CHILDCARE BUREAU LTD,28/09/2022,3479.49,Social Services Oth Local Auth,Social Services Oth Local Auth,http://opendatacommunities.org/id/county-council/staffordshire  
Staffordshire County Council,Think 2 Project,Children 1st Nursery,12/09/2022,3053.90,Awards Funded Childcare Places,Awards Funded Childcare Places,http://opendatacommunities.org/id/county-council/staffordshire  
Staffordshire County Council,Nursery Education Grant,Children 1st Nursery,12/09/2022,40226.84,Grants Nursery Education Pymnt,Grants Nursery Education Pymnt,http://opendatacommunities.org/id/county-council/staffordshire  
Staffordshire County Council,Independent Sch Nursery 3&4yr,Children 1st Nursery,05/09/2022,1780.66,Grants to third parties,Grants to third parties,http://opendatacommunities.org/id/county-council/staffordshire  
Staffordshire County Council,Headquarters - I.S.P,Children Always First Limited,28/09/2022,3196.07,Social Services Oth Local Auth,Social Services Oth Local Auth,http://opendatacommunities.org/id/county-council/staffordshire  
Staffordshire County Council,Speech and Language/O Therapy,Childrens Choice Therapy Service Ltd,09/09/2022,645.00,OTHER HIRED SERVICES,OTHER HIRED SERVICES,http://opendatacommunities.org/id/county-council/staffordshire  
Staffordshire County Council,Headquarters - I.S.P,Children's Family Trust,28/09/2022,3085.71,Social Services Oth Local Auth,Social Services Oth Local Auth,http://opendatacommunities.org/id/county-council/staffordshire  
Staffordshire County Council,Prevention and Placement,Children's First Consultancy,20/09/2022,1037.40,CONSULTANT FEES,CONSULTANT FEES,http://opendatacommunities.org/id/county-council/staffordshire  
Staffordshire County Council,Pupil Premium Grant,Chiltern Hills Academy,22/09/2022,500.00,Grants to third parties,Grants to third parties,http://opendatacommunities.org/id/county-council/staffordshire  
Staffordshire County Council,Fountains Primary School,,14/09/2022,704.73,Personal Travel Budgets,Personal Travel Budgets,http://opendatacommunities.org/id/county-council/staffordshire  
Staffordshire County Council,Moorlands LD Team,CHOICES HOUSING ASSOCIATION LTD,14/09/2022,1423.90,Practical Care,Practical Care,http://opendatacommunities.org/id/county-council/staffordshire  
Staffordshire County Council,Cannock Chase LD Team,CHOICES HOUSING ASSOCIATION LTD,14/09/2022,1693.95,Practical Care,Practical Care,http://opendatacommunities.org/id/county-council/staffordshire  
Staffordshire County Council,Cannock Chase LD Team,CHOICES HOUSING ASSOCIATION LTD,14/09/2022,1104.75,Practical Care,Practical Care,http://opendatacommunities.org/id/county-council/staffordshire  
Staffordshire County Council,Cannock Chase LD Team,CHOICES HOUSING ASSOCIATION LTD,14/09/2022,2700.50,Practical Care,Practical Care,http://opendatacommunities.org/id/county-council/staffordshire  
Staffordshire County Council,Stafford Invoice Led Older Peo,CHOICES HOUSING ASSOCIATION LTD,14/09/2022,687.40,Practical Care,Practical Care,http://opendatacommunities.org/id/county-council/staffordshire  
Staffordshire County Council,Stafford Invoice Led Older Peo,CHOICES HOUSING ASSOCIATION LTD,14/09/2022,1269.55,Practical Care,Practical Care,http://opendatacommunities.org/id/county-council/staffordshire  
Staffordshire County Council,Stafford Invoice Led Older Peo,CHOICES HOUSING ASSOCIATION LTD,14/09/2022,515.55,Practical Care,Practical Care,http://opendatacommunities.org/id/county-council/staffordshire  
Staffordshire County Council,Stafford Invoice Led Older Peo,CHOICES HOUSING ASSOCIATION LTD,14/09/2022,1374.80,Practical Care,Practical Care,http://opendatacommunities.org/id/county-council/staffordshire  
Staffordshire County Council,Stafford Invoice Led Phys Disa,CHOICES HOUSING ASSOCIATION LTD,14/09/2022,711.95,Practical Care,Practical Care,http://opendatacommunities.org/id/county-council/staffordshire  
Staffordshire County Council,Cannock Invoice Led Older Peop,CHOICES HOUSING ASSOCIATION LTD,14/09/2022,2774.15,Practical Care,Practical Care,http://opendatacommunities.org/id/county-council/staffordshire  
Staffordshire County Council,SStaffs Invoice Led Older Peop,CHOICES HOUSING ASSOCIATION LTD,14/09/2022,549.92,Practical Care,Practical Care,http://opendatacommunities.org/id/county-council/staffordshire  
Staffordshire County Council,SStaffs Invoice Led Older Peop,CHOICES HOUSING ASSOCIATION LTD,14/09/2022,2528.65,Practical Care,Practical Care,http://opendatacommunities.org/id/county-council/staffordshire  
Staffordshire County Council,Newcastle Invoice Led Older Pe,CHOICES HOUSING ASSOCIATION LTD,14/09/2022,854.34,Practical Care,Practical Care,http://opendatacommunities.org/id/county-council/staffordshire  
Staffordshire County Council,Newcastle Invoice Led Older Pe,CHOICES HOUSING ASSOCIATION LTD,14/09/2022,1414.08,Practical Care,Practical Care,http://opendatacommunities.org/id/county-council/staffordshire  
Staffordshire County Council,Newcastle Invoice Led Older Pe,CHOICES HOUSING ASSOCIATION LTD,14/09/2022,515.55,Practical Care,Practical Care,http://opendatacommunities.org/id/county-council/staffordshire  
Staffordshire County Council,Stafford LD Team,CHOICES HOUSING ASSOCIATION LTD,23/09/2022,952.54,Practical Care,Practical Care,http://opendatacommunities.org/id/county-council/staffordshire  
Staffordshire County Council,AEN Funding Academies/Free/Col,Christ Church C of E First School,22/09/2022,6176.20,Grants to third parties,Grants to third parties,http://opendatacommunities.org/id/county-council/staffordshire  
Staffordshire County Council,Nursery Education Grant,Christ The King T/A St Mary's CPS,12/09/2022,9254.70,Grants Nursery Education Pymnt,Grants Nursery Education Pymnt,http://opendatacommunities.org/id/county-council/staffordshire  
Staffordshire County Council,AEN Funding Academies/Free/Col,Christ The King T/A St Mary's CPS,22/09/2022,13041.08,Grants to third parties,Grants to third parties,http://opendatacommunities.org/id/county-council/staffordshire  
Staffordshire County Council,Stafford Invoice Led Older Peo,Christies Care Ltd,14/09/2022,5776.12,Practical Care,Practical Care,http://opendatacommunities.org/id/county-council/staffordshire  
Staffordshire County Council,Nursery Education Grant,Church Eaton Primary School,12/09/2022,5367.60,Grants Nursery Education Pymnt,Grants Nursery Education Pymnt,http://opendatacommunities.org/id/county-council/staffordshire  
Staffordshire County Council,Think 2 Project,CHURCH LEIGH PRE SCH PLAYGROUP,12/09/2022,861.53,Awards Funded Childcare Places,Awards Funded Childcare Places,http://opendatacommunities.org/id/county-council/staffordshire  
Staffordshire County Council,Nursery Education Grant,CHURCH LEIGH PRE SCH PLAYGROUP,12/09/2022,2817.99,Grants Nursery Education Pymnt,Grants Nursery Education Pymnt,http://opendatacommunities.org/id/county-council/staffordshire  
Staffordshire County Council,Think 2 Project,Churchfield C E Primary Academy,12/09/2022,861.53,Awards Funded Childcare Places,Awards Funded Childcare Places,http://opendatacommunities.org/id/county-council/staffordshire  
Staffordshire County Council,Nursery Education Grant,Churchfield C E Primary Academy,12/09/2022,5011.65,Grants Nursery Education Pymnt,Grants Nursery Education Pymnt,http://opendatacommunities.org/id/county-council/staffordshire  
Staffordshire County Council,AEN Funding Academies/Free/Col,Churchfield C E Primary Academy,22/09/2022,13784.91,Grants to third parties,Grants to third parties,http://opendatacommunities.org/id/county-council/staffordshire  
Staffordshire County Council,Independent Sch Nursery 3&4yr,Churchfield C E Primary Academy,05/09/2022,1780.66,Grants to third parties,Grants to third parties,http://opendatacommunities.org/id/county-council/staffordshire  
Staffordshire County Council,Nursery Education Grant,CHURCHFIELDS PRIM SCHOOL,12/09/2022,7484.40,Grants Nursery Education Pymnt,Grants Nursery Education Pymnt,http://opendatacommunities.org/id/county-council/staffordshire  
Staffordshire County Council,AEN Funding Academies/Free/Col,CHURCHFIELDS PRIM SCHOOL,22/09/2022,34221.71,Grants to third parties,Grants to third parties,http://opendatacommunities.org/id/county-council/staffordshire  
Staffordshire County Council,AEN Funding Academies/Free/Col,Churnet View Middle School,22/09/2022,44053.81,Grants to third parties,Grants to third parties,http://opendatacommunities.org/id/county-council/staffordshire  
Staffordshire County Council,Comms & Marketing Staff,Cision,16/09/2022,9000.00,Subscriptions General,Subscriptions General,http://opendatacommunities.org/id/county-council/staffordshire  
Staffordshire County Council,Cicely Haughton School,CITY CABS BUSES & COACHES LTD,23/09/2022,24959.68,Home School Contract Vehicles,Home School Contract Vehicles,http://opendatacommunities.org/id/county-council/staffordshire  
Staffordshire County Council,Bridge Short Stay School,CITY CARS (MIDLANDS)LTD,01/09/2022,12397.76,Home School Contract Vehicles,Home School Contract Vehicles,http://opendatacommunities.org/id/county-council/staffordshire  
Staffordshire County Council,MOOR Early Help & Resourcing,CITY CENTRE CENTRAL,20/09/2022,990.00,S17 TRANSPORT,S17 TRANSPORT,http://opendatacommunities.org/id/county-council/staffordshire  
Staffordshire County Council,Moorlands LD Team,CITY OF STOKE ON TRENT,28/09/2022,563.58,Day Care,Day Care,http://opendatacommunities.org/id/county-council/staffordshire  
Staffordshire County Council,OnStreet Parking Pay & Display,CITY OF STOKE ON TRENT,21/09/2022,373138.80,Payments to other Authorities,Payments to other Authorities,http://opendatacommunities.org/id/county-council/staffordshire  
Staffordshire County Council,Think 2 Project,Claire Radford,12/09/2022,574.35,Awards Funded Childcare Places,Awards Funded Childcare Places,http://opendatacommunities.org/id/county-council/staffordshire  
Staffordshire County Council,Nursery Education Grant,CLAYTON PRESCHOOL PLAYGROUP,12/09/2022,5462.10,Grants Nursery Education Pymnt,Grants Nursery Education Pymnt,http://opendatacommunities.org/id/county-council/staffordshire  
Staffordshire County Council,Headquarters - I.S.P,Clifford House Fostering Ltd,28/09/2022,7017.34,Social Services Oth Local Auth,Social Services Oth Local Auth,http://opendatacommunities.org/id/county-council/staffordshire  
Staffordshire County Council,Headquarters - I.S.P,Clifford House Fostering Ltd,28/09/2022,3580.24,Social Services Oth Local Auth,Social Services Oth Local Auth,http://opendatacommunities.org/id/county-council/staffordshire  
Staffordshire County Council,Headquarters - I.S.P,Clifford House Fostering Ltd,28/09/2022,8463.76,Social Services Oth Local Auth,Social Services Oth Local Auth,http://opendatacommunities.org/id/county-council/staffordshire  
Staffordshire County Council,Headquarters - I.S.P,Clifford House Fostering Ltd,28/09/2022,10676.70,Social Services Oth Local Auth,Social Services Oth Local Auth,http://opendatacommunities.org/id/county-council/staffordshire  
Staffordshire County Council,Asset Renewal - Emergency Work,Clixbys Land Design,30/09/2022,840.00,Ext Fees Construction,Ext Fees Construction,http://opendatacommunities.org/id/county-council/staffordshire  
Staffordshire County Council,Think 2 Project,CLOUD 9 @ ST BERNADETTES,12/09/2022,6892.24,Awards Funded Childcare Places,Awards Funded Childcare Places,http://opendatacommunities.org/id/county-council/staffordshire  
Staffordshire County Council,Nursery Education Grant,CLOUD 9 @ ST BERNADETTES,12/09/2022,8951.04,Grants Nursery Education Pymnt,Grants Nursery Education Pymnt,http://opendatacommunities.org/id/county-council/staffordshire  
Staffordshire County Council,Early Years Prof Dev Programme,CLOUD 9 @ ST BERNADETTES,28/09/2022,691.68,Grants to third parties,Grants to third parties,http://opendatacommunities.org/id/county-council/staffordshire  
Staffordshire County Council,Think 2 Project,Codsall Community Nursery,12/09/2022,4307.65,Awards Funded Childcare Places,Awards Funded Childcare Places,http://opendatacommunities.org/id/county-council/staffordshire  
Staffordshire County Council,Nursery Education Grant,Codsall Community Nursery,12/09/2022,1341.90,Grants Nursery Education Pymnt,Grants Nursery Education Pymnt,http://opendatacommunities.org/id/county-council/staffordshire  
Staffordshire County Council,AEN Funding Academies/Free/Col,Codsall Middle School,22/09/2022,19793.93,Grants to third parties,Grants to third parties,http://opendatacommunities.org/id/county-council/staffordshire  
Staffordshire County Council,Nursery Education Grant,COLLECTIVE VISION TRUST,12/09/2022,7681.80,Grants Nursery Education Pymnt,Grants Nursery Education Pymnt,http://opendatacommunities.org/id/county-council/staffordshire  
Staffordshire County Council,AEN Funding Academies/Free/Col,COLLECTIVE VISION TRUST,22/09/2022,4373.28,Grants to third parties,Grants to third parties,http://opendatacommunities.org/id/county-council/staffordshire  
Staffordshire County Council,AEN Funding Academies/Free/Col,COLLECTIVE VISION TRUST,22/09/2022,32884.29,Grants to third parties,Grants to third parties,http://opendatacommunities.org/id/county-council/staffordshire  
Staffordshire County Council,AEN Funding Academies/Free/Col,Colwich CofE Primary School,22/09/2022,9454.55,Grants to third parties,Grants to third parties,http://opendatacommunities.org/id/county-council/staffordshire  
Staffordshire County Council,Nursery Education Grant,COLWICH PLAYGROUP,12/09/2022,4855.11,Grants Nursery Education Pymnt,Grants Nursery Education Pymnt,http://opendatacommunities.org/id/county-council/staffordshire  
Staffordshire County Council,Early Years Prof Dev Programme,COLWICH PLAYGROUP,28/09/2022,1183.38,Grants to third parties,Grants to third parties,http://opendatacommunities.org/id/county-council/staffordshire  
Staffordshire County Council,Various,Comensura Ltd,30/09/2022,188112.66,Agency Staff,Agency Staff,http://opendatacommunities.org/id/county-council/staffordshire  
Staffordshire County Council,Various,Comensura Ltd,23/09/2022,207311.32,Agency Staff,Agency Staff,http://opendatacommunities.org/id/county-council/staffordshire  
Staffordshire County Council,Various,Comensura Ltd,16/09/2022,219353.42,Agency Staff,Agency Staff,http://opendatacommunities.org/id/county-council/staffordshire  
Staffordshire County Council,Various,Comensura Ltd,09/09/2022,193740.45,Agency Staff,Agency Staff,http://opendatacommunities.org/id/county-council/staffordshire  
Staffordshire County Council,Various,Comensura Ltd,02/09/2022,225468.77,Agency Staff,Agency Staff,http://opendatacommunities.org/id/county-council/staffordshire  
Staffordshire County Council,District Strategy & Delivery,Comensura Ltd,20/09/2022,135875.54,Agency Staff,Agency Staff,http://opendatacommunities.org/id/county-council/staffordshire  
Staffordshire County Council,East Staffs Invoice Led Older ,Committed2Care Ltd,05/09/2022,837.49,Practical Care,Practical Care,http://opendatacommunities.org/id/county-council/staffordshire  
Staffordshire County Council,Tamworth Invoice Led Older Peo,Committed2Care Ltd,05/09/2022,1734.16,Practical Care,Practical Care,http://opendatacommunities.org/id/county-council/staffordshire  
Staffordshire County Council,Tamworth Invoice Led Older Peo,Committed2Care Ltd,08/09/2022,1380.00,Practical Care,Practical Care,http://opendatacommunities.org/id/county-council/staffordshire  
Staffordshire County Council,Tamworth Invoice Led Older Peo,Committed2Care Ltd,08/09/2022,1420.25,Practical Care,Practical Care,http://opendatacommunities.org/id/county-council/staffordshire  
Staffordshire County Council,HSF Winter Warmth,Community Foundation for Staffordshire,07/09/2022,200000.00,Community Project,Community Project,http://opendatacommunities.org/id/county-council/staffordshire  
Staffordshire County Council,Supportive Communities,COMMUNITY TOGETHER CIC,16/09/2022,7500.00,PH PBR contract element,PH PBR contract element,http://opendatacommunities.org/id/county-council/staffordshire  
Staffordshire County Council,HAF Summer 2022,COMMUNITY TOGETHER CIC,20/09/2022,17250.00,OTHER HIRED SERVICES,OTHER HIRED SERVICES,http://opendatacommunities.org/id/county-council/staffordshire  
Staffordshire County Council,Sec 256 Within BCF,COMMUNITY TOGETHER CIC,29/09/2022,10932.00,OTHER HIRED SERVICES,OTHER HIRED SERVICES,http://opendatacommunities.org/id/county-council/staffordshire  
Staffordshire County Council,Supportive Communities,Community Ventures Development Services,27/09/2022,7410.00,PH PBR contract element,PH PBR contract element,http://opendatacommunities.org/id/county-council/staffordshire  
Staffordshire County Council,Headquarters - I.S.P,Compass Children's Homes Ltd,28/09/2022,15142.24,Specialist Childs Res Services,Specialist Childs Res Services,http://opendatacommunities.org/id/county-council/staffordshire  
Staffordshire County Council,Headquarters - I.S.P,Compass Fostering West,28/09/2022,3255.43,Social Services Oth Local Auth,Social Services Oth Local Auth,http://opendatacommunities.org/id/county-council/staffordshire  
Staffordshire County Council,Headquarters - I.S.P,Compass Fostering West,28/09/2022,3255.43,Social Services Oth Local Auth,Social Services Oth Local Auth,http://opendatacommunities.org/id/county-council/staffordshire  
Staffordshire County Council,Headquarters - I.S.P,Compass Fostering West,28/09/2022,5865.00,Social Services Oth Local Auth,Social Services Oth Local Auth,http://opendatacommunities.org/id/county-council/staffordshire  
Staffordshire County Council,Headquarters - I.S.P,Compass Fostering West,28/09/2022,8426.63,Social Services Oth Local Auth,Social Services Oth Local Auth,http://opendatacommunities.org/id/county-council/staffordshire  
Staffordshire County Council,Headquarters - I.S.P,Compass Fostering West,28/09/2022,3535.93,Social Services Oth Local Auth,Social Services Oth Local Auth,http://opendatacommunities.org/id/county-council/staffordshire  
Staffordshire County Council,Amey Winter Maintenance,COMPASS MINERALS UK LTD,02/09/2022,4655.26,Winter Salt Purchases,Winter Salt Purchases,http://opendatacommunities.org/id/county-council/staffordshire  
Staffordshire County Council,Amey Winter Maintenance,COMPASS MINERALS UK LTD,05/09/2022,9312.68,Winter Salt Purchases,Winter Salt Purchases,http://opendatacommunities.org/id/county-council/staffordshire  
Staffordshire County Council,Amey Winter Maintenance,COMPASS MINERALS UK LTD,06/09/2022,6253.94,Winter Salt Purchases,Winter Salt Purchases,http://opendatacommunities.org/id/county-council/staffordshire  
Staffordshire County Council,Amey Winter Maintenance,COMPASS MINERALS UK LTD,08/09/2022,1492.54,Winter Salt Purchases,Winter Salt Purchases,http://opendatacommunities.org/id/county-council/staffordshire  
Staffordshire County Council,Amey Winter Maintenance,COMPASS MINERALS UK LTD,07/09/2022,6130.46,Winter Salt Purchases,Winter Salt Purchases,http://opendatacommunities.org/id/county-council/staffordshire  
Staffordshire County Council,Amey Winter Maintenance,COMPASS MINERALS UK LTD,09/09/2022,24620.41,Winter Salt Purchases,Winter Salt Purchases,http://opendatacommunities.org/id/county-council/staffordshire  
Staffordshire County Council,Amey Winter Maintenance,COMPASS MINERALS UK LTD,13/09/2022,7772.48,Winter Salt Purchases,Winter Salt Purchases,http://opendatacommunities.org/id/county-council/staffordshire  
Staffordshire County Council,Amey Winter Maintenance,COMPASS MINERALS UK LTD,15/09/2022,12355.16,Winter Salt Purchases,Winter Salt Purchases,http://opendatacommunities.org/id/county-council/staffordshire  
Staffordshire County Council,Amey Winter Maintenance,COMPASS MINERALS UK LTD,16/09/2022,4647.68,Winter Salt Purchases,Winter Salt Purchases,http://opendatacommunities.org/id/county-council/staffordshire  
Staffordshire County Council,Amey Winter Maintenance,COMPASS MINERALS UK LTD,16/09/2022,12402.80,Winter Salt Purchases,Winter Salt Purchases,http://opendatacommunities.org/id/county-council/staffordshire  
Staffordshire County Council,Amey Winter Maintenance,COMPASS MINERALS UK LTD,21/09/2022,7800.64,Winter Salt Purchases,Winter Salt Purchases,http://opendatacommunities.org/id/county-council/staffordshire  
Staffordshire County Council,Amey Winter Maintenance,COMPASS MINERALS UK LTD,22/09/2022,3120.48,Winter Salt Purchases,Winter Salt Purchases,http://opendatacommunities.org/id/county-council/staffordshire  
Staffordshire County Council,Amey Winter Maintenance,COMPASS MINERALS UK LTD,29/09/2022,1544.53,Winter Salt Purchases,Winter Salt Purchases,http://opendatacommunities.org/id/county-council/staffordshire  
Staffordshire County Council,Amey Winter Maintenance,COMPASS MINERALS UK LTD,28/09/2022,1532.62,Winter Salt Purchases,Winter Salt Purchases,http://opendatacommunities.org/id/county-council/staffordshire  
Staffordshire County Council,Amey Winter Maintenance,COMPASS MINERALS UK LTD,30/09/2022,1501.20,Winter Salt Purchases,Winter Salt Purchases,http://opendatacommunities.org/id/county-council/staffordshire  
Staffordshire County Council,Headquarters - I.S.P,COMPASS Services For Children LTD,28/09/2022,3689.70,Social Services Oth Local Auth,Social Services Oth Local Auth,http://opendatacommunities.org/id/county-council/staffordshire  
Staffordshire County Council,Headquarters - I.S.P,COMPASS Services For Children LTD,28/09/2022,5576.87,Social Services Oth Local Auth,Social Services Oth Local Auth,http://opendatacommunities.org/id/county-council/staffordshire  
Staffordshire County Council,Headquarters - I.S.P,COMPASS Services For Children LTD,28/09/2022,6653.79,Social Services Oth Local Auth,Social Services Oth Local Auth,http://opendatacommunities.org/id/county-council/staffordshire  
Staffordshire County Council,Headquarters - I.S.P,COMPASS Services For Children LTD,28/09/2022,10035.98,Social Services Oth Local Auth,Social Services Oth Local Auth,http://opendatacommunities.org/id/county-council/staffordshire  
Staffordshire County Council,Headquarters - I.S.P,COMPASS Services For Children LTD,28/09/2022,14730.30,Social Services Oth Local Auth,Social Services Oth Local Auth,http://opendatacommunities.org/id/county-council/staffordshire  
Staffordshire County Council,Headquarters - I.S.P,COMPASS Services For Children LTD,28/09/2022,5321.32,Social Services Oth Local Auth,Social Services Oth Local Auth,http://opendatacommunities.org/id/county-council/staffordshire  
Staffordshire County Council,Headquarters - I.S.P,COMPASS Services For Children LTD,28/09/2022,4058.66,Social Services Oth Local Auth,Social Services Oth Local Auth,http://opendatacommunities.org/id/county-council/staffordshire  
Staffordshire County Council,Lichfield LD Team,Compassion First Care Ltd,26/09/2022,13092.86,Practical Care,Practical Care,http://opendatacommunities.org/id/county-council/staffordshire  
Staffordshire County Council,Lichfield LD Team,Compassion First Care Ltd,30/09/2022,1950.00,Practical Care,Practical Care,http://opendatacommunities.org/id/county-council/staffordshire  
Staffordshire County Council,Stafford Invoice Led Phys Disa,Complete Care Holdings Ltd,20/09/2022,5922.24,Practical Care,Practical Care,http://opendatacommunities.org/id/county-council/staffordshire  
Staffordshire County Council,Stafford Invoice Led Phys Disa,Complete Care Holdings Ltd,20/09/2022,7792.51,Practical Care,Practical Care,http://opendatacommunities.org/id/county-council/staffordshire  
Staffordshire County Council,Improvements Contracts,COMPUTER AIDED DEVELOPMENT CORPORATION L,13/09/2022,1320.00,SOFTWARE LICENCES,SOFTWARE LICENCES,http://opendatacommunities.org/id/county-council/staffordshire  
Staffordshire County Council,People Solutions,Connop  Brown Associates Ltd,05/09/2022,9489.60,PROFESSIONAL FEES,PROFESSIONAL FEES,http://opendatacommunities.org/id/county-council/staffordshire  
Staffordshire County Council,Member & Democratic Services,CONSERVATION RESOURCES (UK) LTD,12/09/2022,832.60,Stationery General,Stationery General,http://opendatacommunities.org/id/county-council/staffordshire  
Staffordshire County Council,Marketing & Comms,Conservative Party,28/09/2022,1698.00,Conference Fees,Conference Fees,http://opendatacommunities.org/id/county-council/staffordshire  
Staffordshire County Council,Think 2 Project,Co-operative Childcare,12/09/2022,787.68,Awards Funded Childcare Places,Awards Funded Childcare Places,http://opendatacommunities.org/id/county-council/staffordshire  
Staffordshire County Council,Nursery Education Grant,Co-operative Childcare,12/09/2022,10585.44,Grants Nursery Education Pymnt,Grants Nursery Education Pymnt,http://opendatacommunities.org/id/county-council/staffordshire  
Staffordshire County Council,Fost Central & Approval,Co-operative Childcare,29/09/2022,814.65,Fostering Special Guardianship,Fostering Special Guardianship,http://opendatacommunities.org/id/county-council/staffordshire  
Staffordshire County Council,South Staffs Coroner,CO-OPERATIVE FUNERAL SERVICE,15/09/2022,924.00,OTHER HIRED SERVICES,OTHER HIRED SERVICES,http://opendatacommunities.org/id/county-council/staffordshire  
Staffordshire County Council,Pupil Premium Grant,COPPICE ACADEMY,13/09/2022,1250.00,Grants to third parties,Grants to third parties,http://opendatacommunities.org/id/county-council/staffordshire  
Staffordshire County Council,Special Academies Top Up,COPPICE ACADEMY,13/09/2022,58909.00,Grants to third parties,Grants to third parties,http://opendatacommunities.org/id/county-council/staffordshire  
Staffordshire County Council,Adoption Team,CoramBAAF,13/09/2022,18033.84,Subscriptions General,Subscriptions General,http://opendatacommunities.org/id/county-council/staffordshire  
Staffordshire County Council,Headquarters - I.S.P,Core Children Ltd,28/09/2022,53571.43,Specialist Childs Res Services,Specialist Childs Res Services,http://opendatacommunities.org/id/county-council/staffordshire  
Staffordshire County Council,Business Supp Childrens Centre,CORKYS CARS MIDLANDS LTD,30/09/2022,1438.68,Public Transport Other,Public Transport Other,http://opendatacommunities.org/id/county-council/staffordshire  
Staffordshire County Council,CAN Assess & Staying Together,CORKYS CARS MIDLANDS LTD,15/09/2022,530.76,S17 TRANSPORT,S17 TRANSPORT,http://opendatacommunities.org/id/county-council/staffordshire  
Staffordshire County Council,Hednesford Valley High,CORKYS CARS MIDLANDS LTD,08/09/2022,11917.83,Home School Contract Vehicles,Home School Contract Vehicles,http://opendatacommunities.org/id/county-council/staffordshire  
Staffordshire County Council,Childcare,Cornwall Street Chambers,01/09/2022,4440.00,Legal Costs and Stamp Duty,Legal Costs and Stamp Duty,http://opendatacommunities.org/id/county-council/staffordshire  
Staffordshire County Council,Childcare,Cornwall Street Chambers,08/09/2022,780.00,Legal Costs and Stamp Duty,Legal Costs and Stamp Duty,http://opendatacommunities.org/id/county-council/staffordshire  
Staffordshire County Council,Childcare,Cornwall Street Chambers,13/09/2022,1500.00,Legal Costs and Stamp Duty,Legal Costs and Stamp Duty,http://opendatacommunities.org/id/county-council/staffordshire  
Staffordshire County Council,Pooled Accom Central Charges,CORONA ENERGY,15/09/2022,58212.98,Gas,Gas,http://opendatacommunities.org/id/county-council/staffordshire  
Staffordshire County Council,Meadowyrthe OPH,CORONA ENERGY,15/09/2022,1382.92,Gas,Gas,http://opendatacommunities.org/id/county-council/staffordshire  
Staffordshire County Council,Meadowyrthe OPH,CORONA ENERGY,15/09/2022,1807.70,Gas,Gas,http://opendatacommunities.org/id/county-council/staffordshire  
Staffordshire County Council,Meadowyrthe OPH,CORONA ENERGY,15/09/2022,7362.24,Gas,Gas,http://opendatacommunities.org/id/county-council/staffordshire  
Staffordshire County Council,Bracken House OPH,CORONA ENERGY,15/09/2022,1821.14,Gas,Gas,http://opendatacommunities.org/id/county-council/staffordshire  
Staffordshire County Council,Bracken House OPH,CORONA ENERGY,15/09/2022,2600.06,Gas,Gas,http://opendatacommunities.org/id/county-council/staffordshire  
Staffordshire County Council,Bracken House OPH,CORONA ENERGY,15/09/2022,9310.53,Gas,Gas,http://opendatacommunities.org/id/county-council/staffordshire  
Staffordshire County Council,Nursery Education Grant,Coton Green Church Preschool,12/09/2022,4670.19,Grants Nursery Education Pymnt,Grants Nursery Education Pymnt,http://opendatacommunities.org/id/county-council/staffordshire  
Staffordshire County Council,Think 2 Project,COTON GREEN PRE-SCHOOL NURSERY,12/09/2022,7064.53,Awards Funded Childcare Places,Awards Funded Childcare Places,http://opendatacommunities.org/id/county-council/staffordshire  
Staffordshire County Council,Nursery Education Grant,COTON GREEN PRE-SCHOOL NURSERY,12/09/2022,15594.39,Grants Nursery Education Pymnt,Grants Nursery Education Pymnt,http://opendatacommunities.org/id/county-council/staffordshire  
Staffordshire County Council,Independent Sch Nursery 3&4yr,COTON GREEN PRE-SCHOOL NURSERY,05/09/2022,1068.40,Grants to third parties,Grants to third parties,http://opendatacommunities.org/id/county-council/staffordshire  
Staffordshire County Council,Independent Sch Nursery 3&4yr,COTON GREEN PRE-SCHOOL NURSERY,05/09/2022,2849.06,Grants to third parties,Grants to third parties,http://opendatacommunities.org/id/county-council/staffordshire  
Staffordshire County Council,AEN Funding Academies/Free/Col,Coton Green Primary School,22/09/2022,8125.07,Grants to third parties,Grants to third parties,http://opendatacommunities.org/id/county-council/staffordshire  
Staffordshire County Council,Cannock Chase Team,Country Pursuits & Training Ltd,20/09/2022,740.00,Training Expenses,Training Expenses,http://opendatacommunities.org/id/county-council/staffordshire  
Staffordshire County Council,Stat-OOC transport,COVENTRY CITY COUNCIL,16/09/2022,3580.20,Extra District Charges Other,Extra District Charges Other,http://opendatacommunities.org/id/county-council/staffordshire  
Staffordshire County Council,Chasetown Special School,COVENTRY CITY COUNCIL,16/09/2022,7155.60,Extra District Charges Other,Extra District Charges Other,http://opendatacommunities.org/id/county-council/staffordshire  
Staffordshire County Council,HAF Summer 2022,Cox Sports Stafford Ltd t/a Sport4Kids,20/09/2022,3200.00,OTHER HIRED SERVICES,OTHER HIRED SERVICES,http://opendatacommunities.org/id/county-council/staffordshire  
Staffordshire County Council,S Staffs LD Team,Craegmoor Bentons Lane 297,21/09/2022,4330.40,Supported Group Care,Supported Group Care,http://opendatacommunities.org/id/county-council/staffordshire  
Staffordshire County Council,S Staffs LD Team,Craegmoor Bentons Lane 297,21/09/2022,4330.40,Supported Group Care,Supported Group Care,http://opendatacommunities.org/id/county-council/staffordshire  
Staffordshire County Council,S Staffs LD Team,Craegmoor Bentons Lane 297,21/09/2022,4330.40,Supported Group Care,Supported Group Care,http://opendatacommunities.org/id/county-council/staffordshire  
Staffordshire County Council,E Staffs LD Team,Craegmoor Priory Group,09/09/2022,1394.88,Supported Group Care,Supported Group Care,http://opendatacommunities.org/id/county-council/staffordshire  
Staffordshire County Council,S Staffs LD Team,Craegmoor Priory Group,21/09/2022,11643.79,Supported Group Care,Supported Group Care,http://opendatacommunities.org/id/county-council/staffordshire  
Staffordshire County Council,S Staffs LD Team,Craegmoor Priory Group,14/09/2022,4050.00,Supported Group Care,Supported Group Care,http://opendatacommunities.org/id/county-council/staffordshire  
Staffordshire County Council,S Staffs LD Team,Craegmoor Priory Group,09/09/2022,585.00,Supported Group Care,Supported Group Care,http://opendatacommunities.org/id/county-council/staffordshire  
Staffordshire County Council,S Staffs LD Team,Craegmoor Priory Group,14/09/2022,5447.14,Supported Group Care,Supported Group Care,http://opendatacommunities.org/id/county-council/staffordshire  
Staffordshire County Council,S Staffs LD Team,Craegmoor Priory Group,14/09/2022,4886.66,Supported Group Care,Supported Group Care,http://opendatacommunities.org/id/county-council/staffordshire  
Staffordshire County Council,S Staffs LD Team,Craegmoor Priory Group,29/09/2022,7105.03,Supported Group Care,Supported Group Care,http://opendatacommunities.org/id/county-council/staffordshire  
Staffordshire County Council,E Staffs LD Team,Craegmoor Supporting You,09/09/2022,2946.37,Supported Group Care,Supported Group Care,http://opendatacommunities.org/id/county-council/staffordshire  
Staffordshire County Council,Newcastle LD Team,Craegmoor Supporting You,26/09/2022,11215.04,Supported Group Care,Supported Group Care,http://opendatacommunities.org/id/county-council/staffordshire  
Staffordshire County Council,Tamworth LD Team,Creative Choices CIC,12/09/2022,550.00,Day Care,Day Care,http://opendatacommunities.org/id/county-council/staffordshire  
Staffordshire County Council,Tamworth LD Team,Creative Choices CIC,12/09/2022,550.00,Day Care,Day Care,http://opendatacommunities.org/id/county-council/staffordshire  
Staffordshire County Council,Tamworth LD Team,Creative Choices CIC,12/09/2022,550.00,Day Care,Day Care,http://opendatacommunities.org/id/county-council/staffordshire  
Staffordshire County Council,S Staffs LD Team,Creative Support,09/09/2022,1550.04,Supported Group Care,Supported Group Care,http://opendatacommunities.org/id/county-council/staffordshire  
Staffordshire County Council,Stafford LD Team,Creative Support,09/09/2022,820.08,Supported Group Care,Supported Group Care,http://opendatacommunities.org/id/county-council/staffordshire  
Staffordshire County Council,S Staffs LD Team,Creative Support,26/09/2022,1550.04,Supported Group Care,Supported Group Care,http://opendatacommunities.org/id/county-council/staffordshire  
Staffordshire County Council,Stafford LD Team,Creative Support,26/09/2022,820.08,Supported Group Care,Supported Group Care,http://opendatacommunities.org/id/county-council/staffordshire  
Staffordshire County Council,Cannock Chase LD Team,Creative Support,26/09/2022,826.32,Supported Group Care,Supported Group Care,http://opendatacommunities.org/id/county-council/staffordshire  
Staffordshire County Council,Cannock Chase LD Team,CREATIVE SUPPORT,08/09/2022,6505.38,Supported Group Care,Supported Group Care,http://opendatacommunities.org/id/county-council/staffordshire  
Staffordshire County Council,Cannock Chase LD Team,CREATIVE SUPPORT,06/09/2022,1204.70,Supported Group Care,Supported Group Care,http://opendatacommunities.org/id/county-council/staffordshire  
Staffordshire County Council,Cannock Chase LD Team,CREATIVE SUPPORT,06/09/2022,1204.70,Supported Group Care,Supported Group Care,http://opendatacommunities.org/id/county-council/staffordshire  
Staffordshire County Council,Cannock Chase LD Team,CREATIVE SUPPORT,06/09/2022,1134.00,Supported Group Care,Supported Group Care,http://opendatacommunities.org/id/county-council/staffordshire  
Staffordshire County Council,Cannock Chase LD Team,CREATIVE SUPPORT,06/09/2022,1149.15,Supported Group Care,Supported Group Care,http://opendatacommunities.org/id/county-council/staffordshire  
Staffordshire County Council,Cannock Chase LD Team,CREATIVE SUPPORT,06/09/2022,630.84,Supported Group Care,Supported Group Care,http://opendatacommunities.org/id/county-council/staffordshire  
Staffordshire County Council,Cannock Chase LD Team,CREATIVE SUPPORT,06/09/2022,1204.70,Supported Group Care,Supported Group Care,http://opendatacommunities.org/id/county-council/staffordshire  
